Workbook

Sheet 1. Cost of Service_parameters
D4: MIST Meters True-up Model
B9: Sheet 1: Parameters and Rates
G11: 2014 | I11: 2015 | K11: 2016 | M11: 2017 | O11: 2018 | Q11: 2019 | S11: 2020 | U11: 2021 | W11: 2022 | Y11: 2023 | AA11: 2024 | AC11: 2025 | AE11: 2026
B12: Cost of Capital
C13: Capital Structure
D14: Deemed Short-term Debt Capitalization | G14: 0.04 | I14: 0.04 | K14: 0.04 | M14: 0.04 | O14: 0.04 | Q14: 0.04 | S14: 0.04 | U14: 0.04 | W14: 0.04 | Y14: 0.04 | AA14: 0.04 | AC14: 0.04 | AE14: 0.04
D15: Deemed Long-term Debt Capitalization | G15: =60%-G14 -> 0.56 | I15: =G15-(I14-G14) -> 0.56 | K15: =I15-(K14-I14) -> 0.56 | M15: =K15-(M14-K14) -> 0.56 | O15: =M15-(O14-M14) -> 0.56 | Q15: =O15-(Q14-O14) -> 0.56 | S15: =Q15-(S14-Q14) -> 0.56 | U15: =S15-(U14-S14) -> 0.56 | W15: =U15-(W14-U14) -> 0.56 | Y15: =W15-(Y14-W14) -> 0.56 | AA15: =Y15-(AA14-Y14) -> 0.56 | AC15: =AA15-(AC14-AA14) -> 0.56 | AE15: =AC15-(AE14-AC14) -> 0.56
D16: Deemed Equity Capitalization | G16: =100%-G15-G17-G14 -> 0.4 | I16: =100%-I15-I17-I14 -> 0.4 | K16: =100%-K15-K17-K14 -> 0.4 | M16: =100%-M15-M17-M14 -> 0.4 | O16: =100%-O15-O17-O14 -> 0.4 | Q16: =100%-Q15-Q17-Q14 -> 0.4 | S16: =100%-S15-S17-S14 -> 0.4 | U16: =100%-U15-U17-U14 -> 0.4 | W16: =100%-W15-W17-W14 -> 0.4 | Y16: =100%-Y15-Y17-Y14 -> 0.4 | AA16: =100%-AA15-AA17-AA14 -> 0.4 | AC16: =100%-AC15-AC17-AC14 -> 0.4 | AE16: =100%-AE15-AE17-AE14 -> 0.4
D17: Preferred Shares
C18: Total | G18: =SUM(G14:G17) -> 1 | I18: =SUM(I14:I17) -> 1 | K18: =SUM(K14:K17) -> 1 | M18: =SUM(M14:M17) -> 1 | O18: =SUM(O14:O17) -> 1 | Q18: =SUM(Q14:Q17) -> 1 | S18: =SUM(S14:S17) -> 1 | U18: =SUM(U14:U17) -> 1 | W18: =SUM(W14:W17) -> 1 | Y18: =SUM(Y14:Y17) -> 1 | AA18: =SUM(AA14:AA17) -> 1 | AC18: =SUM(AC14:AC17) -> 1 | AE18: =SUM(AE14:AE17) -> 1
C20: Cost of Capital Parameters
D21: Deemed Short-term Debt Rate | G21: 0.0208 | I21: 0.0208 | K21: 0.0208 | M21: 0.0208 | O21: 0.0208 | Q21: 0.0208 | S21: 0.0208 | U21: 0.0208 | W21: 0.0208 | Y21: 0.0208 | AA21: 0.0208 | AC21: 0.0208 | AE21: 0.0208
D22: Long-term Debt Rate (actual/embedded/deemed)1 | G22: 0.050914 | I22: 0.050914 | K22: 0.050914 | M22: 0.050914 | O22: 0.050914 | Q22: 0.050914 | S22: 0.050914 | U22: 0.050914 | W22: 0.050914 | Y22: 0.050914 | AA22: 0.050914 | AC22: 0.050914 | AE22: 0.050914
D23: Target Return on Equity (ROE) | G23: 0.0893 | I23: 0.0893 | K23: 0.0893 | M23: 0.0893 | O23: 0.0893 | Q23: 0.0893 | S23: 0.0893 | U23: 0.0893 | W23: 0.0893 | Y23: 0.0893 | AA23: 0.0893 | AC23: 0.0893 | AE23: 0.0893
D24: Return on Preferred Shares
C25: WACC | G25: =SUMPRODUCT(G14:G17,G21:G24) -> 0.06506384 | I25: =SUMPRODUCT(I14:I17,I21:I24) -> 0.06506384 | K25: =SUMPRODUCT(K14:K17,K21:K24) -> 0.06506384 | M25: =SUMPRODUCT(M14:M17,M21:M24) -> 0.06506384 | O25: =SUMPRODUCT(O14:O17,O21:O24) -> 0.06506384 | Q25: =SUMPRODUCT(Q14:Q17,Q21:Q24) -> 0.06506384 | S25: =SUMPRODUCT(S14:S17,S21:S24) -> 0.06506384 | U25: =SUMPRODUCT(U14:U17,U21:U24) -> 0.06506384 | W25: =SUMPRODUCT(W14:W17,W21:W24) -> 0.06506384 | Y25: =SUMPRODUCT(Y14:Y17,Y21:Y24) -> 0.06506384 | AA25: =SUMPRODUCT(AA14:AA17,AA21:AA24) -> 0.06506384 | AC25: =SUMPRODUCT(AC14:AC17,AC21:AC24) -> 0.06506384 | AE25: =SUMPRODUCT(AE14:AE17,AE21:AE24) -> 0.06506384
B27: Working Capital Allowance
C28: Working Capital Allowance Rate | G28: 0.135 | I28: 0.135 | K28: 0.135 | M28: 0.135 | O28: 0.135 | Q28: 0.135 | S28: 0.135 | U28: 0.135 | W28: 0.135 | Y28: 0.135 | AA28: 0.135 | AC28: 0.135 | AE28: 0.135
C29: (% of the sum of Cost of Power + controllable expenses)
B31: Taxes/PILs
C32: Aggregate Corporate Income Tax Rate | G32: 0.265 | I32: 0.265 | K32: 0.265 | M32: 0.265 | O32: 0.265 | Q32: 0.265 | S32: 0.265 | U32: 0.265 | W32: 0.265 | Y32: 0.265 | AA32: 0.265 | AC32: 0.265 | AE32: 0.265
C33: Capital Tax (until July 1st, 2010) | G33: 0 | I33: 0 | K33: 0 | M33: 0 | O33: 0 | Q33: 0 | S33: 0 | U33: 0 | W33: 0 | Y33: 0 | AA33: 0 | AC33: 0 | AE33: 0
B35: Depreciation Rates | E35: Account
B36: (expressed as expected useful life in years)
D38: Year | E38: 1822 | G38: 20 | I38: 20 | K38: 20 | M38: 20 | O38: 20 | Q38: 20 | S38: 20 | U38: 20 | W38: 20 | Y38: 20 | AA38: 20 | AC38: 20 | AE38: 20
C39: - rate (%) | D39: Rate (%) | G39: =IF(G38=0,0,1/G38) -> 0.05 | I39: =IF(I38=0,0,1/I38) -> 0.05 | K39: =IF(K38=0,0,1/K38) -> 0.05 | M39: =IF(M38=0,0,1/M38) -> 0.05 | O39: =IF(O38=0,0,1/O38) -> 0.05 | Q39: =IF(Q38=0,0,1/Q38) -> 0.05 | S39: =IF(S38=0,0,1/S38) -> 0.05 | U39: =IF(U38=0,0,1/U38) -> 0.05 | W39: =IF(W38=0,0,1/W38) -> 0.05 | Y39: =IF(Y38=0,0,1/Y38) -> 0.05 | AA39: =IF(AA38=0,0,1/AA38) -> 0.05 | AC39: =IF(AC38=0,0,1/AC38) -> 0.05 | AE39: =IF(AE38=0,0,1/AE38) -> 0.05
D41: Year | E41: 1845 | G41: 45 | I41: 45 | K41: 45 | M41: 45 | O41: 45 | Q41: 45 | S41: 45 | U41: 45 | W41: 45 | Y41: 45 | AA41: 45 | AC41: 45 | AE41: 45
C42: - rate (%) | D42: Rate (%) | G42: =IF(G41=0,0,1/G41) -> 0.02222222222 | I42: =IF(I41=0,0,1/I41) -> 0.02222222222 | K42: =IF(K41=0,0,1/K41) -> 0.02222222222 | M42: =IF(M41=0,0,1/M41) -> 0.02222222222 | O42: =IF(O41=0,0,1/O41) -> 0.02222222222 | Q42: =IF(Q41=0,0,1/Q41) -> 0.02222222222 | S42: =IF(S41=0,0,1/S41) -> 0.02222222222 | U42: =IF(U41=0,0,1/U41) -> 0.02222222222 | W42: =IF(W41=0,0,1/W41) -> 0.02222222222 | Y42: =IF(Y41=0,0,1/Y41) -> 0.02222222222 | AA42: =IF(AA41=0,0,1/AA41) -> 0.02222222222 | AC42: =IF(AC41=0,0,1/AC41) -> 0.02222222222 | AE42: =IF(AE41=0,0,1/AE41) -> 0.02222222222
D44: Year | E44: 1930 | G44: 7 | I44: 7 | K44: 7 | M44: 7 | O44: 7 | Q44: 7 | S44: 7 | U44: 7 | W44: 7 | Y44: 7 | AA44: 7 | AC44: 7 | AE44: 7
C45: - rate (%) | D45: Rate (%) | G45: =IF(G44=0,0,1/G44) -> 0.1428571429 | I45: =IF(I44=0,0,1/I44) -> 0.1428571429 | K45: =IF(K44=0,0,1/K44) -> 0.1428571429 | M45: =IF(M44=0,0,1/M44) -> 0.1428571429 | O45: =IF(O44=0,0,1/O44) -> 0.1428571429 | Q45: =IF(Q44=0,0,1/Q44) -> 0.1428571429 | S45: =IF(S44=0,0,1/S44) -> 0.1428571429 | U45: =IF(U44=0,0,1/U44) -> 0.1428571429 | W45: =IF(W44=0,0,1/W44) -> 0.1428571429 | Y45: =IF(Y44=0,0,1/Y44) -> 0.1428571429 | AA45: =IF(AA44=0,0,1/AA44) -> 0.1428571429 | AC45: =IF(AC44=0,0,1/AC44) -> 0.1428571429 | AE45: =IF(AE44=0,0,1/AE44) -> 0.1428571429
D47: Year | E47: 1835 | G47: 40 | I47: 40 | K47: 40 | M47: 40 | O47: 40 | Q47: 40 | S47: 40 | U47: 40 | W47: 40 | Y47: 40 | AA47: 40 | AC47: 40 | AE47: 40
C48: - rate (%) | D48: Rate (%) | G48: =IF(G47=0,0,1/G47) -> 0.025 | I48: =IF(I47=0,0,1/I47) -> 0.025 | K48: =IF(K47=0,0,1/K47) -> 0.025 | M48: =IF(M47=0,0,1/M47) -> 0.025 | O48: =IF(O47=0,0,1/O47) -> 0.025 | Q48: =IF(Q47=0,0,1/Q47) -> 0.025 | S48: =IF(S47=0,0,1/S47) -> 0.025 | U48: =IF(U47=0,0,1/U47) -> 0.025 | W48: =IF(W47=0,0,1/W47) -> 0.025 | Y48: =IF(Y47=0,0,1/Y47) -> 0.025 | AA48: =IF(AA47=0,0,1/AA47) -> 0.025 | AC48: =IF(AC47=0,0,1/AC47) -> 0.025 | AE48: =IF(AE47=0,0,1/AE47) -> 0.025
D50: Year | E50: 1921 | G50: 4 | I50: 4 | K50: 4 | M50: 4 | O50: 4 | Q50: 4 | S50: 4 | U50: 4 | W50: 4 | Y50: 4 | AA50: 4 | AC50: 4 | AE50: 4
C51: - rate (%) | D51: Rate (%) | G51: =IF(G50=0,0,1/G50) -> 0.25 | I51: =IF(I50=0,0,1/I50) -> 0.25 | K51: =IF(K50=0,0,1/K50) -> 0.25 | M51: =IF(M50=0,0,1/M50) -> 0.25 | O51: =IF(O50=0,0,1/O50) -> 0.25 | Q51: =IF(Q50=0,0,1/Q50) -> 0.25 | S51: =IF(S50=0,0,1/S50) -> 0.25 | U51: =IF(U50=0,0,1/U50) -> 0.25 | W51: =IF(W50=0,0,1/W50) -> 0.25 | Y51: =IF(Y50=0,0,1/Y50) -> 0.25 | AA51: =IF(AA50=0,0,1/AA50) -> 0.25 | AC51: =IF(AC50=0,0,1/AC50) -> 0.25 | AE51: =IF(AE50=0,0,1/AE50) -> 0.25
D53: Year | E53: 1935 | G53: 10 | I53: 10 | K53: 10 | M53: 10 | O53: 10 | Q53: 10 | S53: 10 | U53: 10 | W53: 10 | Y53: 10 | AA53: 10 | AC53: 10 | AE53: 10
C54: - rate (%) | D54: Rate (%) | G54: =IF(G53=0,0,1/G53) -> 0.1 | I54: =IF(I53=0,0,1/I53) -> 0.1 | K54: =IF(K53=0,0,1/K53) -> 0.1 | M54: =IF(M53=0,0,1/M53) -> 0.1 | O54: =IF(O53=0,0,1/O53) -> 0.1 | Q54: =IF(Q53=0,0,1/Q53) -> 0.1 | S54: =IF(S53=0,0,1/S53) -> 0.1 | U54: =IF(U53=0,0,1/U53) -> 0.1 | W54: =IF(W53=0,0,1/W53) -> 0.1 | Y54: =IF(Y53=0,0,1/Y53) -> 0.1 | AA54: =IF(AA53=0,0,1/AA53) -> 0.1 | AC54: =IF(AC53=0,0,1/AC53) -> 0.1 | AE54: =IF(AE53=0,0,1/AE53) -> 0.1
D56: Year | E56: 1926 | G56: 3 | I56: 3 | K56: 3 | M56: 3 | O56: 3 | Q56: 3 | S56: 3 | U56: 3 | W56: 3 | Y56: 3 | AA56: 3 | AC56: 3 | AE56: 3
C57: - rate (%) | D57: Rate (%) | G57: =IF(G56=0,0,1/G56) -> 0.3333333333 | I57: =IF(I56=0,0,1/I56) -> 0.3333333333 | K57: =IF(K56=0,0,1/K56) -> 0.3333333333 | M57: =IF(M56=0,0,1/M56) -> 0.3333333333 | O57: =IF(O56=0,0,1/O56) -> 0.3333333333 | Q57: =IF(Q56=0,0,1/Q56) -> 0.3333333333 | S57: =IF(S56=0,0,1/S56) -> 0.3333333333 | U57: =IF(U56=0,0,1/U56) -> 0.3333333333 | W57: =IF(W56=0,0,1/W56) -> 0.3333333333 | Y57: =IF(Y56=0,0,1/Y56) -> 0.3333333333 | AA57: =IF(AA56=0,0,1/AA56) -> 0.3333333333 | AC57: =IF(AC56=0,0,1/AC56) -> 0.3333333333 | AE57: =IF(AE56=0,0,1/AE56) -> 0.3333333333
D59: Year | E59: 1860 | G59: 15 | I59: 15 | K59: 15 | M59: 15 | O59: 15 | Q59: 15 | S59: 15 | U59: 15 | W59: 15 | Y59: 15 | AA59: 15 | AC59: 15 | AE59: 15
C60: - rate (%) | D60: Rate (%) | G60: =IF(G59=0,0,1/G59) -> 0.06666666667 | I60: =IF(I59=0,0,1/I59) -> 0.06666666667 | K60: =IF(K59=0,0,1/K59) -> 0.06666666667 | M60: =IF(M59=0,0,1/M59) -> 0.06666666667 | O60: =IF(O59=0,0,1/O59) -> 0.06666666667 | Q60: =IF(Q59=0,0,1/Q59) -> 0.06666666667 | S60: =IF(S59=0,0,1/S59) -> 0.06666666667 | U60: =IF(U59=0,0,1/U59) -> 0.06666666667 | W60: =IF(W59=0,0,1/W59) -> 0.06666666667 | Y60: =IF(Y59=0,0,1/Y59) -> 0.06666666667 | AA60: =IF(AA59=0,0,1/AA59) -> 0.06666666667 | AC60: =IF(AC59=0,0,1/AC59) -> 0.06666666667 | AE60: =IF(AE59=0,0,1/AE59) -> 0.06666666667
D62: Year | E62: 1924 | G62: 6 | I62: 6 | K62: 6 | M62: 6 | O62: 6 | Q62: 6 | S62: 6 | U62: 6 | W62: 6 | Y62: 6 | AA62: 6 | AC62: 6 | AE62: 6
C63: - rate (%) | D63: Rate (%) | G63: =IF(G62=0,0,1/G62) -> 0.1666666667 | I63: =IF(I62=0,0,1/I62) -> 0.1666666667 | K63: =IF(K62=0,0,1/K62) -> 0.1666666667 | M63: =IF(M62=0,0,1/M62) -> 0.1666666667 | O63: =IF(O62=0,0,1/O62) -> 0.1666666667 | Q63: =IF(Q62=0,0,1/Q62) -> 0.1666666667 | S63: =IF(S62=0,0,1/S62) -> 0.1666666667 | U63: =IF(U62=0,0,1/U62) -> 0.1666666667 | W63: =IF(W62=0,0,1/W62) -> 0.1666666667 | Y63: =IF(Y62=0,0,1/Y62) -> 0.1666666667 | AA63: =IF(AA62=0,0,1/AA62) -> 0.1666666667 | AC63: =IF(AC62=0,0,1/AC62) -> 0.1666666667 | AE63: =IF(AE62=0,0,1/AE62) -> 0.1666666667
D65: Year | E65: 1850 | G65: 30 | I65: 30 | K65: 30 | M65: 30 | O65: 30 | Q65: 30 | S65: 30 | U65: 30 | W65: 30 | Y65: 30 | AA65: 30 | AC65: 30 | AE65: 30
C66: - rate (%) | D66: Rate (%) | G66: =IF(G65=0,0,1/G65) -> 0.03333333333 | I66: =IF(I65=0,0,1/I65) -> 0.03333333333 | K66: =IF(K65=0,0,1/K65) -> 0.03333333333 | M66: =IF(M65=0,0,1/M65) -> 0.03333333333 | O66: =IF(O65=0,0,1/O65) -> 0.03333333333 | Q66: =IF(Q65=0,0,1/Q65) -> 0.03333333333 | S66: =IF(S65=0,0,1/S65) -> 0.03333333333 | U66: =IF(U65=0,0,1/U65) -> 0.03333333333 | W66: =IF(W65=0,0,1/W65) -> 0.03333333333 | Y66: =IF(Y65=0,0,1/Y65) -> 0.03333333333 | AA66: =IF(AA65=0,0,1/AA65) -> 0.03333333333 | AC66: =IF(AC65=0,0,1/AC65) -> 0.03333333333 | AE66: =IF(AE65=0,0,1/AE65) -> 0.03333333333
D68: Year | E68: 1982 | G68: 10 | I68: 10 | K68: 10 | M68: 10 | O68: 10 | Q68: 10 | S68: 10 | U68: 10 | W68: 10 | Y68: 10 | AA68: 10 | AC68: 10 | AE68: 10
C69: - rate (%) | D69: Rate (%) | G69: =IF(G68=0,0,1/G68) -> 0.1 | I69: =IF(I68=0,0,1/I68) -> 0.1 | K69: =IF(K68=0,0,1/K68) -> 0.1 | M69: =IF(M68=0,0,1/M68) -> 0.1 | O69: =IF(O68=0,0,1/O68) -> 0.1 | Q69: =IF(Q68=0,0,1/Q68) -> 0.1 | S69: =IF(S68=0,0,1/S68) -> 0.1 | U69: =IF(U68=0,0,1/U68) -> 0.1 | W69: =IF(W68=0,0,1/W68) -> 0.1 | Y69: =IF(Y68=0,0,1/Y68) -> 0.1 | AA69: =IF(AA68=0,0,1/AA68) -> 0.1 | AC69: =IF(AC68=0,0,1/AC68) -> 0.1 | AE69: =IF(AE68=0,0,1/AE68) -> 0.1
D71: Year | E71: 1955 | G71: 6 | I71: 6 | K71: 6 | M71: 6 | O71: 6 | Q71: 6 | S71: 6 | U71: 6 | W71: 6 | Y71: 6 | AA71: 6 | AC71: 6 | AE71: 6
C72: - rate (%) | D72: Rate (%) | G72: =IF(G71=0,0,1/G71) -> 0.1666666667 | I72: =IF(I71=0,0,1/I71) -> 0.1666666667 | K72: =IF(K71=0,0,1/K71) -> 0.1666666667 | M72: =IF(M71=0,0,1/M71) -> 0.1666666667 | O72: =IF(O71=0,0,1/O71) -> 0.1666666667 | Q72: =IF(Q71=0,0,1/Q71) -> 0.1666666667 | S72: =IF(S71=0,0,1/S71) -> 0.1666666667 | U72: =IF(U71=0,0,1/U71) -> 0.1666666667 | W72: =IF(W71=0,0,1/W71) -> 0.1666666667 | Y72: =IF(Y71=0,0,1/Y71) -> 0.1666666667 | AA72: =IF(AA71=0,0,1/AA71) -> 0.1666666667 | AC72: =IF(AC71=0,0,1/AC71) -> 0.1666666667 | AE72: =IF(AE71=0,0,1/AE71) -> 0.1666666667
B74: CCA Rates
D75: CCA Class | E75: 1822 | G75: 47 | I75: 47 | K75: 47 | M75: 47 | O75: 47 | Q75: 47 | S75: 47 | U75: 47 | W75: 47 | Y75: 47 | AA75: 47 | AC75: 47 | AE75: 47
D76: CCA Rate | G76: 0.08 | I76: 0.08 | K76: 0.08 | M76: 0.08 | O76: 0.08 | Q76: 0.08 | S76: 0.08 | U76: 0.08 | W76: 0.08 | Y76: 0.08 | AA76: 0.08 | AC76: 0.08 | AE76: 0.08
D78: CCA Class | E78: 1845 | G78: 47 | I78: 47 | K78: 47 | M78: 47 | O78: 47 | Q78: 47 | S78: 47 | U78: 47 | W78: 47 | Y78: 47 | AA78: 47 | AC78: 47 | AE78: 47
D79: CCA Rate | G79: 0.08 | I79: 0.08 | K79: 0.08 | M79: 0.08 | O79: 0.08 | Q79: 0.08 | S79: 0.08 | U79: 0.08 | W79: 0.08 | Y79: 0.08 | AA79: 0.08 | AC79: 0.08 | AE79: 0.08
D81: CCA Class | E81: 1930 | G81: 10 | I81: 10 | K81: 10 | M81: 10 | O81: 10 | Q81: 10 | S81: 10 | U81: 10 | W81: 10 | Y81: 10 | AA81: 10 | AC81: 10 | AE81: 10
D82: CCA Rate | G82: 0.3 | I82: 0.3 | K82: 0.3 | M82: 0.3 | O82: 0.3 | Q82: 0.3 | S82: 0.3 | U82: 0.3 | W82: 0.3 | Y82: 0.3 | AA82: 0.3 | AC82: 0.3 | AE82: 0.3
D84: CCA Class | E84: 1835 | G84: 47 | I84: 47 | K84: 47 | M84: 47 | O84: 47 | Q84: 47 | S84: 47 | U84: 47 | W84: 47 | Y84: 47 | AA84: 47 | AC84: 47 | AE84: 47
D85: CCA Rate | G85: 0.08 | I85: 0.08 | K85: 0.08 | M85: 0.08 | O85: 0.08 | Q85: 0.08 | S85: 0.08 | U85: 0.08 | W85: 0.08 | Y85: 0.08 | AA85: 0.08 | AC85: 0.08 | AE85: 0.08
D87: CCA Class | E87: 1921 | G87: 50 | I87: 50 | K87: 50 | M87: 50 | O87: 50 | Q87: 50 | S87: 50 | U87: 50 | W87: 50 | Y87: 50 | AA87: 50 | AC87: 50 | AE87: 50
D88: CCA Rate | G88: 0.55 | I88: 0.55 | K88: 0.55 | M88: 0.55 | O88: 0.55 | Q88: 0.55 | S88: 0.55 | U88: 0.55 | W88: 0.55 | Y88: 0.55 | AA88: 0.55 | AC88: 0.55 | AE88: 0.55
D90: CCA Class | E90: 1935 | G90: 8 | I90: 8 | K90: 8 | M90: 8 | O90: 8 | Q90: 8 | S90: 8 | U90: 8 | W90: 8 | Y90: 8 | AA90: 8 | AC90: 8 | AE90: 8
D91: CCA Rate | G91: 0.2 | I91: 0.2 | K91: 0.2 | M91: 0.2 | O91: 0.2 | Q91: 0.2 | S91: 0.2 | U91: 0.2 | W91: 0.2 | Y91: 0.2 | AA91: 0.2 | AC91: 0.2 | AE91: 0.2
D93: CCA Class | E93: 1926 | G93: 12 | I93: 12 | K93: 12 | M93: 12 | O93: 12 | Q93: 12 | S93: 12 | U93: 12 | W93: 12 | Y93: 12 | AA93: 12 | AC93: 12 | AE93: 12
D94: CCA Rate | G94: 1 | I94: 1 | K94: 1 | M94: 1 | O94: 1 | Q94: 1 | S94: 1 | U94: 1 | W94: 1 | Y94: 1 | AA94: 1 | AC94: 1 | AE94: 1
D96: CCA Class | E96: 1862 | G96: 8 | I96: 8 | K96: 8 | M96: 8 | O96: 8 | Q96: 8 | S96: 8 | U96: 8 | W96: 8 | Y96: 8 | AA96: 8 | AC96: 8 | AE96: 8
D97: CCA Rate | G97: 0.2 | I97: 0.2 | K97: 0.2 | M97: 0.2 | O97: 0.2 | Q97: 0.2 | S97: 0.2 | U97: 0.2 | W97: 0.2 | Y97: 0.2 | AA97: 0.2 | AC97: 0.2 | AE97: 0.2
D99: CCA Class | E99: 1924 | G99: 50 | I99: 50 | K99: 50 | M99: 50 | O99: 50 | Q99: 50 | S99: 50 | U99: 50 | W99: 50 | Y99: 50 | AA99: 50 | AC99: 50 | AE99: 50
D100: CCA Rate | G100: 0.55 | I100: 0.55 | K100: 0.55 | M100: 0.55 | O100: 0.55 | Q100: 0.55 | S100: 0.55 | U100: 0.55 | W100: 0.55 | Y100: 0.55 | AA100: 0.55 | AC100: 0.55 | AE100: 0.55
D102: CCA Class | E102: 1850 | G102: 47 | I102: 47 | K102: 47 | M102: 47 | O102: 47 | Q102: 47 | S102: 47 | U102: 47 | W102: 47 | Y102: 47 | AA102: 47 | AC102: 47 | AE102: 47
D103: CCA Rate | G103: 0.08 | I103: 0.08 | K103: 0.08 | M103: 0.08 | O103: 0.08 | Q103: 0.08 | S103: 0.08 | U103: 0.08 | W103: 0.08 | Y103: 0.08 | AA103: 0.08 | AC103: 0.08 | AE103: 0.08
D105: CCA Class | E105: 1982 | G105: 8 | I105: 8 | K105: 8 | M105: 8 | O105: 8 | Q105: 8 | S105: 8 | U105: 8 | W105: 8 | Y105: 8 | AA105: 8 | AC105: 8 | AE105: 8
D106: CCA Rate | G106: 0.2 | I106: 0.2 | K106: 0.2 | M106: 0.2 | O106: 0.2 | Q106: 0.2 | S106: 0.2 | U106: 0.2 | W106: 0.2 | Y106: 0.2 | AA106: 0.2 | AC106: 0.2 | AE106: 0.2
D108: CCA Class | E108: 1955 | G108: 8 | I108: 8 | K108: 8 | M108: 8 | O108: 8 | Q108: 8 | S108: 8 | U108: 8 | W108: 8 | Y108: 8 | AA108: 8 | AC108: 8 | AE108: 8
D109: CCA Rate | G109: 0.2 | I109: 0.2 | K109: 0.2 | M109: 0.2 | O109: 0.2 | Q109: 0.2 | S109: 0.2 | U109: 0.2 | W109: 0.2 | Y109: 0.2 | AA109: 0.2 | AC109: 0.2 | AE109: 0.2
B112: Assumptions
B113: 1 | C113: Fiscal calendar year (January 1 to December 31) used.
B114: 3 | C114: Amortization is done on a striaght line basis and no "half-year" rule applied.

Sheet 2. MIST Meters Assets_Rate Base
D4: MIST Meters True-up Model
B9: Sheet 2: MIST Meters Asset - Net Book Value
E10: 2014 | G10: 2015 | I10: 2016 | K10: 2017 | M10: 2018 | O10: 2019 | Q10: 2020 | S10: 2021 | U10: 2022 | W10: 2023 | Y10: 2024 | AA10: 2025 | AC10: 2026
B11: Net Fixed Assets - 1860
C13: Gross Book Value
D14: Opening Balance | G14: =E17 -> 413818.66 | I14: =G17 -> 1245375.24 | K14: =I17 -> 2009534.17 | M14: =K17 -> 2941497.39 | O14: =M17 -> 2962364.59 | Q14: =O17 -> 2962364.59 | S14: =Q17 -> 2962364.59 | U14: =S17 -> 2962364.59 | W14: =U17 -> 2962364.59 | Y14: =W17 -> 2962364.59 | AA14: =Y17 -> 2962364.59 | AC14: =AA17 -> 2962364.59
D15: Capital Additions during year | E15: 413818.66 | G15: 831556.58 | I15: 764158.93 | K15: 931963.22 | M15: 20867.2 | O15: 0 | Q15: 0 | S15: 0 | U15: 0 | W15: 0 | Y15: 0 | AA15: 0 | AC15: 0
D16: Retirements/Removals (if applicable)
D17: Closing Balance | E17: =E14+E15-E16 -> 413818.66 | G17: =G14+G15-G16 -> 1245375.24 | I17: =I14+I15-I16 -> 2009534.17 | K17: =K14+K15-K16 -> 2941497.39 | M17: =M14+M15-M16 -> 2962364.59 | O17: =O14+O15-O16 -> 2962364.59 | Q17: =Q14+Q15-Q16 -> 2962364.59 | S17: =S14+S15-S16 -> 2962364.59 | U17: =U14+U15-U16 -> 2962364.59 | W17: =W14+W15-W16 -> 2962364.59 | Y17: =Y14+Y15-Y16 -> 2962364.59 | AA17: =AA14+AA15-AA16 -> 2962364.59 | AC17: =AC14+AC15-AC16 -> 2962364.59
C19: Accumulated Depreciation
D20: Opening Balance | G20: =E23 -> -13793.96 | I20: =G23 -> -69100.42 | K20: =I23 -> -177597.4 | M20: =K23 -> -342631.79 | O20: =M23 -> -539427.18 | Q20: =O23 -> -755653.34 | S20: =Q23 -> -971879.5 | U20: =S23 -> -1188105.66 | W20: =U23 -> -1404331.82 | Y20: =W23 -> -1620557.98 | AA20: =Y23 -> -1836784.14 | AC20: =AA23 -> -2053010.3
D21: Amortization expense during year | E21: -13793.96 | G21: -55306.46 | I21: -108496.98 | K21: -165034.39 | M21: -196795.39 | O21: -216226.16 | Q21: -216226.16 | S21: -216226.16 | U21: -216226.16 | W21: -216226.16 | Y21: -216226.16 | AA21: -216226.16 | AC21: -216226.16
D22: Retirements/Removals (if applicable)
D23: Closing Balance | E23: =E20+E21-E22 -> -13793.96 | G23: =G20+G21-G22 -> -69100.42 | I23: =I20+I21-I22 -> -177597.4 | K23: =K20+K21-K22 -> -342631.79 | M23: =M20+M21-M22 -> -539427.18 | O23: =O20+O21-O22 -> -755653.34 | Q23: =Q20+Q21-Q22 -> -971879.5 | S23: =S20+S21-S22 -> -1188105.66 | U23: =U20+U21-U22 -> -1404331.82 | W23: =W20+W21-W22 -> -1620557.98 | Y23: =Y20+Y21-Y22 -> -1836784.14 | AA23: =AA20+AA21-AA22 -> -2053010.3 | AC23: =AC20+AC21-AC22 -> -2269236.46
C25: Net Book Value
D26: Opening Balance | E26: =E14+E20 -> 0 | G26: =E27 -> 400024.7 | I26: =G27 -> 1176274.82 | K26: =I27 -> 1831936.77 | M26: =K27 -> 2598865.6 | O26: =M27 -> 2422937.41 | Q26: =O27 -> 2206711.25 | S26: =Q27 -> 1990485.09 | U26: =S27 -> 1774258.93 | W26: =U27 -> 1558032.77 | Y26: =W27 -> 1341806.61 | AA26: =Y27 -> 1125580.45 | AC26: =AA27 -> 909354.29
D27: Closing Balance | E27: =E17+E23 -> 400024.7 | G27: =G17+G23 -> 1176274.82 | I27: =I17+I23 -> 1831936.77 | K27: =K17+K23 -> 2598865.6 | M27: =M17+M23 -> 2422937.41 | O27: =O17+O23 -> 2206711.25 | Q27: =Q17+Q23 -> 1990485.09 | S27: =S17+S23 -> 1774258.93 | U27: =U17+U23 -> 1558032.77 | W27: =W17+W23 -> 1341806.61 | Y27: =Y17+Y23 -> 1125580.45 | AA27: =AA17+AA23 -> 909354.29 | AC27: =AC17+AC23 -> 693128.13
D28: Net Fixed Assets (NFA) | E28: =SUM(E26:E27)/2 -> 200012.35 | G28: =AVERAGE(G26:G27) -> 788149.76 | I28: =AVERAGE(I26:I27) -> 1504105.795 | K28: =AVERAGE(K26:K27) -> 2215401.185 | M28: =AVERAGE(M26:M27) -> 2510901.505 | O28: =AVERAGE(O26:O27) -> 2314824.33 | Q28: =AVERAGE(Q26:Q27) -> 2098598.17 | S28: =AVERAGE(S26:S27) -> 1882372.01 | U28: =AVERAGE(U26:U27) -> 1666145.85 | W28: =AVERAGE(W26:W27) -> 1449919.69 | Y28: =AVERAGE(Y26:Y27) -> 1233693.53 | AA28: =AVERAGE(AA26:AA27) -> 1017467.37 | AC28: =AVERAGE(AC26:AC27) -> 801241.21
B30: Net Fixed Assets - 1845
C32: Gross Book Value
D33: Opening Balance | G33: =E36 -> 0 | I33: =G36 -> 0 | K33: =I36 -> 0 | M33: =K36 -> 0 | O33: =M36 -> 0 | Q33: =O36 -> 0 | S33: =Q36 -> 0 | U33: =S36 -> 0 | W33: =U36 -> 0 | Y33: =W36 -> 0 | AA33: =Y36 -> 0 | AC33: =AA36 -> 0
D34: Capital Additions during year (from ICM Costs)
D35: Retirements/Removals (if applicable)
D36: Closing Balance | E36: =E33+E34-E35 -> 0 | G36: =G33+G34-G35 -> 0 | I36: =I33+I34-I35 -> 0 | K36: =K33+K34-K35 -> 0 | M36: =M33+M34-M35 -> 0 | O36: =O33+O34-O35 -> 0 | Q36: =Q33+Q34-Q35 -> 0 | S36: =S33+S34-S35 -> 0 | U36: =U33+U34-U35 -> 0 | W36: =W33+W34-W35 -> 0 | Y36: =Y33+Y34-Y35 -> 0 | AA36: =AA33+AA34-AA35 -> 0 | AC36: =AC33+AC34-AC35 -> 0
C38: Accumulated Depreciation
D39: Opening Balance | G39: =E42 -> 0 | I39: =G42 -> 0 | K39: =I42 -> 0 | M39: =K42 -> 0 | O39: =M42 -> 0 | Q39: =O42 -> 0 | S39: =Q42 -> 0 | U39: =S42 -> 0 | W39: =U42 -> 0 | Y39: =W42 -> 0 | AA39: =Y42 -> 0 | AC39: =AA42 -> 0
D40: Amortization expense during year | E40: =-E34/'1. Cost of Service_parameters'!G41/2 -> 0 | G40: =-G33/'1. Cost of Service_parameters'!G41-'2. MIST Meters Assets_Rate Base'!G34/'1. Cost of Service_parameters'!G41/2 -> 0 | I40: =-I33/'1. Cost of Service_parameters'!I41-'2. MIST Meters Assets_Rate Base'!I34/'1. Cost of Service_parameters'!I41/2 -> 0 | K40: =-K33/'1. Cost of Service_parameters'!K41-'2. MIST Meters Assets_Rate Base'!K34/'1. Cost of Service_parameters'!K41/2 -> 0 | M40: =-M33/'1. Cost of Service_parameters'!M41-'2. MIST Meters Assets_Rate Base'!M34/'1. Cost of Service_parameters'!M41/2 -> 0 | O40: =-O33/'1. Cost of Service_parameters'!O41-'2. MIST Meters Assets_Rate Base'!O34/'1. Cost of Service_parameters'!O41/2 -> 0 | Q40: =-Q33/'1. Cost of Service_parameters'!Q41-'2. MIST Meters Assets_Rate Base'!Q34/'1. Cost of Service_parameters'!Q41/2 -> 0 | S40: =-S33/'1. Cost of Service_parameters'!S41-'2. MIST Meters Assets_Rate Base'!S34/'1. Cost of Service_parameters'!S41/2 -> 0 | U40: =-U33/'1. Cost of Service_parameters'!U41-'2. MIST Meters Assets_Rate Base'!U34/'1. Cost of Service_parameters'!U41/2 -> 0 | W40: =-W33/'1. Cost of Service_parameters'!W41-'2. MIST Meters Assets_Rate Base'!W34/'1. Cost of Service_parameters'!W41/2 -> 0 | Y40: =-Y33/'1. Cost of Service_parameters'!Y41-'2. MIST Meters Assets_Rate Base'!Y34/'1. Cost of Service_parameters'!Y41/2 -> 0 | AA40: =-AA33/'1. Cost of Service_parameters'!AA41-'2. MIST Meters Assets_Rate Base'!AA34/'1. Cost of Service_parameters'!AA41/2 -> 0 | AC40: =-AC33/'1. Cost of Service_parameters'!AC41-'2. MIST Meters Assets_Rate Base'!AC34/'1. Cost of Service_parameters'!AC41/2 -> 0
D41: Retirements/Removals (if applicable)
D42: Closing Balance | E42: =E39+E40-E41 -> 0 | G42: =G39+G40-G41 -> 0 | I42: =I39+I40-I41 -> 0 | K42: =K39+K40-K41 -> 0 | M42: =M39+M40-M41 -> 0 | O42: =O39+O40-O41 -> 0 | Q42: =Q39+Q40-Q41 -> 0 | S42: =S39+S40-S41 -> 0 | U42: =U39+U40-U41 -> 0 | W42: =W39+W40-W41 -> 0 | Y42: =Y39+Y40-Y41 -> 0 | AA42: =AA39+AA40-AA41 -> 0 | AC42: =AC39+AC40-AC41 -> 0
C44: Net Book Value
D45: Opening Balance | E45: =E33+E39 -> 0 | G45: =E46 -> 0 | I45: =G46 -> 0 | K45: =I46 -> 0 | M45: =K46 -> 0 | O45: =M46 -> 0 | Q45: =O46 -> 0 | S45: =Q46 -> 0 | U45: =S46 -> 0 | W45: =U46 -> 0 | Y45: =W46 -> 0 | AA45: =Y46 -> 0 | AC45: =AA46 -> 0
D46: Closing Balance | E46: =E36+E42 -> 0 | G46: =G36+G42 -> 0 | I46: =I36+I42 -> 0 | K46: =K36+K42 -> 0 | M46: =M36+M42 -> 0 | O46: =O36+O42 -> 0 | Q46: =Q36+Q42 -> 0 | S46: =S36+S42 -> 0 | U46: =U36+U42 -> 0 | W46: =W36+W42 -> 0 | Y46: =Y36+Y42 -> 0 | AA46: =AA36+AA42 -> 0 | AC46: =AC36+AC42 -> 0
D47: Net Fixed Assets (NFA) | E47: =AVERAGE(E45:E46) -> 0 | G47: =AVERAGE(G45:G46) -> 0 | I47: =AVERAGE(I45:I46) -> 0 | K47: =AVERAGE(K45:K46) -> 0 | M47: =AVERAGE(M45:M46) -> 0 | O47: =AVERAGE(O45:O46) -> 0 | Q47: =AVERAGE(Q45:Q46) -> 0 | S47: =AVERAGE(S45:S46) -> 0 | U47: =AVERAGE(U45:U46) -> 0 | W47: =AVERAGE(W45:W46) -> 0 | Y47: =AVERAGE(Y45:Y46) -> 0 | AA47: =AVERAGE(AA45:AA46) -> 0 | AC47: =AVERAGE(AC45:AC46) -> 0
B49: Net Fixed Assets - 1930
C51: Gross Book Value
D52: Opening Balance | G52: =E55 -> 0 | I52: =G55 -> 0 | K52: =I55 -> 0 | M52: =K55 -> 0 | O52: =M55 -> 0 | Q52: =O55 -> 0 | S52: =Q55 -> 0 | U52: =S55 -> 0 | W52: =U55 -> 0 | Y52: =W55 -> 0 | AA52: =Y55 -> 0 | AC52: =AA55 -> 0
D53: Capital Additions during year (from ICM Costs) | G53: 0 | I53: 0 | K53: 0 | M53: 0 | O53: 0 | Q53: 0 | S53: 0 | U53: 0 | W53: 0 | Y53: 0 | AA53: 0 | AC53: 0
D54: Retirements/Removals (if applicable)
D55: Closing Balance | E55: =E52+E53-E54 -> 0 | G55: =G52+G53-G54 -> 0 | I55: =I52+I53-I54 -> 0 | K55: =K52+K53-K54 -> 0 | M55: =M52+M53-M54 -> 0 | O55: =O52+O53-O54 -> 0 | Q55: =Q52+Q53-Q54 -> 0 | S55: =S52+S53-S54 -> 0 | U55: =U52+U53-U54 -> 0 | W55: =W52+W53-W54 -> 0 | Y55: =Y52+Y53-Y54 -> 0 | AA55: =AA52+AA53-AA54 -> 0 | AC55: =AC52+AC53-AC54 -> 0
C57: Accumulated Depreciation
D58: Opening Balance | G58: =E61 -> 0 | I58: =G61 -> 0 | K58: =I61 -> 0 | M58: =K61 -> 0 | O58: =M61 -> 0 | Q58: =O61 -> 0 | S58: =Q61 -> 0 | U58: =S61 -> 0 | W58: =U61 -> 0 | Y58: =W61 -> 0 | AA58: =Y61 -> 0 | AC58: =AA61 -> 0
D59: Amortization expense during year | E59: =-E53/'1. Cost of Service_parameters'!G44/2 -> 0 | G59: =-G52/'1. Cost of Service_parameters'!G44 -> 0 | I59: =-I52/'1. Cost of Service_parameters'!I44 -> 0 | K59: =-K52/'1. Cost of Service_parameters'!K44 -> 0 | M59: =-M52/'1. Cost of Service_parameters'!M44 -> 0 | O59: =-O52/'1. Cost of Service_parameters'!O44 -> 0 | Q59: =-Q52/'1. Cost of Service_parameters'!Q44 -> 0 | S59: =-S52/'1. Cost of Service_parameters'!S44 -> 0 | U59: =-U52/'1. Cost of Service_parameters'!U44 -> 0 | W59: =-W52/'1. Cost of Service_parameters'!W44 -> 0 | Y59: =-Y52/'1. Cost of Service_parameters'!Y44 -> 0 | AA59: =-AA52/'1. Cost of Service_parameters'!AA44 -> 0 | AC59: =-AC52/'1. Cost of Service_parameters'!AC44 -> 0
D60: Retirements/Removals (if applicable)
D61: Closing Balance | E61: =E58+E59-E60 -> 0 | G61: =G58+G59-G60 -> 0 | I61: =I58+I59-I60 -> 0 | K61: =K58+K59-K60 -> 0 | M61: =M58+M59-M60 -> 0 | O61: =O58+O59-O60 -> 0 | Q61: =Q58+Q59-Q60 -> 0 | S61: =S58+S59-S60 -> 0 | U61: =U58+U59-U60 -> 0 | W61: =W58+W59-W60 -> 0 | Y61: =Y58+Y59-Y60 -> 0 | AA61: =AA58+AA59-AA60 -> 0 | AC61: =AC58+AC59-AC60 -> 0
C63: Net Book Value
D64: Opening Balance | E64: =E52+E58 -> 0 | G64: =E65 -> 0 | I64: =G65 -> 0 | K64: =I65 -> 0 | M64: =K65 -> 0 | O64: =M65 -> 0 | Q64: =O65 -> 0 | S64: =Q65 -> 0 | U64: =S65 -> 0 | W64: =U65 -> 0 | Y64: =W65 -> 0 | AA64: =Y65 -> 0 | AC64: =AA65 -> 0
D65: Closing Balance | E65: =E55+E61 -> 0 | G65: =G55+G61 -> 0 | I65: =I55+I61 -> 0 | K65: =K55+K61 -> 0 | M65: =M55+M61 -> 0 | O65: =O55+O61 -> 0 | Q65: =Q55+Q61 -> 0 | S65: =S55+S61 -> 0 | U65: =U55+U61 -> 0 | W65: =W55+W61 -> 0 | Y65: =Y55+Y61 -> 0 | AA65: =AA55+AA61 -> 0 | AC65: =AC55+AC61 -> 0
D66: Net Fixed Assets (NFA) | E66: =AVERAGE(E64:E65) -> 0 | G66: =AVERAGE(G64:G65) -> 0 | I66: =AVERAGE(I64:I65) -> 0 | K66: =AVERAGE(K64:K65) -> 0 | M66: =AVERAGE(M64:M65) -> 0 | O66: =AVERAGE(O64:O65) -> 0 | Q66: =AVERAGE(Q64:Q65) -> 0 | S66: =AVERAGE(S64:S65) -> 0 | U66: =AVERAGE(U64:U65) -> 0 | W66: =AVERAGE(W64:W65) -> 0 | Y66: =AVERAGE(Y64:Y65) -> 0 | AA66: =AVERAGE(AA64:AA65) -> 0 | AC66: =AVERAGE(AC64:AC65) -> 0
B68: Net Fixed Assets - 1835
C70: Gross Book Value
D71: Opening Balance | G71: =E74 -> 0 | I71: =G74 -> 0 | K71: =I74 -> 0 | M71: =K74 -> 0 | O71: =M74 -> 0 | Q71: =O74 -> 0 | S71: =Q74 -> 0 | U71: =S74 -> 0 | W71: =U74 -> 0 | Y71: =W74 -> 0 | AA71: =Y74 -> 0 | AC71: =AA74 -> 0
D72: Capital Additions during year (from ICM Costs)
D73: Retirements/Removals (if applicable)
D74: Closing Balance | E74: =E71+E72-E73 -> 0 | G74: =G71+G72-G73 -> 0 | I74: =I71+I72-I73 -> 0 | K74: =K71+K72-K73 -> 0 | M74: =M71+M72-M73 -> 0 | O74: =O71+O72-O73 -> 0 | Q74: =Q71+Q72-Q73 -> 0 | S74: =S71+S72-S73 -> 0 | U74: =U71+U72-U73 -> 0 | W74: =W71+W72-W73 -> 0 | Y74: =Y71+Y72-Y73 -> 0 | AA74: =AA71+AA72-AA73 -> 0 | AC74: =AC71+AC72-AC73 -> 0
C76: Accumulated Depreciation
D77: Opening Balance | G77: =E80 -> 0 | I77: =G80 -> 0 | K77: =I80 -> 0 | M77: =K80 -> 0 | O77: =M80 -> 0 | Q77: =O80 -> 0 | S77: =Q80 -> 0 | U77: =S80 -> 0 | W77: =U80 -> 0 | Y77: =W80 -> 0 | AA77: =Y80 -> 0 | AC77: =AA80 -> 0
D78: Amortization expense during year | E78: =-E72/'1. Cost of Service_parameters'!G47/2 -> 0 | G78: =-G71/'1. Cost of Service_parameters'!G47-'2. MIST Meters Assets_Rate Base'!G72/'1. Cost of Service_parameters'!G47/2 -> 0 | I78: =-I71/'1. Cost of Service_parameters'!I47-'2. MIST Meters Assets_Rate Base'!I72/'1. Cost of Service_parameters'!I47/2 -> 0 | K78: =-K71/'1. Cost of Service_parameters'!K47-'2. MIST Meters Assets_Rate Base'!K72/'1. Cost of Service_parameters'!K47/2 -> 0 | M78: =-M71/'1. Cost of Service_parameters'!M47-'2. MIST Meters Assets_Rate Base'!M72/'1. Cost of Service_parameters'!M47/2 -> 0 | O78: =-O71/'1. Cost of Service_parameters'!O47-'2. MIST Meters Assets_Rate Base'!O72/'1. Cost of Service_parameters'!O47/2 -> 0 | Q78: =-Q71/'1. Cost of Service_parameters'!Q47-'2. MIST Meters Assets_Rate Base'!Q72/'1. Cost of Service_parameters'!Q47/2 -> 0 | S78: =-S71/'1. Cost of Service_parameters'!S47-'2. MIST Meters Assets_Rate Base'!S72/'1. Cost of Service_parameters'!S47/2 -> 0 | U78: =-U71/'1. Cost of Service_parameters'!U47-'2. MIST Meters Assets_Rate Base'!U72/'1. Cost of Service_parameters'!U47/2 -> 0 | W78: =-W71/'1. Cost of Service_parameters'!W47-'2. MIST Meters Assets_Rate Base'!W72/'1. Cost of Service_parameters'!W47/2 -> 0 | Y78: =-Y71/'1. Cost of Service_parameters'!Y47-'2. MIST Meters Assets_Rate Base'!Y72/'1. Cost of Service_parameters'!Y47/2 -> 0 | AA78: =-AA71/'1. Cost of Service_parameters'!AA47-'2. MIST Meters Assets_Rate Base'!AA72/'1. Cost of Service_parameters'!AA47/2 -> 0 | AC78: =-AC71/'1. Cost of Service_parameters'!AC47-'2. MIST Meters Assets_Rate Base'!AC72/'1. Cost of Service_parameters'!AC47/2 -> 0
D79: Retirements/Removals (if applicable)
D80: Closing Balance | E80: =E77+E78-E79 -> 0 | G80: =G77+G78-G79 -> 0 | I80: =I77+I78-I79 -> 0 | K80: =K77+K78-K79 -> 0 | M80: =M77+M78-M79 -> 0 | O80: =O77+O78-O79 -> 0 | Q80: =Q77+Q78-Q79 -> 0 | S80: =S77+S78-S79 -> 0 | U80: =U77+U78-U79 -> 0 | W80: =W77+W78-W79 -> 0 | Y80: =Y77+Y78-Y79 -> 0 | AA80: =AA77+AA78-AA79 -> 0 | AC80: =AC77+AC78-AC79 -> 0
C82: Net Book Value
D83: Opening Balance | E83: =E71+E77 -> 0 | G83: =E84 -> 0 | I83: =G84 -> 0 | K83: =I84 -> 0 | M83: =K84 -> 0 | O83: =M84 -> 0 | Q83: =O84 -> 0 | S83: =Q84 -> 0 | U83: =S84 -> 0 | W83: =U84 -> 0 | Y83: =W84 -> 0 | AA83: =Y84 -> 0 | AC83: =AA84 -> 0
D84: Closing Balance | E84: =E74+E80 -> 0 | G84: =G74+G80 -> 0 | I84: =I74+I80 -> 0 | K84: =K74+K80 -> 0 | M84: =M74+M80 -> 0 | O84: =O74+O80 -> 0 | Q84: =Q74+Q80 -> 0 | S84: =S74+S80 -> 0 | U84: =U74+U80 -> 0 | W84: =W74+W80 -> 0 | Y84: =Y74+Y80 -> 0 | AA84: =AA74+AA80 -> 0 | AC84: =AC74+AC80 -> 0
D85: Net Fixed Assets (NFA) | E85: =AVERAGE(E83:E84) -> 0 | G85: =AVERAGE(G83:G84) -> 0 | I85: =AVERAGE(I83:I84) -> 0 | K85: =AVERAGE(K83:K84) -> 0 | M85: =AVERAGE(M83:M84) -> 0 | O85: =AVERAGE(O83:O84) -> 0 | Q85: =AVERAGE(Q83:Q84) -> 0 | S85: =AVERAGE(S83:S84) -> 0 | U85: =AVERAGE(U83:U84) -> 0 | W85: =AVERAGE(W83:W84) -> 0 | Y85: =AVERAGE(Y83:Y84) -> 0 | AA85: =AVERAGE(AA83:AA84) -> 0 | AC85: =AVERAGE(AC83:AC84) -> 0
B87: Net Fixed Assets - 1921
C89: Gross Book Value
D90: Opening Balance | G90: =E93 -> 0 | I90: =G93 -> 0 | K90: =I93 -> 0 | M90: =K93 -> 0 | O90: =M93 -> 0 | Q90: =O93 -> 0 | S90: =Q93 -> 0 | U90: =S93 -> 0 | W90: =U93 -> 0 | Y90: =W93 -> 0 | AA90: =Y93 -> 0 | AC90: =AA93 -> 0
D91: Capital Additions during year (from ICM Costs) | G91: 0 | I91: 0 | K91: 0 | M91: 0 | O91: 0 | Q91: 0 | S91: 0 | U91: 0 | W91: 0 | Y91: 0 | AA91: 0 | AC91: 0
D92: Retirements/Removals (if applicable)
D93: Closing Balance | E93: =E90+E91-E92 -> 0 | G93: =G90+G91-G92 -> 0 | I93: =I90+I91-I92 -> 0 | K93: =K90+K91-K92 -> 0 | M93: =M90+M91-M92 -> 0 | O93: =O90+O91-O92 -> 0 | Q93: =Q90+Q91-Q92 -> 0 | S93: =S90+S91-S92 -> 0 | U93: =U90+U91-U92 -> 0 | W93: =W90+W91-W92 -> 0 | Y93: =Y90+Y91-Y92 -> 0 | AA93: =AA90+AA91-AA92 -> 0 | AC93: =AC90+AC91-AC92 -> 0
C95: Accumulated Depreciation
D96: Opening Balance | G96: =E99 -> 0 | I96: =G99 -> 0 | K96: =I99 -> 0 | M96: =K99 -> 0 | O96: =M99 -> 0 | Q96: =O99 -> 0 | S96: =Q99 -> 0 | U96: =S99 -> 0 | W96: =U99 -> 0 | Y96: =W99 -> 0 | AA96: =Y99 -> 0 | AC96: =AA99 -> 0
D97: Amortization expense during year | E97: =-E91/'1. Cost of Service_parameters'!G50/2 -> 0 | G97: =-G90/'1. Cost of Service_parameters'!G50 -> 0 | I97: =-I90/'1. Cost of Service_parameters'!I50 -> 0 | K97: =-K90/'1. Cost of Service_parameters'!K50 -> 0 | M97: =-M90/'1. Cost of Service_parameters'!M50 -> 0 | O97: =-O90/'1. Cost of Service_parameters'!O50 -> 0 | Q97: =-Q90/'1. Cost of Service_parameters'!Q50 -> 0 | S97: =-S90/'1. Cost of Service_parameters'!S50 -> 0 | U97: =-U90/'1. Cost of Service_parameters'!U50 -> 0 | W97: =-W90/'1. Cost of Service_parameters'!W50 -> 0 | Y97: =-Y90/'1. Cost of Service_parameters'!Y50 -> 0 | AA97: =-AA90/'1. Cost of Service_parameters'!AA50 -> 0 | AC97: =-AC90/'1. Cost of Service_parameters'!AC50 -> 0
D98: Retirements/Removals (if applicable)
D99: Closing Balance | E99: =E96+E97-E98 -> 0 | G99: =G96+G97-G98 -> 0 | I99: =I96+I97-I98 -> 0 | K99: =K96+K97-K98 -> 0 | M99: =M96+M97-M98 -> 0 | O99: =O96+O97-O98 -> 0 | Q99: =Q96+Q97-Q98 -> 0 | S99: =S96+S97-S98 -> 0 | U99: =U96+U97-U98 -> 0 | W99: =W96+W97-W98 -> 0 | Y99: =Y96+Y97-Y98 -> 0 | AA99: =AA96+AA97-AA98 -> 0 | AC99: =AC96+AC97-AC98 -> 0
C101: Net Book Value
D102: Opening Balance | E102: =E90+E96 -> 0 | G102: =E103 -> 0 | I102: =G103 -> 0 | K102: =I103 -> 0 | M102: =K103 -> 0 | O102: =M103 -> 0 | Q102: =O103 -> 0 | S102: =Q103 -> 0 | U102: =S103 -> 0 | W102: =U103 -> 0 | Y102: =W103 -> 0 | AA102: =Y103 -> 0 | AC102: =AA103 -> 0
D103: Closing Balance | E103: =E93+E99 -> 0 | G103: =G93+G99 -> 0 | I103: =I93+I99 -> 0 | K103: =K93+K99 -> 0 | M103: =M93+M99 -> 0 | O103: =O93+O99 -> 0 | Q103: =Q93+Q99 -> 0 | S103: =S93+S99 -> 0 | U103: =U93+U99 -> 0 | W103: =W93+W99 -> 0 | Y103: =Y93+Y99 -> 0 | AA103: =AA93+AA99 -> 0 | AC103: =AC93+AC99 -> 0
D104: Net Fixed Assets (NFA) | E104: =AVERAGE(E102:E103) -> 0 | G104: =AVERAGE(G102:G103) -> 0 | I104: =AVERAGE(I102:I103) -> 0 | K104: =AVERAGE(K102:K103) -> 0 | M104: =AVERAGE(M102:M103) -> 0 | O104: =AVERAGE(O102:O103) -> 0 | Q104: =AVERAGE(Q102:Q103) -> 0 | S104: =AVERAGE(S102:S103) -> 0 | U104: =AVERAGE(U102:U103) -> 0 | W104: =AVERAGE(W102:W103) -> 0 | Y104: =AVERAGE(Y102:Y103) -> 0 | AA104: =AVERAGE(AA102:AA103) -> 0 | AC104: =AVERAGE(AC102:AC103) -> 0
B106: Net Fixed Assets - 1935
C108: Gross Book Value
D109: Opening Balance | G109: =E112 -> 0 | I109: =G112 -> 0 | K109: =I112 -> 0 | M109: =K112 -> 0 | O109: =M112 -> 0 | Q109: =O112 -> 0 | S109: =Q112 -> 0 | U109: =S112 -> 0 | W109: =U112 -> 0 | Y109: =W112 -> 0 | AA109: =Y112 -> 0 | AC109: =AA112 -> 0
D110: Capital Additions during year (from ICM Costs)
D111: Retirements/Removals (if applicable)
D112: Closing Balance | E112: =E109+E110-E111 -> 0 | G112: =G109+G110-G111 -> 0 | I112: =I109+I110-I111 -> 0 | K112: =K109+K110-K111 -> 0 | M112: =M109+M110-M111 -> 0 | O112: =O109+O110-O111 -> 0 | Q112: =Q109+Q110-Q111 -> 0 | S112: =S109+S110-S111 -> 0 | U112: =U109+U110-U111 -> 0 | W112: =W109+W110-W111 -> 0 | Y112: =Y109+Y110-Y111 -> 0 | AA112: =AA109+AA110-AA111 -> 0 | AC112: =AC109+AC110-AC111 -> 0
C114: Accumulated Depreciation
D115: Opening Balance | G115: =E118 -> 0 | I115: =G118 -> 0 | K115: =I118 -> 0 | M115: =K118 -> 0 | O115: =M118 -> 0 | Q115: =O118 -> 0 | S115: =Q118 -> 0 | U115: =S118 -> 0 | W115: =U118 -> 0 | Y115: =W118 -> 0 | AA115: =Y118 -> 0 | AC115: =AA118 -> 0
D116: Amortization expense during year | E116: =-E110/'1. Cost of Service_parameters'!G53/2 -> 0 | G116: =-G109/'1. Cost of Service_parameters'!G53-'2. MIST Meters Assets_Rate Base'!G110/'1. Cost of Service_parameters'!G53/2 -> 0 | I116: =-I109/'1. Cost of Service_parameters'!I53-'2. MIST Meters Assets_Rate Base'!I110/'1. Cost of Service_parameters'!I53/2 -> 0 | K116: =-K109/'1. Cost of Service_parameters'!K53-'2. MIST Meters Assets_Rate Base'!K110/'1. Cost of Service_parameters'!K53/2 -> 0 | M116: =-M109/'1. Cost of Service_parameters'!M53-'2. MIST Meters Assets_Rate Base'!M110/'1. Cost of Service_parameters'!M53/2 -> 0 | O116: =-O109/'1. Cost of Service_parameters'!O53-'2. MIST Meters Assets_Rate Base'!O110/'1. Cost of Service_parameters'!O53/2 -> 0 | Q116: =-Q109/'1. Cost of Service_parameters'!Q53-'2. MIST Meters Assets_Rate Base'!Q110/'1. Cost of Service_parameters'!Q53/2 -> 0 | S116: =-S109/'1. Cost of Service_parameters'!S53-'2. MIST Meters Assets_Rate Base'!S110/'1. Cost of Service_parameters'!S53/2 -> 0 | U116: =-U109/'1. Cost of Service_parameters'!U53-'2. MIST Meters Assets_Rate Base'!U110/'1. Cost of Service_parameters'!U53/2 -> 0 | W116: =-W109/'1. Cost of Service_parameters'!W53-'2. MIST Meters Assets_Rate Base'!W110/'1. Cost of Service_parameters'!W53/2 -> 0 | Y116: =-Y109/'1. Cost of Service_parameters'!Y53-'2. MIST Meters Assets_Rate Base'!Y110/'1. Cost of Service_parameters'!Y53/2 -> 0 | AA116: =-AA109/'1. Cost of Service_parameters'!AA53-'2. MIST Meters Assets_Rate Base'!AA110/'1. Cost of Service_parameters'!AA53/2 -> 0 | AC116: =-AC109/'1. Cost of Service_parameters'!AC53-'2. MIST Meters Assets_Rate Base'!AC110/'1. Cost of Service_parameters'!AC53/2 -> 0
D117: Retirements/Removals (if applicable)
D118: Closing Balance | E118: =E115+E116-E117 -> 0 | G118: =G115+G116-G117 -> 0 | I118: =I115+I116-I117 -> 0 | K118: =K115+K116-K117 -> 0 | M118: =M115+M116-M117 -> 0 | O118: =O115+O116-O117 -> 0 | Q118: =Q115+Q116-Q117 -> 0 | S118: =S115+S116-S117 -> 0 | U118: =U115+U116-U117 -> 0 | W118: =W115+W116-W117 -> 0 | Y118: =Y115+Y116-Y117 -> 0 | AA118: =AA115+AA116-AA117 -> 0 | AC118: =AC115+AC116-AC117 -> 0
C120: Net Book Value
D121: Opening Balance | E121: =E109+E115 -> 0 | G121: =E122 -> 0 | I121: =G122 -> 0 | K121: =I122 -> 0 | M121: =K122 -> 0 | O121: =M122 -> 0 | Q121: =O122 -> 0 | S121: =Q122 -> 0 | U121: =S122 -> 0 | W121: =U122 -> 0 | Y121: =W122 -> 0 | AA121: =Y122 -> 0 | AC121: =AA122 -> 0
D122: Closing Balance | E122: =E112+E118 -> 0 | G122: =G112+G118 -> 0 | I122: =I112+I118 -> 0 | K122: =K112+K118 -> 0 | M122: =M112+M118 -> 0 | O122: =O112+O118 -> 0 | Q122: =Q112+Q118 -> 0 | S122: =S112+S118 -> 0 | U122: =U112+U118 -> 0 | W122: =W112+W118 -> 0 | Y122: =Y112+Y118 -> 0 | AA122: =AA112+AA118 -> 0 | AC122: =AC112+AC118 -> 0
D123: Net Fixed Assets (NFA) | E123: =AVERAGE(E121:E122) -> 0 | G123: =AVERAGE(G121:G122) -> 0 | I123: =AVERAGE(I121:I122) -> 0 | K123: =AVERAGE(K121:K122) -> 0 | M123: =AVERAGE(M121:M122) -> 0 | O123: =AVERAGE(O121:O122) -> 0 | Q123: =AVERAGE(Q121:Q122) -> 0 | S123: =AVERAGE(S121:S122) -> 0 | U123: =AVERAGE(U121:U122) -> 0 | W123: =AVERAGE(W121:W122) -> 0 | Y123: =AVERAGE(Y121:Y122) -> 0 | AA123: =AVERAGE(AA121:AA122) -> 0 | AC123: =AVERAGE(AC121:AC122) -> 0
B125: Net Fixed Assets - 1926
C127: Gross Book Value
D128: Opening Balance | G128: =E131 -> 0 | I128: =G131 -> 0 | K128: =I131 -> 0 | M128: =K131 -> 0 | O128: =M131 -> 0 | Q128: =O131 -> 0 | S128: =Q131 -> 0 | U128: =S131 -> 0 | W128: =U131 -> 0 | Y128: =W131 -> 0 | AA128: =Y131 -> 0 | AC128: =AA131 -> 0
D129: Capital Additions during year (from ICM Costs) | G129: 0 | I129: 0 | K129: 0 | M129: 0 | O129: 0 | Q129: 0 | S129: 0 | U129: 0 | W129: 0 | Y129: 0 | AA129: 0 | AC129: 0
D130: Retirements/Removals (if applicable)
D131: Closing Balance | E131: =E128+E129-E130 -> 0 | G131: =G128+G129-G130 -> 0 | I131: =I128+I129-I130 -> 0 | K131: =K128+K129-K130 -> 0 | M131: =M128+M129-M130 -> 0 | O131: =O128+O129-O130 -> 0 | Q131: =Q128+Q129-Q130 -> 0 | S131: =S128+S129-S130 -> 0 | U131: =U128+U129-U130 -> 0 | W131: =W128+W129-W130 -> 0 | Y131: =Y128+Y129-Y130 -> 0 | AA131: =AA128+AA129-AA130 -> 0 | AC131: =AC128+AC129-AC130 -> 0
C133: Accumulated Depreciation
D134: Opening Balance | G134: =E137 -> 0 | I134: =G137 -> 0 | K134: =I137 -> 0 | M134: =K137 -> 0 | O134: =M137 -> 0 | Q134: =O137 -> 0 | S134: =Q137 -> 0 | U134: =S137 -> 0 | W134: =U137 -> 0 | Y134: =W137 -> 0 | AA134: =Y137 -> 0 | AC134: =AA137 -> 0
D135: Amortization expense during year | E135: =-E129/'1. Cost of Service_parameters'!G56/2 -> 0 | G135: =-G128/'1. Cost of Service_parameters'!G56 -> 0 | I135: =-I128/'1. Cost of Service_parameters'!I56 -> 0 | K135: =-K128/'1. Cost of Service_parameters'!K56 -> 0 | M135: =-M128/'1. Cost of Service_parameters'!M56 -> 0 | O135: =-O128/'1. Cost of Service_parameters'!O56 -> 0 | Q135: =-Q128/'1. Cost of Service_parameters'!Q56 -> 0 | S135: =-S128/'1. Cost of Service_parameters'!S56 -> 0 | U135: =-U128/'1. Cost of Service_parameters'!U56 -> 0 | W135: =-W128/'1. Cost of Service_parameters'!W56 -> 0 | Y135: =-Y128/'1. Cost of Service_parameters'!Y56 -> 0 | AA135: =-AA128/'1. Cost of Service_parameters'!AA56 -> 0 | AC135: =-AC128/'1. Cost of Service_parameters'!AC56 -> 0
D136: Retirements/Removals (if applicable)
D137: Closing Balance | E137: =E134+E135-E136 -> 0 | G137: =G134+G135-G136 -> 0 | I137: =I134+I135-I136 -> 0 | K137: =K134+K135-K136 -> 0 | M137: =M134+M135-M136 -> 0 | O137: =O134+O135-O136 -> 0 | Q137: =Q134+Q135-Q136 -> 0 | S137: =S134+S135-S136 -> 0 | U137: =U134+U135-U136 -> 0 | W137: =W134+W135-W136 -> 0 | Y137: =Y134+Y135-Y136 -> 0 | AA137: =AA134+AA135-AA136 -> 0 | AC137: =AC134+AC135-AC136 -> 0
C139: Net Book Value
D140: Opening Balance | E140: =E128+E134 -> 0 | G140: =E141 -> 0 | I140: =G141 -> 0 | K140: =I141 -> 0 | M140: =K141 -> 0 | O140: =M141 -> 0 | Q140: =O141 -> 0 | S140: =Q141 -> 0 | U140: =S141 -> 0 | W140: =U141 -> 0 | Y140: =W141 -> 0 | AA140: =Y141 -> 0 | AC140: =AA141 -> 0
D141: Closing Balance | E141: =E131+E137 -> 0 | G141: =G131+G137 -> 0 | I141: =I131+I137 -> 0 | K141: =K131+K137 -> 0 | M141: =M131+M137 -> 0 | O141: =O131+O137 -> 0 | Q141: =Q131+Q137 -> 0 | S141: =S131+S137 -> 0 | U141: =U131+U137 -> 0 | W141: =W131+W137 -> 0 | Y141: =Y131+Y137 -> 0 | AA141: =AA131+AA137 -> 0 | AC141: =AC131+AC137 -> 0
D142: Net Fixed Assets (NFA) | E142: =AVERAGE(E140:E141) -> 0 | G142: =AVERAGE(G140:G141) -> 0 | I142: =AVERAGE(I140:I141) -> 0 | K142: =AVERAGE(K140:K141) -> 0 | M142: =AVERAGE(M140:M141) -> 0 | O142: =AVERAGE(O140:O141) -> 0 | Q142: =AVERAGE(Q140:Q141) -> 0 | S142: =AVERAGE(S140:S141) -> 0 | U142: =AVERAGE(U140:U141) -> 0 | W142: =AVERAGE(W140:W141) -> 0 | Y142: =AVERAGE(Y140:Y141) -> 0 | AA142: =AVERAGE(AA140:AA141) -> 0 | AC142: =AVERAGE(AC140:AC141) -> 0
B144: Net Fixed Assets - 1862
C146: Gross Book Value
D147: Opening Balance | G147: =E150 -> 0 | I147: =G150 -> 0 | K147: =I150 -> 0 | M147: =K150 -> 0 | O147: =M150 -> 0 | Q147: =O150 -> 0 | S147: =Q150 -> 0 | U147: =S150 -> 0 | W147: =U150 -> 0 | Y147: =W150 -> 0 | AA147: =Y150 -> 0 | AC147: =AA150 -> 0
D148: Capital Additions during year (from ICM Costs) | G148: 0 | I148: 0 | K148: 0 | M148: 0 | O148: 0 | Q148: 0 | S148: 0 | U148: 0 | W148: 0 | Y148: 0 | AA148: 0 | AC148: 0
D149: Retirements/Removals (if applicable)
D150: Closing Balance | E150: =E147+E148-E149 -> 0 | G150: =G147+G148-G149 -> 0 | I150: =I147+I148-I149 -> 0 | K150: =K147+K148-K149 -> 0 | M150: =M147+M148-M149 -> 0 | O150: =O147+O148-O149 -> 0 | Q150: =Q147+Q148-Q149 -> 0 | S150: =S147+S148-S149 -> 0 | U150: =U147+U148-U149 -> 0 | W150: =W147+W148-W149 -> 0 | Y150: =Y147+Y148-Y149 -> 0 | AA150: =AA147+AA148-AA149 -> 0 | AC150: =AC147+AC148-AC149 -> 0
C152: Accumulated Depreciation
D153: Opening Balance | G153: =E156 -> 0 | I153: =G156 -> 0 | K153: =I156 -> 0 | M153: =K156 -> 0 | O153: =M156 -> 0 | Q153: =O156 -> 0 | S153: =Q156 -> 0 | U153: =S156 -> 0 | W153: =U156 -> 0 | Y153: =W156 -> 0 | AA153: =Y156 -> 0 | AC153: =AA156 -> 0
D154: Amortization expense during year | E154: =-E148/'1. Cost of Service_parameters'!G59/2 -> 0 | G154: =-G147/'1. Cost of Service_parameters'!G59 -> 0 | I154: =-I147/'1. Cost of Service_parameters'!I59 -> 0 | K154: =-K147/'1. Cost of Service_parameters'!K59 -> 0 | M154: =-M147/'1. Cost of Service_parameters'!M59 -> 0 | O154: =-O147/'1. Cost of Service_parameters'!O59 -> 0 | Q154: =-Q147/'1. Cost of Service_parameters'!Q59 -> 0 | S154: =-S147/'1. Cost of Service_parameters'!S59 -> 0 | U154: =-U147/'1. Cost of Service_parameters'!U59 -> 0 | W154: =-W147/'1. Cost of Service_parameters'!W59 -> 0 | Y154: =-Y147/'1. Cost of Service_parameters'!Y59 -> 0 | AA154: =-AA147/'1. Cost of Service_parameters'!AA59 -> 0 | AC154: =-AC147/'1. Cost of Service_parameters'!AC59 -> 0
D155: Retirements/Removals (if applicable)
D156: Closing Balance | E156: =E153+E154-E155 -> 0 | G156: =G153+G154-G155 -> 0 | I156: =I153+I154-I155 -> 0 | K156: =K153+K154-K155 -> 0 | M156: =M153+M154-M155 -> 0 | O156: =O153+O154-O155 -> 0 | Q156: =Q153+Q154-Q155 -> 0 | S156: =S153+S154-S155 -> 0 | U156: =U153+U154-U155 -> 0 | W156: =W153+W154-W155 -> 0 | Y156: =Y153+Y154-Y155 -> 0 | AA156: =AA153+AA154-AA155 -> 0 | AC156: =AC153+AC154-AC155 -> 0
C158: Net Book Value
D159: Opening Balance | E159: =E147+E153 -> 0 | G159: =E160 -> 0 | I159: =G160 -> 0 | K159: =I160 -> 0 | M159: =K160 -> 0 | O159: =M160 -> 0 | Q159: =O160 -> 0 | S159: =Q160 -> 0 | U159: =S160 -> 0 | W159: =U160 -> 0 | Y159: =W160 -> 0 | AA159: =Y160 -> 0 | AC159: =AA160 -> 0
D160: Closing Balance | E160: =E150+E156 -> 0 | G160: =G150+G156 -> 0 | I160: =I150+I156 -> 0 | K160: =K150+K156 -> 0 | M160: =M150+M156 -> 0 | O160: =O150+O156 -> 0 | Q160: =Q150+Q156 -> 0 | S160: =S150+S156 -> 0 | U160: =U150+U156 -> 0 | W160: =W150+W156 -> 0 | Y160: =Y150+Y156 -> 0 | AA160: =AA150+AA156 -> 0 | AC160: =AC150+AC156 -> 0
D161: Net Fixed Assets (NFA) | E161: =AVERAGE(E159:E160) -> 0 | G161: =AVERAGE(G159:G160) -> 0 | I161: =AVERAGE(I159:I160) -> 0 | K161: =AVERAGE(K159:K160) -> 0 | M161: =AVERAGE(M159:M160) -> 0 | O161: =AVERAGE(O159:O160) -> 0 | Q161: =AVERAGE(Q159:Q160) -> 0 | S161: =AVERAGE(S159:S160) -> 0 | U161: =AVERAGE(U159:U160) -> 0 | W161: =AVERAGE(W159:W160) -> 0 | Y161: =AVERAGE(Y159:Y160) -> 0 | AA161: =AVERAGE(AA159:AA160) -> 0 | AC161: =AVERAGE(AC159:AC160) -> 0
B163: Net Fixed Assets - 1924
C165: Gross Book Value
D166: Opening Balance | G166: =E169 -> 0 | I166: =G169 -> 0 | K166: =I169 -> 0 | M166: =K169 -> 0 | O166: =M169 -> 0 | Q166: =O169 -> 0 | S166: =Q169 -> 0 | U166: =S169 -> 0 | W166: =U169 -> 0 | Y166: =W169 -> 0 | AA166: =Y169 -> 0 | AC166: =AA169 -> 0
D167: Capital Additions during year (from ICM Costs)
D168: Retirements/Removals (if applicable)
D169: Closing Balance | E169: =E166+E167-E168 -> 0 | G169: =G166+G167-G168 -> 0 | I169: =I166+I167-I168 -> 0 | K169: =K166+K167-K168 -> 0 | M169: =M166+M167-M168 -> 0 | O169: =O166+O167-O168 -> 0 | Q169: =Q166+Q167-Q168 -> 0 | S169: =S166+S167-S168 -> 0 | U169: =U166+U167-U168 -> 0 | W169: =W166+W167-W168 -> 0 | Y169: =Y166+Y167-Y168 -> 0 | AA169: =AA166+AA167-AA168 -> 0 | AC169: =AC166+AC167-AC168 -> 0
C171: Accumulated Depreciation
D172: Opening Balance | G172: =E175 -> 0 | I172: =G175 -> 0 | K172: =I175 -> 0 | M172: =K175 -> 0 | O172: =M175 -> 0 | Q172: =O175 -> 0 | S172: =Q175 -> 0 | U172: =S175 -> 0 | W172: =U175 -> 0 | Y172: =W175 -> 0 | AA172: =Y175 -> 0 | AC172: =AA175 -> 0
D173: Amortization expense during year | E173: =-E167/'1. Cost of Service_parameters'!G62/2 -> 0 | G173: =-G166/'1. Cost of Service_parameters'!G62-'2. MIST Meters Assets_Rate Base'!G167/'1. Cost of Service_parameters'!G62/2 -> 0 | I173: =-I166/'1. Cost of Service_parameters'!I62-'2. MIST Meters Assets_Rate Base'!I167/'1. Cost of Service_parameters'!I62/2 -> 0 | K173: =-K166/'1. Cost of Service_parameters'!K62-'2. MIST Meters Assets_Rate Base'!K167/'1. Cost of Service_parameters'!K62/2 -> 0 | M173: =-M166/'1. Cost of Service_parameters'!M62-'2. MIST Meters Assets_Rate Base'!M167/'1. Cost of Service_parameters'!M62/2 -> 0 | O173: =-O166/'1. Cost of Service_parameters'!O62-'2. MIST Meters Assets_Rate Base'!O167/'1. Cost of Service_parameters'!O62/2 -> 0 | Q173: =-Q166/'1. Cost of Service_parameters'!Q62-'2. MIST Meters Assets_Rate Base'!Q167/'1. Cost of Service_parameters'!Q62/2 -> 0 | S173: =-S166/'1. Cost of Service_parameters'!S62-'2. MIST Meters Assets_Rate Base'!S167/'1. Cost of Service_parameters'!S62/2 -> 0 | U173: =-U166/'1. Cost of Service_parameters'!U62-'2. MIST Meters Assets_Rate Base'!U167/'1. Cost of Service_parameters'!U62/2 -> 0 | W173: =-W166/'1. Cost of Service_parameters'!W62-'2. MIST Meters Assets_Rate Base'!W167/'1. Cost of Service_parameters'!W62/2 -> 0 | Y173: =-Y166/'1. Cost of Service_parameters'!Y62-'2. MIST Meters Assets_Rate Base'!Y167/'1. Cost of Service_parameters'!Y62/2 -> 0 | AA173: =-AA166/'1. Cost of Service_parameters'!AA62-'2. MIST Meters Assets_Rate Base'!AA167/'1. Cost of Service_parameters'!AA62/2 -> 0 | AC173: =-AC166/'1. Cost of Service_parameters'!AC62-'2. MIST Meters Assets_Rate Base'!AC167/'1. Cost of Service_parameters'!AC62/2 -> 0
D174: Retirements/Removals (if applicable)
D175: Closing Balance | E175: =E172+E173-E174 -> 0 | G175: =G172+G173-G174 -> 0 | I175: =I172+I173-I174 -> 0 | K175: =K172+K173-K174 -> 0 | M175: =M172+M173-M174 -> 0 | O175: =O172+O173-O174 -> 0 | Q175: =Q172+Q173-Q174 -> 0 | S175: =S172+S173-S174 -> 0 | U175: =U172+U173-U174 -> 0 | W175: =W172+W173-W174 -> 0 | Y175: =Y172+Y173-Y174 -> 0 | AA175: =AA172+AA173-AA174 -> 0 | AC175: =AC172+AC173-AC174 -> 0
C177: Net Book Value
D178: Opening Balance | E178: =E166+E172 -> 0 | G178: =E179 -> 0 | I178: =G179 -> 0 | K178: =I179 -> 0 | M178: =K179 -> 0 | O178: =M179 -> 0 | Q178: =O179 -> 0 | S178: =Q179 -> 0 | U178: =S179 -> 0 | W178: =U179 -> 0 | Y178: =W179 -> 0 | AA178: =Y179 -> 0 | AC178: =AA179 -> 0
D179: Closing Balance | E179: =E169+E175 -> 0 | G179: =G169+G175 -> 0 | I179: =I169+I175 -> 0 | K179: =K169+K175 -> 0 | M179: =M169+M175 -> 0 | O179: =O169+O175 -> 0 | Q179: =Q169+Q175 -> 0 | S179: =S169+S175 -> 0 | U179: =U169+U175 -> 0 | W179: =W169+W175 -> 0 | Y179: =Y169+Y175 -> 0 | AA179: =AA169+AA175 -> 0 | AC179: =AC169+AC175 -> 0
D180: Net Fixed Assets (NFA) | E180: =AVERAGE(E178:E179) -> 0 | G180: =AVERAGE(G178:G179) -> 0 | I180: =AVERAGE(I178:I179) -> 0 | K180: =AVERAGE(K178:K179) -> 0 | M180: =AVERAGE(M178:M179) -> 0 | O180: =AVERAGE(O178:O179) -> 0 | Q180: =AVERAGE(Q178:Q179) -> 0 | S180: =AVERAGE(S178:S179) -> 0 | U180: =AVERAGE(U178:U179) -> 0 | W180: =AVERAGE(W178:W179) -> 0 | Y180: =AVERAGE(Y178:Y179) -> 0 | AA180: =AVERAGE(AA178:AA179) -> 0 | AC180: =AVERAGE(AC178:AC179) -> 0
B183: Net Fixed Assets - 1850
C185: Gross Book Value
D186: Opening Balance | G186: =E189 -> 0 | I186: =G189 -> 0 | K186: =I189 -> 0 | M186: =K189 -> 0 | O186: =M189 -> 0 | Q186: =O189 -> 0 | S186: =Q189 -> 0 | U186: =S189 -> 0 | W186: =U189 -> 0 | Y186: =W189 -> 0 | AA186: =Y189 -> 0 | AC186: =AA189 -> 0
D187: Capital Additions during year (from ICM Costs)
D188: Retirements/Removals (if applicable)
D189: Closing Balance | E189: =E186+E187-E188 -> 0 | G189: =G186+G187-G188 -> 0 | I189: =I186+I187-I188 -> 0 | K189: =K186+K187-K188 -> 0 | M189: =M186+M187-M188 -> 0 | O189: =O186+O187-O188 -> 0 | Q189: =Q186+Q187-Q188 -> 0 | S189: =S186+S187-S188 -> 0 | U189: =U186+U187-U188 -> 0 | W189: =W186+W187-W188 -> 0 | Y189: =Y186+Y187-Y188 -> 0 | AA189: =AA186+AA187-AA188 -> 0 | AC189: =AC186+AC187-AC188 -> 0
C191: Accumulated Depreciation
D192: Opening Balance | G192: =E195 -> 0 | I192: =G195 -> 0 | K192: =I195 -> 0 | M192: =K195 -> 0 | O192: =M195 -> 0 | Q192: =O195 -> 0 | S192: =Q195 -> 0 | U192: =S195 -> 0 | W192: =U195 -> 0 | Y192: =W195 -> 0 | AA192: =Y195 -> 0 | AC192: =AA195 -> 0
D193: Amortization expense during year | E193: =-E187/'1. Cost of Service_parameters'!G65/2 -> 0 | G193: =-G186/'1. Cost of Service_parameters'!G65-'2. MIST Meters Assets_Rate Base'!G187/'1. Cost of Service_parameters'!G65/2 -> 0 | I193: =-I186/'1. Cost of Service_parameters'!I65-'2. MIST Meters Assets_Rate Base'!I187/'1. Cost of Service_parameters'!I65/2 -> 0 | K193: =-K186/'1. Cost of Service_parameters'!K65-'2. MIST Meters Assets_Rate Base'!K187/'1. Cost of Service_parameters'!K65/2 -> 0 | M193: =-M186/'1. Cost of Service_parameters'!M65-'2. MIST Meters Assets_Rate Base'!M187/'1. Cost of Service_parameters'!M65/2 -> 0 | O193: =-O186/'1. Cost of Service_parameters'!O65-'2. MIST Meters Assets_Rate Base'!O187/'1. Cost of Service_parameters'!O65/2 -> 0 | Q193: =-Q186/'1. Cost of Service_parameters'!Q65-'2. MIST Meters Assets_Rate Base'!Q187/'1. Cost of Service_parameters'!Q65/2 -> 0 | S193: =-S186/'1. Cost of Service_parameters'!S65-'2. MIST Meters Assets_Rate Base'!S187/'1. Cost of Service_parameters'!S65/2 -> 0 | U193: =-U186/'1. Cost of Service_parameters'!U65-'2. MIST Meters Assets_Rate Base'!U187/'1. Cost of Service_parameters'!U65/2 -> 0 | W193: =-W186/'1. Cost of Service_parameters'!W65-'2. MIST Meters Assets_Rate Base'!W187/'1. Cost of Service_parameters'!W65/2 -> 0 | Y193: =-Y186/'1. Cost of Service_parameters'!Y65-'2. MIST Meters Assets_Rate Base'!Y187/'1. Cost of Service_parameters'!Y65/2 -> 0 | AA193: =-AA186/'1. Cost of Service_parameters'!AA65-'2. MIST Meters Assets_Rate Base'!AA187/'1. Cost of Service_parameters'!AA65/2 -> 0 | AC193: =-AC186/'1. Cost of Service_parameters'!AC65-'2. MIST Meters Assets_Rate Base'!AC187/'1. Cost of Service_parameters'!AC65/2 -> 0
D194: Retirements/Removals (if applicable)
D195: Closing Balance | E195: =E192+E193-E194 -> 0 | G195: =G192+G193-G194 -> 0 | I195: =I192+I193-I194 -> 0 | K195: =K192+K193-K194 -> 0 | M195: =M192+M193-M194 -> 0 | O195: =O192+O193-O194 -> 0 | Q195: =Q192+Q193-Q194 -> 0 | S195: =S192+S193-S194 -> 0 | U195: =U192+U193-U194 -> 0 | W195: =W192+W193-W194 -> 0 | Y195: =Y192+Y193-Y194 -> 0 | AA195: =AA192+AA193-AA194 -> 0 | AC195: =AC192+AC193-AC194 -> 0
C197: Net Book Value
D198: Opening Balance | E198: =E186+E192 -> 0 | G198: =E199 -> 0 | I198: =G199 -> 0 | K198: =I199 -> 0 | M198: =K199 -> 0 | O198: =M199 -> 0 | Q198: =O199 -> 0 | S198: =Q199 -> 0 | U198: =S199 -> 0 | W198: =U199 -> 0 | Y198: =W199 -> 0 | AA198: =Y199 -> 0 | AC198: =AA199 -> 0
D199: Closing Balance | E199: =E189+E195 -> 0 | G199: =G189+G195 -> 0 | I199: =I189+I195 -> 0 | K199: =K189+K195 -> 0 | M199: =M189+M195 -> 0 | O199: =O189+O195 -> 0 | Q199: =Q189+Q195 -> 0 | S199: =S189+S195 -> 0 | U199: =U189+U195 -> 0 | W199: =W189+W195 -> 0 | Y199: =Y189+Y195 -> 0 | AA199: =AA189+AA195 -> 0 | AC199: =AC189+AC195 -> 0
D200: Net Fixed Assets (NFA) | E200: =AVERAGE(E198:E199) -> 0 | G200: =AVERAGE(G198:G199) -> 0 | I200: =AVERAGE(I198:I199) -> 0 | K200: =AVERAGE(K198:K199) -> 0 | M200: =AVERAGE(M198:M199) -> 0 | O200: =AVERAGE(O198:O199) -> 0 | Q200: =AVERAGE(Q198:Q199) -> 0 | S200: =AVERAGE(S198:S199) -> 0 | U200: =AVERAGE(U198:U199) -> 0 | W200: =AVERAGE(W198:W199) -> 0 | Y200: =AVERAGE(Y198:Y199) -> 0 | AA200: =AVERAGE(AA198:AA199) -> 0 | AC200: =AVERAGE(AC198:AC199) -> 0
B203: Net Fixed Assets - 1982
C205: Gross Book Value
D206: Opening Balance | G206: =E209 -> 0 | I206: =G209 -> 0 | K206: =I209 -> 0 | M206: =K209 -> 0 | O206: =M209 -> 0 | Q206: =O209 -> 0 | S206: =Q209 -> 0 | U206: =S209 -> 0 | W206: =U209 -> 0 | Y206: =W209 -> 0 | AA206: =Y209 -> 0 | AC206: =AA209 -> 0
D207: Capital Additions during year (from ICM Costs)
D208: Retirements/Removals (if applicable)
D209: Closing Balance | E209: =E206+E207-E208 -> 0 | G209: =G206+G207-G208 -> 0 | I209: =I206+I207-I208 -> 0 | K209: =K206+K207-K208 -> 0 | M209: =M206+M207-M208 -> 0 | O209: =O206+O207-O208 -> 0 | Q209: =Q206+Q207-Q208 -> 0 | S209: =S206+S207-S208 -> 0 | U209: =U206+U207-U208 -> 0 | W209: =W206+W207-W208 -> 0 | Y209: =Y206+Y207-Y208 -> 0 | AA209: =AA206+AA207-AA208 -> 0 | AC209: =AC206+AC207-AC208 -> 0
C211: Accumulated Depreciation
D212: Opening Balance | G212: =E215 -> 0 | I212: =G215 -> 0 | K212: =I215 -> 0 | M212: =K215 -> 0 | O212: =M215 -> 0 | Q212: =O215 -> 0 | S212: =Q215 -> 0 | U212: =S215 -> 0 | W212: =U215 -> 0 | Y212: =W215 -> 0 | AA212: =Y215 -> 0 | AC212: =AA215 -> 0
D213: Amortization expense during year | E213: =-E207/'1. Cost of Service_parameters'!G68/2 -> 0 | G213: =-G206/'1. Cost of Service_parameters'!G68-'2. MIST Meters Assets_Rate Base'!G207/'1. Cost of Service_parameters'!G68/2 -> 0 | I213: =-I206/'1. Cost of Service_parameters'!I68-'2. MIST Meters Assets_Rate Base'!I207/'1. Cost of Service_parameters'!I68/2 -> 0 | K213: =-K206/'1. Cost of Service_parameters'!K68-'2. MIST Meters Assets_Rate Base'!K207/'1. Cost of Service_parameters'!K68/2 -> 0 | M213: =-M206/'1. Cost of Service_parameters'!M68-'2. MIST Meters Assets_Rate Base'!M207/'1. Cost of Service_parameters'!M68/2 -> 0 | O213: =-O206/'1. Cost of Service_parameters'!O68-'2. MIST Meters Assets_Rate Base'!O207/'1. Cost of Service_parameters'!O68/2 -> 0 | Q213: =-Q206/'1. Cost of Service_parameters'!Q68-'2. MIST Meters Assets_Rate Base'!Q207/'1. Cost of Service_parameters'!Q68/2 -> 0 | S213: =-S206/'1. Cost of Service_parameters'!S68-'2. MIST Meters Assets_Rate Base'!S207/'1. Cost of Service_parameters'!S68/2 -> 0 | U213: =-U206/'1. Cost of Service_parameters'!U68-'2. MIST Meters Assets_Rate Base'!U207/'1. Cost of Service_parameters'!U68/2 -> 0 | W213: =-W206/'1. Cost of Service_parameters'!W68-'2. MIST Meters Assets_Rate Base'!W207/'1. Cost of Service_parameters'!W68/2 -> 0 | Y213: =-Y206/'1. Cost of Service_parameters'!Y68-'2. MIST Meters Assets_Rate Base'!Y207/'1. Cost of Service_parameters'!Y68/2 -> 0 | AA213: =-AA206/'1. Cost of Service_parameters'!AA68-'2. MIST Meters Assets_Rate Base'!AA207/'1. Cost of Service_parameters'!AA68/2 -> 0 | AC213: =-AC206/'1. Cost of Service_parameters'!AC68-'2. MIST Meters Assets_Rate Base'!AC207/'1. Cost of Service_parameters'!AC68/2 -> 0
D214: Retirements/Removals (if applicable)
D215: Closing Balance | E215: =E212+E213-E214 -> 0 | G215: =G212+G213-G214 -> 0 | I215: =I212+I213-I214 -> 0 | K215: =K212+K213-K214 -> 0 | M215: =M212+M213-M214 -> 0 | O215: =O212+O213-O214 -> 0 | Q215: =Q212+Q213-Q214 -> 0 | S215: =S212+S213-S214 -> 0 | U215: =U212+U213-U214 -> 0 | W215: =W212+W213-W214 -> 0 | Y215: =Y212+Y213-Y214 -> 0 | AA215: =AA212+AA213-AA214 -> 0 | AC215: =AC212+AC213-AC214 -> 0
C217: Net Book Value
D218: Opening Balance | E218: =E206+E212 -> 0 | G218: =E219 -> 0 | I218: =G219 -> 0 | K218: =I219 -> 0 | M218: =K219 -> 0 | O218: =M219 -> 0 | Q218: =O219 -> 0 | S218: =Q219 -> 0 | U218: =S219 -> 0 | W218: =U219 -> 0 | Y218: =W219 -> 0 | AA218: =Y219 -> 0 | AC218: =AA219 -> 0
D219: Closing Balance | E219: =E209+E215 -> 0 | G219: =G209+G215 -> 0 | I219: =I209+I215 -> 0 | K219: =K209+K215 -> 0 | M219: =M209+M215 -> 0 | O219: =O209+O215 -> 0 | Q219: =Q209+Q215 -> 0 | S219: =S209+S215 -> 0 | U219: =U209+U215 -> 0 | W219: =W209+W215 -> 0 | Y219: =Y209+Y215 -> 0 | AA219: =AA209+AA215 -> 0 | AC219: =AC209+AC215 -> 0
D220: Net Fixed Assets (NFA) | E220: =AVERAGE(E218:E219) -> 0 | G220: =AVERAGE(G218:G219) -> 0 | I220: =AVERAGE(I218:I219) -> 0 | K220: =AVERAGE(K218:K219) -> 0 | M220: =AVERAGE(M218:M219) -> 0 | O220: =AVERAGE(O218:O219) -> 0 | Q220: =AVERAGE(Q218:Q219) -> 0 | S220: =AVERAGE(S218:S219) -> 0 | U220: =AVERAGE(U218:U219) -> 0 | W220: =AVERAGE(W218:W219) -> 0 | Y220: =AVERAGE(Y218:Y219) -> 0 | AA220: =AVERAGE(AA218:AA219) -> 0 | AC220: =AVERAGE(AC218:AC219) -> 0
B223: Net Fixed Assets - 1955
C225: Gross Book Value
D226: Opening Balance | G226: =E229 -> 0 | I226: =G229 -> 0 | K226: =I229 -> 0 | M226: =K229 -> 0 | O226: =M229 -> 0 | Q226: =O229 -> 0 | S226: =Q229 -> 0 | U226: =S229 -> 0 | W226: =U229 -> 0 | Y226: =W229 -> 0 | AA226: =Y229 -> 0 | AC226: =AA229 -> 0
D227: Capital Additions during year (from ICM Costs)
D228: Retirements/Removals (if applicable)
D229: Closing Balance | E229: =E226+E227-E228 -> 0 | G229: =G226+G227-G228 -> 0 | I229: =I226+I227-I228 -> 0 | K229: =K226+K227-K228 -> 0 | M229: =M226+M227-M228 -> 0 | O229: =O226+O227-O228 -> 0 | Q229: =Q226+Q227-Q228 -> 0 | S229: =S226+S227-S228 -> 0 | U229: =U226+U227-U228 -> 0 | W229: =W226+W227-W228 -> 0 | Y229: =Y226+Y227-Y228 -> 0 | AA229: =AA226+AA227-AA228 -> 0 | AC229: =AC226+AC227-AC228 -> 0
C231: Accumulated Depreciation
D232: Opening Balance | G232: =E235 -> 0 | I232: =G235 -> 0 | K232: =I235 -> 0 | M232: =K235 -> 0 | O232: =M235 -> 0 | Q232: =O235 -> 0 | S232: =Q235 -> 0 | U232: =S235 -> 0 | W232: =U235 -> 0 | Y232: =W235 -> 0 | AA232: =Y235 -> 0 | AC232: =AA235 -> 0
D233: Amortization expense during year | E233: =-E227/'1. Cost of Service_parameters'!G71/2 -> 0 | G233: =-G226/'1. Cost of Service_parameters'!G71-'2. MIST Meters Assets_Rate Base'!G227/'1. Cost of Service_parameters'!G71/2 -> 0 | I233: =-I226/'1. Cost of Service_parameters'!I71-'2. MIST Meters Assets_Rate Base'!I227/'1. Cost of Service_parameters'!I71/2 -> 0 | K233: =-K226/'1. Cost of Service_parameters'!K71-'2. MIST Meters Assets_Rate Base'!K227/'1. Cost of Service_parameters'!K71/2 -> 0 | M233: =-M226/'1. Cost of Service_parameters'!M71-'2. MIST Meters Assets_Rate Base'!M227/'1. Cost of Service_parameters'!M71/2 -> 0 | O233: =-O226/'1. Cost of Service_parameters'!O71-'2. MIST Meters Assets_Rate Base'!O227/'1. Cost of Service_parameters'!O71/2 -> 0 | Q233: =-Q226/'1. Cost of Service_parameters'!Q71-'2. MIST Meters Assets_Rate Base'!Q227/'1. Cost of Service_parameters'!Q71/2 -> 0 | S233: =-S226/'1. Cost of Service_parameters'!S71-'2. MIST Meters Assets_Rate Base'!S227/'1. Cost of Service_parameters'!S71/2 -> 0 | U233: =-U226/'1. Cost of Service_parameters'!U71-'2. MIST Meters Assets_Rate Base'!U227/'1. Cost of Service_parameters'!U71/2 -> 0 | W233: =-W226/'1. Cost of Service_parameters'!W71-'2. MIST Meters Assets_Rate Base'!W227/'1. Cost of Service_parameters'!W71/2 -> 0 | Y233: =-Y226/'1. Cost of Service_parameters'!Y71-'2. MIST Meters Assets_Rate Base'!Y227/'1. Cost of Service_parameters'!Y71/2 -> 0 | AA233: =-AA226/'1. Cost of Service_parameters'!AA71-'2. MIST Meters Assets_Rate Base'!AA227/'1. Cost of Service_parameters'!AA71/2 -> 0 | AC233: =-AC226/'1. Cost of Service_parameters'!AC71-'2. MIST Meters Assets_Rate Base'!AC227/'1. Cost of Service_parameters'!AC71/2 -> 0
D234: Retirements/Removals (if applicable)
D235: Closing Balance | E235: =E232+E233-E234 -> 0 | G235: =G232+G233-G234 -> 0 | I235: =I232+I233-I234 -> 0 | K235: =K232+K233-K234 -> 0 | M235: =M232+M233-M234 -> 0 | O235: =O232+O233-O234 -> 0 | Q235: =Q232+Q233-Q234 -> 0 | S235: =S232+S233-S234 -> 0 | U235: =U232+U233-U234 -> 0 | W235: =W232+W233-W234 -> 0 | Y235: =Y232+Y233-Y234 -> 0 | AA235: =AA232+AA233-AA234 -> 0 | AC235: =AC232+AC233-AC234 -> 0
C237: Net Book Value
D238: Opening Balance | E238: =E226+E232 -> 0 | G238: =E239 -> 0 | I238: =G239 -> 0 | K238: =I239 -> 0 | M238: =K239 -> 0 | O238: =M239 -> 0 | Q238: =O239 -> 0 | S238: =Q239 -> 0 | U238: =S239 -> 0 | W238: =U239 -> 0 | Y238: =W239 -> 0 | AA238: =Y239 -> 0 | AC238: =AA239 -> 0
D239: Closing Balance | E239: =E229+E235 -> 0 | G239: =G229+G235 -> 0 | I239: =I229+I235 -> 0 | K239: =K229+K235 -> 0 | M239: =M229+M235 -> 0 | O239: =O229+O235 -> 0 | Q239: =Q229+Q235 -> 0 | S239: =S229+S235 -> 0 | U239: =U229+U235 -> 0 | W239: =W229+W235 -> 0 | Y239: =Y229+Y235 -> 0 | AA239: =AA229+AA235 -> 0 | AC239: =AC229+AC235 -> 0
D240: Net Fixed Assets (NFA) | E240: =AVERAGE(E238:E239) -> 0 | G240: =AVERAGE(G238:G239) -> 0 | I240: =AVERAGE(I238:I239) -> 0 | K240: =AVERAGE(K238:K239) -> 0 | M240: =AVERAGE(M238:M239) -> 0 | O240: =AVERAGE(O238:O239) -> 0 | Q240: =AVERAGE(Q238:Q239) -> 0 | S240: =AVERAGE(S238:S239) -> 0 | U240: =AVERAGE(U238:U239) -> 0 | W240: =AVERAGE(W238:W239) -> 0 | Y240: =AVERAGE(Y238:Y239) -> 0 | AA240: =AVERAGE(AA238:AA239) -> 0 | AC240: =AVERAGE(AC238:AC239) -> 0
B243: Net Fixed Assets -
C245: Gross Book Value
D246: Opening Balance | G246: =E249 -> 0 | I246: =G249 -> 0 | K246: =I249 -> 0 | M246: =K249 -> 0 | O246: =M249 -> 0 | Q246: =O249 -> 0 | S246: =Q249 -> 0 | U246: =S249 -> 0 | W246: =U249 -> 0 | Y246: =W249 -> 0 | AA246: =Y249 -> 0 | AC246: =AA249 -> 0
D247: Capital Additions during year (from ICM Costs)
D248: Retirements/Removals (if applicable)
D249: Closing Balance | E249: =E246+E247-E248 -> 0 | G249: =G246+G247-G248 -> 0 | I249: =I246+I247-I248 -> 0 | K249: =K246+K247-K248 -> 0 | M249: =M246+M247-M248 -> 0 | O249: =O246+O247-O248 -> 0 | Q249: =Q246+Q247-Q248 -> 0 | S249: =S246+S247-S248 -> 0 | U249: =U246+U247-U248 -> 0 | W249: =W246+W247-W248 -> 0 | Y249: =Y246+Y247-Y248 -> 0 | AA249: =AA246+AA247-AA248 -> 0 | AC249: =AC246+AC247-AC248 -> 0
C251: Accumulated Depreciation
D252: Opening Balance | G252: =E255 -> 0 | I252: =G255 -> 0 | K252: =I255 -> 0 | M252: =K255 -> 0 | O252: =M255 -> 0 | Q252: =O255 -> 0 | S252: =Q255 -> 0 | U252: =S255 -> 0 | W252: =U255 -> 0 | Y252: =W255 -> 0 | AA252: =Y255 -> 0 | AC252: =AA255 -> 0
D253: Amortization expense during year | E253: 0 | G253: 0 | I253: 0 | K253: 0 | M253: 0 | O253: 0 | Q253: 0 | S253: 0 | U253: 0 | W253: 0 | Y253: 0 | AA253: 0 | AC253: 0
D254: Retirements/Removals (if applicable)
D255: Closing Balance | E255: =E252+E253-E254 -> 0 | G255: =G252+G253-G254 -> 0 | I255: =I252+I253-I254 -> 0 | K255: =K252+K253-K254 -> 0 | M255: =M252+M253-M254 -> 0 | O255: =O252+O253-O254 -> 0 | Q255: =Q252+Q253-Q254 -> 0 | S255: =S252+S253-S254 -> 0 | U255: =U252+U253-U254 -> 0 | W255: =W252+W253-W254 -> 0 | Y255: =Y252+Y253-Y254 -> 0 | AA255: =AA252+AA253-AA254 -> 0 | AC255: =AC252+AC253-AC254 -> 0
C257: Net Book Value
D258: Opening Balance | E258: =E246+E252 -> 0 | G258: =E259 -> 0 | I258: =G259 -> 0 | K258: =I259 -> 0 | M258: =K259 -> 0 | O258: =M259 -> 0 | Q258: =O259 -> 0 | S258: =Q259 -> 0 | U258: =S259 -> 0 | W258: =U259 -> 0 | Y258: =W259 -> 0 | AA258: =Y259 -> 0 | AC258: =AA259 -> 0
D259: Closing Balance | E259: =E249+E255 -> 0 | G259: =G249+G255 -> 0 | I259: =I249+I255 -> 0 | K259: =K249+K255 -> 0 | M259: =M249+M255 -> 0 | O259: =O249+O255 -> 0 | Q259: =Q249+Q255 -> 0 | S259: =S249+S255 -> 0 | U259: =U249+U255 -> 0 | W259: =W249+W255 -> 0 | Y259: =Y249+Y255 -> 0 | AA259: =AA249+AA255 -> 0 | AC259: =AC249+AC255 -> 0
D260: Incremental CAPEX | E260: =E259 -> 0 | G260: =AVERAGE(G258:G259) -> 0 | I260: =AVERAGE(I258:I259) -> 0 | K260: =AVERAGE(K258:K259) -> 0 | M260: =AVERAGE(M258:M259) -> 0 | O260: =AVERAGE(O258:O259) -> 0 | Q260: =AVERAGE(Q258:Q259) -> 0 | S260: =AVERAGE(S258:S259) -> 0 | U260: =AVERAGE(U258:U259) -> 0 | W260: =AVERAGE(W258:W259) -> 0 | Y260: =AVERAGE(Y258:Y259) -> 0 | AA260: =AVERAGE(AA258:AA259) -> 0 | AC260: =AVERAGE(AC258:AC259) -> 0
D267: Additions | E267: =E15+E34+E53+E72+E91+E110+E129+E148+E167+E187+E207+E227+E247 -> 413818.66 | F267: =F15+F34+F53+F72+F91+F110+F129+F148+F167+F187+F207+F227+F247 -> 0 | G267: =G15+G34+G53+G72+G91+G110+G129+G148+G167+G187+G207+G227+G247 -> 831556.58 | I267: =I15+I34+I53+I72+I91+I110+I129+I148+I167+I187+I207+I227+I247 -> 764158.93 | K267: =K15+K34+K53+K72+K91+K110+K129+K148+K167+K187+K207+K227+K247 -> 931963.22 | M267: =M15+M34+M53+M72+M91+M110+M129+M148+M167+M187+M207+M227+M247 -> 20867.2 | O267: =O15+O34+O53+O72+O91+O110+O129+O148+O167+O187+O207+O227+O247 -> 0 | Q267: =Q15+Q34+Q53+Q72+Q91+Q110+Q129+Q148+Q167+Q187+Q207+Q227+Q247 -> 0 | S267: =S15+S34+S53+S72+S91+S110+S129+S148+S167+S187+S207+S227+S247 -> 0 | U267: =U15+U34+U53+U72+U91+U110+U129+U148+U167+U187+U207+U227+U247 -> 0 | W267: =W15+W34+W53+W72+W91+W110+W129+W148+W167+W187+W207+W227+W247 -> 0 | Y267: =Y15+Y34+Y53+Y72+Y91+Y110+Y129+Y148+Y167+Y187+Y207+Y227+Y247 -> 0 | AA267: =AA15+AA34+AA53+AA72+AA91+AA110+AA129+AA148+AA167+AA187+AA207+AA227+AA247 -> 0 | AC267: =AC15+AC34+AC53+AC72+AC91+AC110+AC129+AC148+AC167+AC187+AC207+AC227+AC247 -> 0
D268: Net Fixed Assets (NFA) | E268: =E28+E47+E66+E85+E104+E123+E142+E161+E180+E200+E220+E240+E260 -> 200012.35 | F268: =F28+F47+F66+F85+F104+F123+F142+F161+F180+F200+F220+F240+F260 -> 0 | G268: =G28+G47+G66+G85+G104+G123+G142+G161+G180+G200+G220+G240+G260 -> 788149.76 | I268: =I28+I47+I66+I85+I104+I123+I142+I161+I180+I200+I220+I240+I260 -> 1504105.795 | K268: =K28+K47+K66+K85+K104+K123+K142+K161+K180+K200+K220+K240+K260 -> 2215401.185 | M268: =M28+M47+M66+M85+M104+M123+M142+M161+M180+M200+M220+M240+M260 -> 2510901.505 | O268: =O28+O47+O66+O85+O104+O123+O142+O161+O180+O200+O220+O240+O260 -> 2314824.33 | Q268: =Q28+Q47+Q66+Q85+Q104+Q123+Q142+Q161+Q180+Q200+Q220+Q240+Q260 -> 2098598.17 | S268: =S28+S47+S66+S85+S104+S123+S142+S161+S180+S200+S220+S240+S260 -> 1882372.01 | U268: =U28+U47+U66+U85+U104+U123+U142+U161+U180+U200+U220+U240+U260 -> 1666145.85 | W268: =W28+W47+W66+W85+W104+W123+W142+W161+W180+W200+W220+W240+W260 -> 1449919.69 | Y268: =Y28+Y47+Y66+Y85+Y104+Y123+Y142+Y161+Y180+Y200+Y220+Y240+Y260 -> 1233693.53 | AA268: =AA28+AA47+AA66+AA85+AA104+AA123+AA142+AA161+AA180+AA200+AA220+AA240+AA260 -> 1017467.37 | AC268: =AC28+AC47+AC66+AC85+AC104+AC123+AC142+AC161+AC180+AC200+AC220+AC240+AC260 -> 801241.21
... 1 more rows

Sheet 3. UCC_Calculations
B4: MIST Meters True-up Model
A9: Sheet 3: CCA For PILs Calculation
A11: UCC/Class 47 | D11: 2014 | F11: 2015 | H11: 2016 | J11: 2017 | L11: 2018 | N11: 2019 | P11: 2020 | R11: 2021 | T11: 2022 | V11: 2023 | X11: 2024 | Z11: 2025 | AB11: 2026
D12: Actual | F12: Actual | H12: Actual | J12: Actual | L12: Actual | N12: Actual | P12: Actual | R12: Actual | T12: Actual | V12: Actual | X12: Actual | Z12: Actual | AB12: Actual
A14: Opening UCC | D14: 0 | F14: =D17-D22 -> 397265.9136 | H14: =F17-F22 -> 1163778.957 | J14: =H17-H22 -> 1804269.214 | L14: =J17-J22 -> 2554612.368 | N14: =L17-L22 -> 2370275.89 | P14: =N17-N22 -> 2180653.819 | R14: =P17-P22 -> 2006201.513 | T14: =R17-R22 -> 1845705.392 | V14: =T17-T22 -> 1698048.961 | X14: =V17-V22 -> 1562205.044 | Z14: =X17-X22 -> 1437228.641 | AB14: =Z17-Z22 -> 1322250.349
A15: Capital Additions | D15: ='2. MIST Meters Assets_Rate Base'!E267-D29-D44-D59-D74 -> 413818.66 | F15: ='2. MIST Meters Assets_Rate Base'!G267-F29-F44-F59-F74 -> 831556.58 | H15: ='2. MIST Meters Assets_Rate Base'!I267-H29-H44-H59-H74 -> 764158.93 | J15: ='2. MIST Meters Assets_Rate Base'!K267-J29-J44-J59-J74 -> 931963.22 | L15: ='2. MIST Meters Assets_Rate Base'!M267-L29-L44-L59-L74 -> 20867.2 | N15: ='2. MIST Meters Assets_Rate Base'!O267-N29-N44-N59-N74 -> 0 | P15: ='2. MIST Meters Assets_Rate Base'!Q267-P29-P44-P59-P74 -> 0 | R15: ='2. MIST Meters Assets_Rate Base'!S267-R29-R44-R59-R74 -> 0 | T15: ='2. MIST Meters Assets_Rate Base'!U267-T29-T44-T59-T74 -> 0 | V15: ='2. MIST Meters Assets_Rate Base'!W267-V29-V44-V59-V74 -> 0 | X15: ='2. MIST Meters Assets_Rate Base'!Y267-X29-X44-X59-X74 -> 0 | Z15: ='2. MIST Meters Assets_Rate Base'!AA267-Z29-Z44-Z59-Z74 -> 0 | AB15: ='2. MIST Meters Assets_Rate Base'!AC267-AB29-AB44-AB59-AB74 -> 0
A16: Retirements/Removals (if applicable)
A17: UCC Before Half Year Rule | D17: =SUM(D14:D15)-D16 -> 413818.66 | F17: =SUM(F14:F15)-F16 -> 1228822.494 | H17: =SUM(H14:H15)-H16 -> 1927937.887 | J17: =SUM(J14:J15)-J16 -> 2736232.434 | L17: =SUM(L14:L15)-L16 -> 2575479.568 | N17: =SUM(N14:N15)-N16 -> 2370275.89 | P17: =SUM(P14:P15)-P16 -> 2180653.819 | R17: =SUM(R14:R15)-R16 -> 2006201.513 | T17: =SUM(T14:T15)-T16 -> 1845705.392 | V17: =SUM(V14:V15)-V16 -> 1698048.961 | X17: =SUM(X14:X15)-X16 -> 1562205.044 | Z17: =SUM(Z14:Z15)-Z16 -> 1437228.641 | AB17: =SUM(AB14:AB15)-AB16 -> 1322250.349
A18: Half Year Rule (1/2 Additions - Disposals) | D18: =IF(((D15-D16)/2)<0, 0, (D15-D16)/2) -> 206909.33 | F18: =IF(((F15-F16)/2)<0, 0, (F15-F16)/2) -> 415778.29 | H18: =IF(((H15-H16)/2)<0, 0, (H15-H16)/2) -> 382079.465 | J18: =IF(((J15-J16)/2)<0, 0, (J15-J16)/2) -> 465981.61 | L18: =IF(((L15-L16)/2)<0, 0, (L15-L16)/2) -> 10433.6 | N18: =IF(((N15-N16)/2)<0, 0, (N15-N16)/2) -> 0 | P18: =IF(((P15-P16)/2)<0, 0, (P15-P16)/2) -> 0 | R18: =IF(((R15-R16)/2)<0, 0, (R15-R16)/2) -> 0 | T18: =IF(((T15-T16)/2)<0, 0, (T15-T16)/2) -> 0 | V18: =IF(((V15-V16)/2)<0, 0, (V15-V16)/2) -> 0 | X18: =IF(((X15-X16)/2)<0, 0, (X15-X16)/2) -> 0 | Z18: =IF(((Z15-Z16)/2)<0, 0, (Z15-Z16)/2) -> 0 | AB18: =IF(((AB15-AB16)/2)<0, 0, (AB15-AB16)/2) -> 0
A19: Reduced UCC | D19: =D18+D14 -> 206909.33 | F19: =F18+F14 -> 813044.2036 | H19: =H18+H14 -> 1545858.422 | J19: =J18+J14 -> 2270250.824 | L19: =L18+L14 -> 2565045.968 | N19: =N18+N14 -> 2370275.89 | P19: =P18+P14 -> 2180653.819 | R19: =R18+R14 -> 2006201.513 | T19: =T18+T14 -> 1845705.392 | V19: =V18+V14 -> 1698048.961 | X19: =X18+X14 -> 1562205.044 | Z19: =Z18+Z14 -> 1437228.641 | AB19: =AB18+AB14 -> 1322250.349
A20: CCA Rate Class | D20: 47 | F20: 47 | H20: 47 | J20: 47 | L20: 47 | N20: 47 | P20: 47 | R20: 47 | T20: 47 | V20: 47 | X20: 47 | Z20: 47 | AB20: 47
A21: CCA Rate | D21: 0.08 | F21: 0.08 | H21: 0.08 | J21: 0.08 | L21: 0.08 | N21: 0.08 | P21: 0.08 | R21: 0.08 | T21: 0.08 | V21: 0.08 | X21: 0.08 | Z21: 0.08 | AB21: 0.08
A22: CCA | D22: =D19*D21 -> 16552.7464 | F22: =F19*F21 -> 65043.53629 | H22: =H19*H21 -> 123668.6738 | J22: =J19*J21 -> 181620.0659 | L22: =L19*L21 -> 205203.6774 | N22: =N19*N21 -> 189622.0712 | P22: =P19*P21 -> 174452.3055 | R22: =R19*R21 -> 160496.1211 | T22: =T19*T21 -> 147656.4314 | V22: =V19*V21 -> 135843.9169 | X22: =X19*X21 -> 124976.4035 | Z22: =Z19*Z21 -> 114978.2912 | AB22: =AB19*AB21 -> 105780.0279
A23: Closing UCC | D23: =IF((D17-D22)<0, 0, D17-D22) -> 397265.9136 | F23: =IF((F17-F22)<0, 0, F17-F22) -> 1163778.957 | H23: =IF((H17-H22)<0, 0, H17-H22) -> 1804269.214 | J23: =IF((J17-J22)<0, 0, J17-J22) -> 2554612.368 | L23: =IF((L17-L22)<0, 0, L17-L22) -> 2370275.89 | N23: =IF((N17-N22)<0, 0, N17-N22) -> 2180653.819 | P23: =IF((P17-P22)<0, 0, P17-P22) -> 2006201.513 | R23: =IF((R17-R22)<0, 0, R17-R22) -> 1845705.392 | T23: =IF((T17-T22)<0, 0, T17-T22) -> 1698048.961 | V23: =IF((V17-V22)<0, 0, V17-V22) -> 1562205.044 | X23: =IF((X17-X22)<0, 0, X17-X22) -> 1437228.641 | Z23: =IF((Z17-Z22)<0, 0, Z17-Z22) -> 1322250.349 | AB23: =IF((AB17-AB22)<0, 0, AB17-AB22) -> 1216470.321
A25: UCC/Class 8 | D25: =D11 -> 2014 | F25: 2015 | H25: =H11 -> 2016 | J25: =J11 -> 2017 | L25: =L11 -> 2018 | N25: =N11 -> 2019 | P25: =P11 -> 2020 | R25: =R11 -> 2021 | T25: =T11 -> 2022 | V25: =V11 -> 2023 | X25: =X11 -> 2024 | Z25: =Z11 -> 2025 | AB25: =AB11 -> 2026
D26: Actual | F26: Actual | H26: =H12 -> Actual | J26: =J12 -> Actual | L26: =L12 -> Actual | N26: =N12 -> Actual | P26: =P12 -> Actual | R26: =R12 -> Actual | T26: =T12 -> Actual | V26: =V12 -> Actual | X26: =X12 -> Actual | Z26: =Z12 -> Actual | AB26: =AB12 -> Actual
A28: Opening UCC | D28: 0 | F28: =D31-D36 -> 0 | H28: =F31-F36 -> 0 | J28: =H31-H36 -> 0 | L28: =J31-J36 -> 0 | N28: =L31-L36 -> 0 | P28: =N31-N36 -> 0 | R28: =P31-P36 -> 0 | T28: =R31-R36 -> 0 | V28: =T31-T36 -> 0 | X28: =V31-V36 -> 0 | Z28: =X31-X36 -> 0 | AB28: =Z31-Z36 -> 0
A29: Capital Additions | D29: ='2. MIST Meters Assets_Rate Base'!E227+'2. MIST Meters Assets_Rate Base'!E207+'2. MIST Meters Assets_Rate Base'!E148+'2. MIST Meters Assets_Rate Base'!E110 -> 0 | F29: ='2. MIST Meters Assets_Rate Base'!G227+'2. MIST Meters Assets_Rate Base'!G207+'2. MIST Meters Assets_Rate Base'!G148+'2. MIST Meters Assets_Rate Base'!G110 -> 0 | H29: ='2. MIST Meters Assets_Rate Base'!I227+'2. MIST Meters Assets_Rate Base'!I207+'2. MIST Meters Assets_Rate Base'!I148+'2. MIST Meters Assets_Rate Base'!I110 -> 0 | J29: ='2. MIST Meters Assets_Rate Base'!K227+'2. MIST Meters Assets_Rate Base'!K207+'2. MIST Meters Assets_Rate Base'!K148+'2. MIST Meters Assets_Rate Base'!K110 -> 0 | L29: ='2. MIST Meters Assets_Rate Base'!M227+'2. MIST Meters Assets_Rate Base'!M207+'2. MIST Meters Assets_Rate Base'!M148+'2. MIST Meters Assets_Rate Base'!M110 -> 0 | N29: ='2. MIST Meters Assets_Rate Base'!O227+'2. MIST Meters Assets_Rate Base'!O207+'2. MIST Meters Assets_Rate Base'!O148+'2. MIST Meters Assets_Rate Base'!O110 -> 0 | P29: ='2. MIST Meters Assets_Rate Base'!Q227+'2. MIST Meters Assets_Rate Base'!Q207+'2. MIST Meters Assets_Rate Base'!Q148+'2. MIST Meters Assets_Rate Base'!Q110 -> 0 | R29: ='2. MIST Meters Assets_Rate Base'!S227+'2. MIST Meters Assets_Rate Base'!S207+'2. MIST Meters Assets_Rate Base'!S148+'2. MIST Meters Assets_Rate Base'!S110 -> 0 | T29: ='2. MIST Meters Assets_Rate Base'!U227+'2. MIST Meters Assets_Rate Base'!U207+'2. MIST Meters Assets_Rate Base'!U148+'2. MIST Meters Assets_Rate Base'!U110 -> 0 | V29: ='2. MIST Meters Assets_Rate Base'!W227+'2. MIST Meters Assets_Rate Base'!W207+'2. MIST Meters Assets_Rate Base'!W148+'2. MIST Meters Assets_Rate Base'!W110 -> 0 | X29: ='2. MIST Meters Assets_Rate Base'!Y227+'2. MIST Meters Assets_Rate Base'!Y207+'2. MIST Meters Assets_Rate Base'!Y148+'2. MIST Meters Assets_Rate Base'!Y110 -> 0 | Z29: ='2. MIST Meters Assets_Rate Base'!AA227+'2. MIST Meters Assets_Rate Base'!AA207+'2. MIST Meters Assets_Rate Base'!AA148+'2. MIST Meters Assets_Rate Base'!AA110 -> 0 | AB29: ='2. MIST Meters Assets_Rate Base'!AC227+'2. MIST Meters Assets_Rate Base'!AC207+'2. MIST Meters Assets_Rate Base'!AC148+'2. MIST Meters Assets_Rate Base'!AC110 -> 0
A30: Retirements/Removals (if applicable)
A31: UCC Before Half Year Rule | D31: =SUM(D28:D29)-D30 -> 0 | F31: =SUM(F28:F29)-F30 -> 0 | H31: =SUM(H28:H29)-H30 -> 0 | J31: =SUM(J28:J29)-J30 -> 0 | L31: =SUM(L28:L29)-L30 -> 0 | N31: =SUM(N28:N29)-N30 -> 0 | P31: =SUM(P28:P29)-P30 -> 0 | R31: =SUM(R28:R29)-R30 -> 0 | T31: =SUM(T28:T29)-T30 -> 0 | V31: =SUM(V28:V29)-V30 -> 0 | X31: =SUM(X28:X29)-X30 -> 0 | Z31: =SUM(Z28:Z29)-Z30 -> 0 | AB31: =SUM(AB28:AB29)-AB30 -> 0
A32: Half Year Rule (1/2 Additions - Disposals) | D32: =IF((SUM(D29:D29)/2)<0, 0, SUM(D29:D29)/2) -> 0 | F32: =IF((SUM(F29:F29)/2)<0, 0, SUM(F29:F29)/2) -> 0 | H32: =IF((SUM(H29:H29)/2)<0, 0, SUM(H29:H29)/2) -> 0 | J32: =IF((SUM(J29:J29)/2)<0, 0, SUM(J29:J29)/2) -> 0 | L32: =IF((SUM(L29:L29)/2)<0, 0, SUM(L29:L29)/2) -> 0 | N32: =IF((SUM(N29:N29)/2)<0, 0, SUM(N29:N29)/2) -> 0 | P32: =IF((SUM(P29:P29)/2)<0, 0, SUM(P29:P29)/2) -> 0 | R32: =IF((SUM(R29:R29)/2)<0, 0, SUM(R29:R29)/2) -> 0 | T32: =IF((SUM(T29:T29)/2)<0, 0, SUM(T29:T29)/2) -> 0 | V32: =IF((SUM(V29:V29)/2)<0, 0, SUM(V29:V29)/2) -> 0 | X32: =IF((SUM(X29:X29)/2)<0, 0, SUM(X29:X29)/2) -> 0 | Z32: =IF((SUM(Z29:Z29)/2)<0, 0, SUM(Z29:Z29)/2) -> 0 | AB32: =IF((SUM(AB29:AB29)/2)<0, 0, SUM(AB29:AB29)/2) -> 0
A33: Reduced UCC | D33: =D32+D28 -> 0 | F33: =F32+F28 -> 0 | H33: =H32+H28 -> 0 | J33: =J32+J28 -> 0 | L33: =L32+L28 -> 0 | N33: =N32+N28 -> 0 | P33: =P32+P28 -> 0 | R33: =R32+R28 -> 0 | T33: =T32+T28 -> 0 | V33: =V32+V28 -> 0 | X33: =X32+X28 -> 0 | Z33: =Z32+Z28 -> 0 | AB33: =AB32+AB28 -> 0
A34: CCA Rate Class | D34: 8 | F34: 8 | H34: 8 | J34: 8 | L34: 8 | N34: 8 | P34: 8 | R34: 8 | T34: 8 | V34: 8 | X34: 8 | Z34: 8 | AB34: 8
A35: CCA Rate | D35: 0.2 | F35: 0.2 | H35: 0.2 | J35: 0.2 | L35: 0.2 | N35: 0.2 | P35: 0.2 | R35: 0.2 | T35: 0.2 | V35: 0.2 | X35: 0.2 | Z35: 0.2 | AB35: 0.2
A36: CCA | D36: =D35*D33 -> 0 | F36: =F35*F33 -> 0 | H36: =H35*H33 -> 0 | J36: =J35*J33 -> 0 | L36: =L35*L33 -> 0 | N36: =N35*N33 -> 0 | P36: =P35*P33 -> 0 | R36: =R35*R33 -> 0 | T36: =T35*T33 -> 0 | V36: =V35*V33 -> 0 | X36: =X35*X33 -> 0 | Z36: =Z35*Z33 -> 0 | AB36: =AB35*AB33 -> 0
A37: Closing UCC | D37: =IF((D31-D36)<0, 0, D31-D36) -> 0 | F37: =IF((F31-F36)<0, 0, F31-F36) -> 0 | H37: =IF((H31-H36)<0, 0, H31-H36) -> 0 | J37: =IF((J31-J36)<0, 0, J31-J36) -> 0 | L37: =IF((L31-L36)<0, 0, L31-L36) -> 0 | N37: =IF((N31-N36)<0, 0, N31-N36) -> 0 | P37: =IF((P31-P36)<0, 0, P31-P36) -> 0 | R37: =IF((R31-R36)<0, 0, R31-R36) -> 0 | T37: =IF((T31-T36)<0, 0, T31-T36) -> 0 | V37: =IF((V31-V36)<0, 0, V31-V36) -> 0 | X37: =IF((X31-X36)<0, 0, X31-X36) -> 0 | Z37: =IF((Z31-Z36)<0, 0, Z31-Z36) -> 0 | AB37: =IF((AB31-AB36)<0, 0, AB31-AB36) -> 0
A40: UCC/Class 10 | D40: 2014 | F40: 2015 | H40: 2015 | J40: 2015 | L40: 2015 | N40: 2015 | P40: 2015 | R40: 2015 | T40: 2015 | V40: 2015 | X40: 2015 | Z40: 2015 | AB40: 2015
D41: Audited Actual | F41: Forecast | H41: Forecast | J41: Forecast | L41: Forecast | N41: Forecast | P41: Forecast | R41: Forecast | T41: Forecast | V41: Forecast | X41: Forecast | Z41: Forecast | AB41: Forecast
A43: Opening UCC | D43: 0 | F43: =D46-D51 -> 0 | H43: =F46-F51 -> 0 | J43: =H46-H51 -> 0 | L43: =J46-J51 -> 0 | N43: =L46-L51 -> 0 | P43: =N46-N51 -> 0 | R43: =P46-P51 -> 0 | T43: =R46-R51 -> 0 | V43: =T46-T51 -> 0 | X43: =V46-V51 -> 0 | Z43: =X46-X51 -> 0 | AB43: =Z46-Z51 -> 0
A44: Capital Additions | D44: ='2. MIST Meters Assets_Rate Base'!E53 -> 0 | F44: ='2. MIST Meters Assets_Rate Base'!G53 -> 0 | H44: ='2. MIST Meters Assets_Rate Base'!I53 -> 0 | J44: ='2. MIST Meters Assets_Rate Base'!K53 -> 0 | L44: ='2. MIST Meters Assets_Rate Base'!M53 -> 0 | N44: ='2. MIST Meters Assets_Rate Base'!O53 -> 0 | P44: ='2. MIST Meters Assets_Rate Base'!Q53 -> 0 | R44: ='2. MIST Meters Assets_Rate Base'!S53 -> 0 | T44: ='2. MIST Meters Assets_Rate Base'!U53 -> 0 | V44: ='2. MIST Meters Assets_Rate Base'!W53 -> 0 | X44: ='2. MIST Meters Assets_Rate Base'!Y53 -> 0 | Z44: ='2. MIST Meters Assets_Rate Base'!AA53 -> 0 | AB44: ='2. MIST Meters Assets_Rate Base'!AC53 -> 0
A45: Retirements/Removals (if applicable)
A46: UCC Before Half Year Rule | D46: =SUM(D43:D44)-D45 -> 0 | F46: =SUM(F43:F44)-F45 -> 0 | H46: =SUM(H43:H44)-H45 -> 0 | J46: =SUM(J43:J44)-J45 -> 0 | L46: =SUM(L43:L44)-L45 -> 0 | N46: =SUM(N43:N44)-N45 -> 0 | P46: =SUM(P43:P44)-P45 -> 0 | R46: =SUM(R43:R44)-R45 -> 0 | T46: =SUM(T43:T44)-T45 -> 0 | V46: =SUM(V43:V44)-V45 -> 0 | X46: =SUM(X43:X44)-X45 -> 0 | Z46: =SUM(Z43:Z44)-Z45 -> 0 | AB46: =SUM(AB43:AB44)-AB45 -> 0
A47: Half Year Rule (1/2 Additions - Disposals) | D47: =IF((SUM(D44:D44)/2)<0, 0, SUM(D44:D44)/2) -> 0 | F47: =IF((SUM(F44:F44)/2)<0, 0, SUM(F44:F44)/2) -> 0 | H47: =IF((SUM(H44:H44)/2)<0, 0, SUM(H44:H44)/2) -> 0 | J47: =IF((SUM(J44:J44)/2)<0, 0, SUM(J44:J44)/2) -> 0 | L47: =IF((SUM(L44:L44)/2)<0, 0, SUM(L44:L44)/2) -> 0 | N47: =IF((SUM(N44:N44)/2)<0, 0, SUM(N44:N44)/2) -> 0 | P47: =IF((SUM(P44:P44)/2)<0, 0, SUM(P44:P44)/2) -> 0 | R47: =IF((SUM(R44:R44)/2)<0, 0, SUM(R44:R44)/2) -> 0 | T47: =IF((SUM(T44:T44)/2)<0, 0, SUM(T44:T44)/2) -> 0 | V47: =IF((SUM(V44:V44)/2)<0, 0, SUM(V44:V44)/2) -> 0 | X47: =IF((SUM(X44:X44)/2)<0, 0, SUM(X44:X44)/2) -> 0 | Z47: =IF((SUM(Z44:Z44)/2)<0, 0, SUM(Z44:Z44)/2) -> 0 | AB47: =IF((SUM(AB44:AB44)/2)<0, 0, SUM(AB44:AB44)/2) -> 0
A48: Reduced UCC | D48: =D47+D43 -> 0 | F48: =F47+F43 -> 0 | H48: =H47+H43 -> 0 | J48: =J47+J43 -> 0 | L48: =L47+L43 -> 0 | N48: =N47+N43 -> 0 | P48: =P47+P43 -> 0 | R48: =R47+R43 -> 0 | T48: =T47+T43 -> 0 | V48: =V47+V43 -> 0 | X48: =X47+X43 -> 0 | Z48: =Z47+Z43 -> 0 | AB48: =AB47+AB43 -> 0
A49: CCA Rate Class | D49: 10 | F49: 10 | H49: 10 | J49: 10 | L49: 10 | N49: 10 | P49: 10 | R49: 10 | T49: 10 | V49: 10 | X49: 10 | Z49: 10 | AB49: 10
A50: CCA Rate | D50: 0.3 | F50: 0.3 | H50: 0.3 | J50: 0.3 | L50: 0.3 | N50: 0.3 | P50: 0.3 | R50: 0.3 | T50: 0.3 | V50: 0.3 | X50: 0.3 | Z50: 0.3 | AB50: 0.3
A51: CCA | D51: =D50*D48 -> 0 | F51: =F50*F48 -> 0 | H51: =H50*H48 -> 0 | J51: =J50*J48 -> 0 | L51: =L50*L48 -> 0 | N51: =N50*N48 -> 0 | P51: =P50*P48 -> 0 | R51: =R50*R48 -> 0 | T51: =T50*T48 -> 0 | V51: =V50*V48 -> 0 | X51: =X50*X48 -> 0 | Z51: =Z50*Z48 -> 0 | AB51: =AB50*AB48 -> 0
A52: Closing UCC | D52: =IF((D46-D51)<0, 0, D46-D51) -> 0 | F52: =IF((F46-F51)<0, 0, F46-F51) -> 0 | H52: =IF((H46-H51)<0, 0, H46-H51) -> 0 | J52: =IF((J46-J51)<0, 0, J46-J51) -> 0 | L52: =IF((L46-L51)<0, 0, L46-L51) -> 0 | N52: =IF((N46-N51)<0, 0, N46-N51) -> 0 | P52: =IF((P46-P51)<0, 0, P46-P51) -> 0 | R52: =IF((R46-R51)<0, 0, R46-R51) -> 0 | T52: =IF((T46-T51)<0, 0, T46-T51) -> 0 | V52: =IF((V46-V51)<0, 0, V46-V51) -> 0 | X52: =IF((X46-X51)<0, 0, X46-X51) -> 0 | Z52: =IF((Z46-Z51)<0, 0, Z46-Z51) -> 0 | AB52: =IF((AB46-AB51)<0, 0, AB46-AB51) -> 0
A55: UCC/Class 50 | D55: 2014 | F55: 2015 | H55: 2015 | J55: 2015 | L55: 2015 | N55: 2015 | P55: 2015 | R55: 2015 | T55: 2015 | V55: 2015 | X55: 2015 | Z55: 2015 | AB55: 2015
D56: Audited Actual | F56: Forecast | H56: Forecast | J56: Forecast | L56: Forecast | N56: Forecast | P56: Forecast | R56: Forecast | T56: Forecast | V56: Forecast | X56: Forecast | Z56: Forecast | AB56: Forecast
A58: Opening UCC | D58: 0 | F58: =D61-D66 -> 0 | H58: =F61-F66 -> 0 | J58: =H61-H66 -> 0 | L58: =J61-J66 -> 0 | N58: =L61-L66 -> 0 | P58: =N61-N66 -> 0 | R58: =P61-P66 -> 0 | T58: =R61-R66 -> 0 | V58: =T61-T66 -> 0 | X58: =V61-V66 -> 0 | Z58: =X61-X66 -> 0 | AB58: =Z61-Z66 -> 0
A59: Capital Additions | D59: ='2. MIST Meters Assets_Rate Base'!E91+'2. MIST Meters Assets_Rate Base'!E167 -> 0 | F59: ='2. MIST Meters Assets_Rate Base'!G91+'2. MIST Meters Assets_Rate Base'!G167 -> 0 | H59: ='2. MIST Meters Assets_Rate Base'!I91+'2. MIST Meters Assets_Rate Base'!I167 -> 0 | J59: ='2. MIST Meters Assets_Rate Base'!K91+'2. MIST Meters Assets_Rate Base'!K167 -> 0 | L59: ='2. MIST Meters Assets_Rate Base'!M91+'2. MIST Meters Assets_Rate Base'!M167 -> 0 | N59: ='2. MIST Meters Assets_Rate Base'!O91+'2. MIST Meters Assets_Rate Base'!O167 -> 0 | P59: ='2. MIST Meters Assets_Rate Base'!Q91+'2. MIST Meters Assets_Rate Base'!Q167 -> 0 | R59: ='2. MIST Meters Assets_Rate Base'!S91+'2. MIST Meters Assets_Rate Base'!S167 -> 0 | T59: ='2. MIST Meters Assets_Rate Base'!U91+'2. MIST Meters Assets_Rate Base'!U167 -> 0 | V59: ='2. MIST Meters Assets_Rate Base'!W91+'2. MIST Meters Assets_Rate Base'!W167 -> 0 | X59: ='2. MIST Meters Assets_Rate Base'!Y91+'2. MIST Meters Assets_Rate Base'!Y167 -> 0 | Z59: ='2. MIST Meters Assets_Rate Base'!AA91+'2. MIST Meters Assets_Rate Base'!AA167 -> 0 | AB59: ='2. MIST Meters Assets_Rate Base'!AC91+'2. MIST Meters Assets_Rate Base'!AC167 -> 0
A60: Retirements/Removals (if applicable)
A61: UCC Before Half Year Rule | D61: =SUM(D58:D59)-D60 -> 0 | F61: =SUM(F58:F59)-F60 -> 0 | H61: =SUM(H58:H59)-H60 -> 0 | J61: =SUM(J58:J59)-J60 -> 0 | L61: =SUM(L58:L59)-L60 -> 0 | N61: =SUM(N58:N59)-N60 -> 0 | P61: =SUM(P58:P59)-P60 -> 0 | R61: =SUM(R58:R59)-R60 -> 0 | T61: =SUM(T58:T59)-T60 -> 0 | V61: =SUM(V58:V59)-V60 -> 0 | X61: =SUM(X58:X59)-X60 -> 0 | Z61: =SUM(Z58:Z59)-Z60 -> 0 | AB61: =SUM(AB58:AB59)-AB60 -> 0
A62: Half Year Rule (1/2 Additions - Disposals) | D62: =IF((SUM(D59:D59)/2)<0, 0, SUM(D59:D59)/2) -> 0 | F62: =IF((SUM(F59:F59)/2)<0, 0, SUM(F59:F59)/2) -> 0 | H62: =IF((SUM(H59:H59)/2)<0, 0, SUM(H59:H59)/2) -> 0 | J62: =IF((SUM(J59:J59)/2)<0, 0, SUM(J59:J59)/2) -> 0 | L62: =IF((SUM(L59:L59)/2)<0, 0, SUM(L59:L59)/2) -> 0 | N62: =IF((SUM(N59:N59)/2)<0, 0, SUM(N59:N59)/2) -> 0 | P62: =IF((SUM(P59:P59)/2)<0, 0, SUM(P59:P59)/2) -> 0 | R62: =IF((SUM(R59:R59)/2)<0, 0, SUM(R59:R59)/2) -> 0 | T62: =IF((SUM(T59:T59)/2)<0, 0, SUM(T59:T59)/2) -> 0 | V62: =IF((SUM(V59:V59)/2)<0, 0, SUM(V59:V59)/2) -> 0 | X62: =IF((SUM(X59:X59)/2)<0, 0, SUM(X59:X59)/2) -> 0 | Z62: =IF((SUM(Z59:Z59)/2)<0, 0, SUM(Z59:Z59)/2) -> 0 | AB62: =IF((SUM(AB59:AB59)/2)<0, 0, SUM(AB59:AB59)/2) -> 0
A63: Reduced UCC | D63: =D62+D58 -> 0 | F63: =F62+F58 -> 0 | H63: =H62+H58 -> 0 | J63: =J62+J58 -> 0 | L63: =L62+L58 -> 0 | N63: =N62+N58 -> 0 | P63: =P62+P58 -> 0 | R63: =R62+R58 -> 0 | T63: =T62+T58 -> 0 | V63: =V62+V58 -> 0 | X63: =X62+X58 -> 0 | Z63: =Z62+Z58 -> 0 | AB63: =AB62+AB58 -> 0
A64: CCA Rate Class | D64: 50 | F64: 50 | H64: 50 | J64: 50 | L64: 50 | N64: 50 | P64: 50 | R64: 50 | T64: 50 | V64: 50 | X64: 50 | Z64: 50 | AB64: 50
A65: CCA Rate | D65: 0.55 | F65: 0.55 | H65: 0.55 | J65: 0.55 | L65: 0.55 | N65: 0.55 | P65: 0.55 | R65: 0.55 | T65: 0.55 | V65: 0.55 | X65: 0.55 | Z65: 0.55 | AB65: 0.55
A66: CCA | D66: =D65*D63 -> 0 | F66: =F65*F63 -> 0 | H66: =H65*H63 -> 0 | J66: =J65*J63 -> 0 | L66: =L65*L63 -> 0 | N66: =N65*N63 -> 0 | P66: =P65*P63 -> 0 | R66: =R65*R63 -> 0 | T66: =T65*T63 -> 0 | V66: =V65*V63 -> 0 | X66: =X65*X63 -> 0 | Z66: =Z65*Z63 -> 0 | AB66: =AB65*AB63 -> 0
A67: Closing UCC | D67: =IF((D61-D66)<0, 0, D61-D66) -> 0 | F67: =IF((F61-F66)<0, 0, F61-F66) -> 0 | H67: =IF((H61-H66)<0, 0, H61-H66) -> 0 | J67: =IF((J61-J66)<0, 0, J61-J66) -> 0 | L67: =IF((L61-L66)<0, 0, L61-L66) -> 0 | N67: =IF((N61-N66)<0, 0, N61-N66) -> 0 | P67: =IF((P61-P66)<0, 0, P61-P66) -> 0 | R67: =IF((R61-R66)<0, 0, R61-R66) -> 0 | T67: =IF((T61-T66)<0, 0, T61-T66) -> 0 | V67: =IF((V61-V66)<0, 0, V61-V66) -> 0 | X67: =IF((X61-X66)<0, 0, X61-X66) -> 0 | Z67: =IF((Z61-Z66)<0, 0, Z61-Z66) -> 0 | AB67: =IF((AB61-AB66)<0, 0, AB61-AB66) -> 0
A70: UCC/Class 12 | D70: 2014 | F70: 2015 | H70: 2015 | J70: 2015 | L70: 2015 | N70: 2015 | P70: 2015 | R70: 2015 | T70: 2015 | V70: 2015 | X70: 2015 | Z70: 2015 | AB70: 2015
D71: Audited Actual | F71: Forecast | H71: Forecast | J71: Forecast | L71: Forecast | N71: Forecast | P71: Forecast | R71: Forecast | T71: Forecast | V71: Forecast | X71: Forecast | Z71: Forecast | AB71: Forecast
A73: Opening UCC | D73: 0 | F73: =D76-D81 -> 0 | H73: =F76-F81 -> 0 | J73: =H76-H81 -> 0 | L73: =J76-J81 -> 0 | N73: =L76-L81 -> 0 | P73: =N76-N81 -> 0 | R73: =P76-P81 -> 0 | T73: =R76-R81 -> 0 | V73: =T76-T81 -> 0 | X73: =V76-V81 -> 0 | Z73: =X76-X81 -> 0 | AB73: =Z76-Z81 -> 0
A74: Capital Additions | D74: ='2. MIST Meters Assets_Rate Base'!E129 -> 0 | F74: ='2. MIST Meters Assets_Rate Base'!G129 -> 0 | H74: ='2. MIST Meters Assets_Rate Base'!I129 -> 0 | J74: ='2. MIST Meters Assets_Rate Base'!K129 -> 0 | L74: ='2. MIST Meters Assets_Rate Base'!M129 -> 0 | N74: ='2. MIST Meters Assets_Rate Base'!O129 -> 0 | P74: ='2. MIST Meters Assets_Rate Base'!Q129 -> 0 | R74: ='2. MIST Meters Assets_Rate Base'!S129 -> 0 | T74: ='2. MIST Meters Assets_Rate Base'!U129 -> 0 | V74: ='2. MIST Meters Assets_Rate Base'!W129 -> 0 | X74: ='2. MIST Meters Assets_Rate Base'!Y129 -> 0 | Z74: ='2. MIST Meters Assets_Rate Base'!AA129 -> 0 | AB74: ='2. MIST Meters Assets_Rate Base'!AC129 -> 0
A75: Retirements/Removals (if applicable)
A76: UCC Before Half Year Rule | D76: =SUM(D73:D74)-D75 -> 0 | F76: =SUM(F73:F74)-F75 -> 0 | H76: =SUM(H73:H74)-H75 -> 0 | J76: =SUM(J73:J74)-J75 -> 0 | L76: =SUM(L73:L74)-L75 -> 0 | N76: =SUM(N73:N74)-N75 -> 0 | P76: =SUM(P73:P74)-P75 -> 0 | R76: =SUM(R73:R74)-R75 -> 0 | T76: =SUM(T73:T74)-T75 -> 0 | V76: =SUM(V73:V74)-V75 -> 0 | X76: =SUM(X73:X74)-X75 -> 0 | Z76: =SUM(Z73:Z74)-Z75 -> 0 | AB76: =SUM(AB73:AB74)-AB75 -> 0
A77: Half Year Rule (1/2 Additions - Disposals) | D77: =IF((SUM(D74:D74)/2)<0, 0, SUM(D74:D74)/2) -> 0 | F77: =IF((SUM(F74:F74)/2)<0, 0, SUM(F74:F74)/2) -> 0 | H77: =IF((SUM(H74:H74)/2)<0, 0, SUM(H74:H74)/2) -> 0 | J77: =IF((SUM(J74:J74)/2)<0, 0, SUM(J74:J74)/2) -> 0 | L77: =IF((SUM(L74:L74)/2)<0, 0, SUM(L74:L74)/2) -> 0 | N77: =IF((SUM(N74:N74)/2)<0, 0, SUM(N74:N74)/2) -> 0 | P77: =IF((SUM(P74:P74)/2)<0, 0, SUM(P74:P74)/2) -> 0 | R77: =IF((SUM(R74:R74)/2)<0, 0, SUM(R74:R74)/2) -> 0 | T77: =IF((SUM(T74:T74)/2)<0, 0, SUM(T74:T74)/2) -> 0 | V77: =IF((SUM(V74:V74)/2)<0, 0, SUM(V74:V74)/2) -> 0 | X77: =IF((SUM(X74:X74)/2)<0, 0, SUM(X74:X74)/2) -> 0 | Z77: =IF((SUM(Z74:Z74)/2)<0, 0, SUM(Z74:Z74)/2) -> 0 | AB77: =IF((SUM(AB74:AB74)/2)<0, 0, SUM(AB74:AB74)/2) -> 0
A78: Reduced UCC | D78: =D77+D73 -> 0 | F78: =F77+F73 -> 0 | H78: =H77+H73 -> 0 | J78: =J77+J73 -> 0 | L78: =L77+L73 -> 0 | N78: =N77+N73 -> 0 | P78: =P77+P73 -> 0 | R78: =R77+R73 -> 0 | T78: =T77+T73 -> 0 | V78: =V77+V73 -> 0 | X78: =X77+X73 -> 0 | Z78: =Z77+Z73 -> 0 | AB78: =AB77+AB73 -> 0
A79: CCA Rate Class | D79: 12 | F79: 12 | H79: 12 | J79: 12 | L79: 12 | N79: 12 | P79: 12 | R79: 12 | T79: 12 | V79: 12 | X79: 12 | Z79: 12 | AB79: 12
A80: CCA Rate | D80: 1 | F80: 1 | H80: 1 | J80: 1 | L80: 1 | N80: 1 | P80: 1 | R80: 1 | T80: 1 | V80: 1 | X80: 1 | Z80: 1 | AB80: 1
A81: CCA | D81: =D80*D78 -> 0 | F81: =F80*F78 -> 0 | H81: =H80*H78 -> 0 | J81: =J80*J78 -> 0 | L81: =L80*L78 -> 0 | N81: =N80*N78 -> 0 | P81: =P80*P78 -> 0 | R81: =R80*R78 -> 0 | T81: =T80*T78 -> 0 | V81: =V80*V78 -> 0 | X81: =X80*X78 -> 0 | Z81: =Z80*Z78 -> 0 | AB81: =AB80*AB78 -> 0
A82: Closing UCC | D82: =IF((D76-D81)<0, 0, D76-D81) -> 0 | F82: =IF((F76-F81)<0, 0, F76-F81) -> 0 | H82: =IF((H76-H81)<0, 0, H76-H81) -> 0 | J82: =IF((J76-J81)<0, 0, J76-J81) -> 0 | L82: =IF((L76-L81)<0, 0, L76-L81) -> 0 | N82: =IF((N76-N81)<0, 0, N76-N81) -> 0 | P82: =IF((P76-P81)<0, 0, P76-P81) -> 0 | R82: =IF((R76-R81)<0, 0, R76-R81) -> 0 | T82: =IF((T76-T81)<0, 0, T76-T81) -> 0 | V82: =IF((V76-V81)<0, 0, V76-V81) -> 0 | X82: =IF((X76-X81)<0, 0, X76-X81) -> 0 | Z82: =IF((Z76-Z81)<0, 0, Z76-Z81) -> 0 | AB82: =IF((AB76-AB81)<0, 0, AB76-AB81) -> 0
B86: Capital Additions | D86: =SUM(D74,D59,D44,D29,D15) -> 413818.66 | E86: =SUM(E74,E59,E44,E29,E15) -> 0 | F86: =SUM(F74,F59,F44,F29,F15) -> 831556.58 | H86: =SUM(H74,H59,H44,H29,H15) -> 764158.93 | J86: =SUM(J74,J59,J44,J29,J15) -> 931963.22 | L86: =SUM(L74,L59,L44,L29,L15) -> 20867.2 | N86: =SUM(N74,N59,N44,N29,N15) -> 0 | P86: =SUM(P74,P59,P44,P29,P15) -> 0 | R86: =SUM(R74,R59,R44,R29,R15) -> 0 | T86: =SUM(T74,T59,T44,T29,T15) -> 0 | V86: =SUM(V74,V59,V44,V29,V15) -> 0 | X86: =SUM(X74,X59,X44,X29,X15) -> 0 | Z86: =SUM(Z74,Z59,Z44,Z29,Z15) -> 0 | AB86: =SUM(AB74,AB59,AB44,AB29,AB15) -> 0
B88: CCA | D88: =SUM(D81,D66,D51,D36,D22,) -> 16552.7464 | E88: 0 | F88: 65043.53629 | G88: 0 | H88: 123668.6738 | I88: 0 | J88: 181620.0659 | K88: 0 | L88: 205203.6774 | M88: 0 | N88: 189622.0712 | O88: 0 | P88: 174452.3055 | Q88: 0 | R88: 160496.1211 | S88: 0 | T88: 147656.4314 | U88: 0 | V88: 135843.9169 | W88: 0 | X88: 124976.4035 | Y88: 0 | Z88: 114978.2912 | AA88: 0 | AB88: 105780.0279

Sheet 4. Fund Adder Revenues
H4: MIST Meters True-up Model
B9: Sheet 4: MIST Meters Funding Adder Revenues
B14: Prescribed Interest Rates | C14: Approved Deferral and Variance Accounts | D14: CWIP | F14: Date | G14: Year | H14: Quarter | J14: Opening Balance (Principal) | K14: Funding Adder Revenues | L14: Interest Rate | M14: Interest | N14: Principal & Interest (Cumm.)
B16: 2014 Q1 | C16: 0.0147 | D16: 0.037 | F16: 2014-01-01 | G16: =YEAR(F16) -> 2014 | H16: =IF(MONTH(F16)=0,"",IF(MONTH(F16)<4,"Q1",IF(MONTH(F16)<7,"Q2",IF(MONTH(F16)<10,"Q3","Q4")))) -> Q1 | I16: =CONCATENATE(G16," ",H16) -> 2014 Q1 | J16: 0 | K16: 0 | L16: =VLOOKUP(I16,$B$14:$D$67,2) -> 0.0147 | M16: =ROUND(J16*L16/12,2) -> 0 | N16: =K16+M16 -> 0
B17: 2014 Q2 | C17: 0.0147 | D17: 0.0317 | F17: 2014-02-01 | G17: =YEAR(F17) -> 2014 | H17: =IF(MONTH(F17)=0,"",IF(MONTH(F17)<4,"Q1",IF(MONTH(F17)<7,"Q2",IF(MONTH(F17)<10,"Q3","Q4")))) -> Q1 | I17: =CONCATENATE(G17," ",H17) -> 2014 Q1 | J17: =J16+K16 -> 0 | K17: 0 | L17: =VLOOKUP(I17,$B$14:$D$67,2) -> 0.0147 | M17: =ROUND(J17*L17/12,2) -> 0 | N17: =N16+K17+M17 -> 0
B18: 2014 Q3 | C18: =C17 -> 0.0147 | D18: 0.0317 | F18: 2014-03-01 | G18: 2014 | H18: Q1 | I18: 2014 Q1 | J18: =J17+K17 -> 0 | K18: 0 | L18: 0.0147 | M18: 0 | N18: =N17+K18+M18 -> 0
B19: 2014 Q4 | C19: 0.0147 | D19: 0.0317 | F19: 2014-04-01 | G19: 2014 | H19: Q2 | I19: 2014 Q2 | J19: 0 | K19: 0 | L19: 0.0147 | M19: 0 | N19: 0
B20: 2015 Q1 | C20: 0.011 | D20: 0.0289 | F20: 2014-05-01 | G20: 2014 | H20: Q2 | I20: 2014 Q2 | J20: 0 | K20: 0 | L20: 0.0147 | M20: 0 | N20: 0
B21: 2015 Q2 | C21: =C20 -> 0.011 | D21: 0.0289 | F21: 2014-06-01 | G21: 2014 | H21: Q2 | I21: 2014 Q2 | J21: 0 | K21: 0 | L21: 0.0147 | M21: 0 | N21: 0
B22: 2015 Q3 | C22: =C21 -> 0.011 | D22: 0.0289 | F22: 2014-07-01 | G22: 2014 | H22: Q3 | I22: 2014 Q3 | J22: 0 | K22: 0 | L22: 0.0147 | M22: 0 | N22: 0
B23: 2015 Q4 | C23: =C22 -> 0.011 | D23: 0.0255 | F23: 2014-08-01 | G23: 2014 | H23: Q3 | I23: 2014 Q3 | J23: 0 | K23: 0 | L23: 0.0147 | M23: 0 | N23: 0
B24: 2016 Q1 | C24: 0.011 | D24: 0.0292 | F24: 2014-09-01 | G24: 2014 | H24: Q3 | I24: 2014 Q3 | J24: 0 | K24: 0 | L24: 0.0147 | M24: 0 | N24: 0
B25: 2016 Q2 | C25: 0.011 | D25: 0.0292 | F25: 2014-10-01 | G25: 2014 | H25: Q4 | I25: 2014 Q4 | J25: 0 | K25: 0 | L25: 0.0147 | M25: 0 | N25: 0
B26: 2016 Q3 | C26: 0.011 | D26: 0.0292 | F26: 2014-11-01 | G26: 2014 | H26: Q4 | I26: 2014 Q4 | J26: 0 | K26: 0 | L26: 0.0147 | M26: 0 | N26: 0
B27: 2016 Q4 | C27: 0.011 | D27: 0.0246 | F27: 2014-12-01 | G27: 2014 | H27: Q4 | I27: 2014 Q4 | J27: 0 | K27: 0 | L27: 0.0147 | M27: 0 | N27: 0
B28: 2017 Q1 | C28: 0.011 | D28: 0.0281 | F28: 2015-01-01 | G28: 2015 | H28: Q1 | I28: 2015 Q1 | J28: 0 | K28: 0 | L28: 0.011 | M28: 0 | N28: 0
B29: 2017 Q2 | C29: 0.011 | D29: 0.0281 | F29: 2015-02-01 | G29: 2015 | H29: Q1 | I29: 2015 Q1 | J29: 0 | K29: 0 | L29: 0.011 | M29: 0 | N29: 0
B30: 2017 Q3 | C30: 0.011 | D30: 0.0246 | F30: 2015-03-01 | G30: 2015 | H30: Q1 | I30: 2015 Q1 | J30: 0 | K30: 0 | L30: 0.011 | M30: 0 | N30: 0
B31: 2017 Q4 | C31: 0.015 | D31: 0.0299 | F31: 2015-04-01 | G31: 2015 | H31: Q2 | I31: 2015 Q2 | J31: 0 | K31: 0 | L31: 0.011 | M31: 0 | N31: 0
B32: 2018 Q1 | C32: 0.015 | D32: 0.0299 | F32: 2015-05-01 | G32: 2015 | H32: Q2 | I32: 2015 Q2 | J32: 0 | K32: 0 | L32: 0.011 | M32: 0 | N32: 0
B33: 2018 Q2 | C33: 0.0189 | D33: 0.0335 | F33: 2015-06-01 | G33: 2015 | H33: Q2 | I33: 2015 Q2 | J33: 0 | K33: 0 | L33: 0.011 | M33: 0 | N33: 0
B34: 2018 Q3 | C34: 0.0189 | D34: 0.0335 | F34: 2015-07-01 | G34: 2015 | H34: Q3 | I34: 2015 Q3 | J34: 0 | K34: 0 | L34: 0.011 | M34: 0 | N34: 0
B35: 2018 Q4 | C35: 0.0217 | D35: 0.0335 | F35: 2015-08-01 | G35: 2015 | H35: Q3 | I35: 2015 Q3 | J35: 0 | K35: 0 | L35: 0.011 | M35: 0 | N35: 0
B36: 2019 Q1 | C36: 0.0245 | D36: 0.0382 | F36: 2015-09-01 | G36: 2015 | H36: Q3 | I36: 2015 Q3 | J36: 0 | K36: 0 | L36: 0.011 | M36: 0 | N36: 0
B37: 2019 Q2 | C37: 0.0218 | D37: 0.0339 | F37: 2015-10-01 | G37: 2015 | H37: Q4 | I37: 2015 Q4 | J37: 0 | K37: 0 | L37: 0.011 | M37: 0 | N37: 0
B38: 2019 Q3 | C38: 0.0218 | D38: 0.0288 | F38: 2015-11-01 | G38: 2015 | H38: Q4 | I38: 2015 Q4 | J38: 0 | K38: 0 | L38: 0.011 | M38: 0 | N38: 0
B39: 2019 Q4 | C39: 0.0218 | D39: 0.0288 | F39: 2015-12-01 | G39: 2015 | H39: Q4 | I39: 2015 Q4 | J39: 0 | K39: 0 | L39: 0.011 | M39: 0 | N39: 0
B40: 2020 Q1 | C40: 0.0218 | D40: 0.0288 | F40: 2016-01-01 | G40: =YEAR(F40) -> 2016 | H40: =IF(MONTH(F40)=0,"",IF(MONTH(F40)<4,"Q1",IF(MONTH(F40)<7,"Q2",IF(MONTH(F40)<10,"Q3","Q4")))) -> Q1 | I40: =CONCATENATE(G40," ",H40) -> 2016 Q1 | J40: =J39+K39 -> 0 | K40: 0 | L40: 0.011 | M40: =ROUND(J40*L40/12,2) -> 0 | N40: =N39+K40+M40 -> 0
B41: 2020 Q2 | C41: 0.0218 | D41: 0.0248 | F41: 2016-02-01 | G41: 2016 | H41: Q1 | I41: 2016 Q1 | J41: 0 | K41: 0 | L41: 0.011 | M41: 0 | N41: 0
B42: 2020 Q3 | C42: 0.0057 | D42: 0.0248 | F42: 2016-03-01 | G42: 2016 | H42: Q1 | I42: 2016 Q1 | J42: 0 | K42: 0 | L42: 0.011 | M42: 0 | N42: 0
B43: 2020 Q4 | C43: 0.0057 | D43: 0.0203 | F43: 2016-04-01 | G43: 2016 | H43: Q2 | I43: 2016 Q2 | J43: 0 | K43: 0 | L43: 0.011 | M43: 0 | N43: 0
B44: 2021 Q1 | C44: 0.0057 | D44: 0.0203 | F44: 2016-05-01 | G44: 2016 | H44: Q2 | I44: 2016 Q2 | J44: 0 | K44: 0 | L44: 0.011 | M44: 0 | N44: 0
B45: 2021 Q2 | C45: 0.0057 | D45: 0.0229 | F45: 2016-06-01 | G45: 2016 | H45: Q2 | I45: 2016 Q2 | J45: 0 | K45: 0 | L45: 0.011 | M45: 0 | N45: 0
B46: 2021 Q3 | C46: 0.0057 | D46: 0.0229 | F46: 2016-07-01 | G46: 2016 | H46: Q3 | I46: 2016 Q3 | J46: 0 | K46: 0 | L46: 0.011 | M46: 0 | N46: 0
B47: 2021 Q4 | C47: 0.0057 | D47: 0.0229 | F47: 2016-08-01 | G47: 2016 | H47: Q3 | I47: 2016 Q3 | J47: 0 | K47: 0 | L47: 0.011 | M47: 0 | N47: 0
B48: 2022 Q1 | C48: 0.0057 | D48: 0.0272 | F48: 2016-09-01 | G48: 2016 | H48: Q3 | I48: 2016 Q3 | J48: 0 | K48: 0 | L48: 0.011 | M48: 0 | N48: 0
B49: 2022 Q2 | C49: 0.0102 | D49: 0.0331 | F49: 2016-10-01 | G49: 2016 | H49: Q4 | I49: 2016 Q4 | J49: 0 | K49: 0 | L49: 0.011 | M49: 0 | N49: 0
B50: 2022 Q3 | C50: 0.022 | D50: 0.0466 | F50: 2016-11-01 | G50: 2016 | H50: Q4 | I50: 2016 Q4 | J50: 0 | K50: 0 | L50: 0.011 | M50: 0 | N50: 0
B51: 2022 Q4 | C51: 0.0387 | D51: 0.0501 | F51: 2016-12-01 | G51: 2016 | H51: Q4 | I51: 2016 Q4 | J51: 0 | K51: 0 | L51: 0.011 | M51: 0 | N51: 0
B52: 2023 Q1 | C52: 0.0473 | D52: 0.0501 | F52: 2017-01-01 | G52: 2017 | H52: Q1 | I52: 2017 Q1 | J52: 0 | K52: 0 | L52: 0.011 | M52: 0 | N52: 0
B53: 2023 Q2 | C53: 0.0498 | D53: 0.0501 | F53: 2017-02-01 | G53: 2017 | H53: Q1 | I53: 2017 Q1 | J53: 0 | K53: 0 | L53: 0.011 | M53: 0 | N53: 0
B54: 2023 Q3 | C54: 0.0498 | D54: 0.0501 | F54: 2017-03-01 | G54: 2017 | H54: Q1 | I54: 2017 Q1 | J54: 0 | K54: 0 | L54: 0.011 | M54: 0 | N54: 0
B55: 2023 Q4 | C55: 0.0549 | D55: 0.0548 | F55: 2017-04-01 | G55: 2017 | H55: Q2 | I55: 2017 Q2 | J55: 0 | K55: 0 | L55: 0.011 | M55: 0 | N55: 0
B56: 2024 Q1 | C56: 0.0549 | D56: 0.0548 | F56: 2017-05-01 | G56: 2017 | H56: Q2 | I56: 2017 Q2 | J56: 0 | K56: 0 | L56: 0.011 | M56: 0 | N56: 0
B57: 2024 Q2 | C57: 0.0549 | D57: 0.0598 | F57: 2017-06-01 | G57: 2017 | H57: Q2 | I57: 2017 Q2 | J57: 0 | K57: 0 | L57: 0.011 | M57: 0 | N57: 0
B58: 2024 Q3 | C58: 0.052 | D58: 0.0598 | F58: 2017-07-01 | G58: 2017 | H58: Q3 | I58: 2017 Q3 | J58: 0 | K58: 0 | L58: 0.011 | M58: 0 | N58: 0
B59: 2024 Q4 | C59: 0.044 | D59: 0.0455 | F59: 2017-08-01 | G59: 2017 | H59: Q3 | I59: 2017 Q3 | J59: 0 | K59: 0 | L59: 0.011 | M59: 0 | N59: 0
B60: 2025 Q1 | C60: 0.0364 | D60: 0.0423 | F60: 2017-09-01 | G60: 2017 | H60: Q3 | I60: 2017 Q3 | J60: 0 | K60: 0 | L60: 0.011 | M60: 0 | N60: 0
B61: 2025 Q2 | C61: 0.0316 | D61: 0.0423 | F61: 2017-10-01 | G61: 2017 | H61: Q4 | I61: 2017 Q4 | J61: 0 | K61: 0 | L61: 0.015 | M61: 0 | N61: 0
B62: 2025 Q3 | C62: 0.0316 | D62: 0.0455 | F62: 2017-11-01 | G62: 2017 | H62: Q4 | I62: 2017 Q4 | J62: 0 | K62: 0 | L62: 0.015 | M62: 0 | N62: 0
B63: 2025 Q4 | C63: 0.0316 | D63: 0.0455 | F63: 2017-12-01 | G63: 2017 | H63: Q4 | I63: 2017 Q4 | J63: 0 | K63: 0 | L63: 0.015 | M63: 0 | N63: 0
B64: 2026 Q1 | C64: 0.0316 | D64: 0.0455 | F64: 2018-01-01 | G64: 2018 | H64: Q1 | I64: 2018 Q1 | J64: 0 | K64: 0 | L64: 0.015 | M64: 0 | N64: 0
B65: 2026 Q2 | C65: 0.0316 | D65: 0.0455 | F65: 2018-02-01 | G65: 2018 | H65: Q1 | I65: 2018 Q1 | J65: 0 | K65: 0 | L65: 0.015 | M65: 0 | N65: 0
B66: 2026 Q3 | C66: 0.0316 | D66: 0.0455 | F66: 2018-03-01 | G66: 2018 | H66: Q1 | I66: 2018 Q1 | J66: 0 | K66: 0 | L66: 0.015 | M66: 0 | N66: 0
B67: 2026 Q4 | C67: 0.0316 | D67: 0.0455 | F67: 2018-04-01 | G67: 2018 | H67: Q2 | I67: 2018 Q2 | J67: 0 | K67: 0 | L67: 0.0189 | M67: 0 | N67: 0
F68: 2018-05-01 | G68: 2018 | H68: Q2 | I68: 2018 Q2 | J68: 0 | K68: 0 | L68: 0.0189 | M68: 0 | N68: 0
F69: 2018-06-01 | G69: 2018 | H69: Q2 | I69: 2018 Q2 | J69: 0 | K69: 0 | L69: 0.0189 | M69: 0 | N69: 0
F70: 2018-07-01 | G70: 2018 | H70: Q3 | I70: 2018 Q3 | J70: 0 | K70: 0 | L70: 0.0189 | M70: 0 | N70: 0
F71: 2018-08-01 | G71: =YEAR(F71) -> 2018 | H71: =IF(MONTH(F71)=0,"",IF(MONTH(F71)<4,"Q1",IF(MONTH(F71)<7,"Q2",IF(MONTH(F71)<10,"Q3","Q4")))) -> Q3 | I71: =CONCATENATE(G71," ",H71) -> 2018 Q3 | J71: =J70+K70 -> 0 | K71: 0 | L71: =VLOOKUP(I71,$B$14:$D$67,2) -> 0.0189 | M71: =ROUND(J71*L71/12,2) -> 0 | N71: =N70+K71+M71 -> 0
F72: 2018-09-01 | G72: 2018 | H72: Q3 | I72: 2018 Q3 | J72: 0 | K72: 0 | L72: 0.0189 | M72: 0 | N72: 0
F73: 2018-10-01 | G73: 2018 | H73: Q4 | I73: 2018 Q4 | J73: 0 | K73: 0 | L73: 0.0217 | M73: 0 | N73: 0
F74: 2018-11-01 | G74: 2018 | H74: Q4 | I74: 2018 Q4 | J74: 0 | K74: 0 | L74: 0.0217 | M74: 0 | N74: 0
F75: 2018-12-01 | G75: 2018 | H75: Q4 | I75: 2018 Q4 | J75: 0 | K75: 0 | L75: 0.0217 | M75: 0 | N75: 0
F76: 2019-01-01 | G76: 2019 | H76: Q1 | I76: 2019 Q1 | J76: 0 | K76: 0 | L76: 0.0245 | M76: 0 | N76: 0
F77: 2019-02-01 | G77: 2019 | H77: Q1 | I77: 2019 Q1 | J77: 0 | K77: 0 | L77: 0.0245 | M77: 0 | N77: 0
F78: 2019-03-01 | G78: 2019 | H78: Q1 | I78: 2019 Q1 | J78: 0 | K78: 0 | L78: 0.0245 | M78: 0 | N78: 0
F79: 2019-04-01 | G79: 2019 | H79: Q2 | I79: 2019 Q2 | J79: 0 | K79: 0 | L79: 0.0218 | M79: 0 | N79: 0
F80: 2019-05-01 | G80: 2019 | H80: Q2 | I80: 2019 Q2 | J80: 0 | K80: 0 | L80: 0.0218 | M80: 0 | N80: 0
F81: 2019-06-01 | G81: 2019 | H81: Q2 | I81: 2019 Q2 | J81: 0 | K81: 0 | L81: 0.0218 | M81: 0 | N81: 0
F82: 2019-07-01 | G82: 2019 | H82: Q3 | I82: 2019 Q3 | J82: 0 | K82: 0 | L82: 0.0218 | M82: 0 | N82: 0
F83: 2019-08-01 | G83: 2019 | H83: Q3 | I83: 2019 Q3 | J83: 0 | K83: 0 | L83: 0.0218 | M83: 0 | N83: 0
F84: 2019-09-01 | G84: 2019 | H84: Q3 | I84: 2019 Q3 | J84: 0 | K84: 0 | L84: 0.0218 | M84: 0 | N84: 0
F85: 2019-10-01 | G85: 2019 | H85: Q4 | I85: 2019 Q4 | J85: 0 | K85: 0 | L85: 0.0218 | M85: 0 | N85: 0
F86: 2019-11-01 | G86: 2019 | H86: Q4 | I86: 2019 Q4 | J86: 0 | K86: 0 | L86: 0.0218 | M86: 0 | N86: 0
F87: 2019-12-01 | G87: 2019 | H87: Q4 | I87: 2019 Q4 | J87: 0 | K87: 0 | L87: 0.0218 | M87: 0 | N87: 0
F88: 2020-01-01 | G88: 2020 | H88: Q1 | I88: 2020 Q1 | J88: 0 | K88: 0 | L88: 0.0218 | M88: 0 | N88: 0
F89: 2020-02-01 | G89: 2020 | H89: Q1 | I89: 2020 Q1 | J89: 0 | K89: 0 | L89: 0.0218 | M89: 0 | N89: 0
F90: 2020-03-01 | G90: 2020 | H90: Q1 | I90: 2020 Q1 | J90: 0 | K90: 0 | L90: 0.0218 | M90: 0 | N90: 0
F91: 2020-04-01 | G91: 2020 | H91: Q2 | I91: 2020 Q2 | J91: 0 | K91: 0 | L91: 0.0218 | M91: 0 | N91: 0
F92: 2020-05-01 | G92: 2020 | H92: Q2 | I92: 2020 Q2 | J92: 0 | K92: 0 | L92: 0.0218 | M92: 0 | N92: 0
F93: 2020-06-01 | G93: 2020 | H93: Q2 | I93: 2020 Q2 | J93: 0 | K93: 0 | L93: 0.0218 | M93: 0 | N93: 0
F94: 2020-07-01 | G94: 2020 | H94: Q3 | I94: 2020 Q3 | J94: 0 | K94: 0 | L94: 0.0057 | M94: 0 | N94: 0
F95: 2020-08-01 | G95: 2020 | H95: Q3 | I95: 2020 Q3 | J95: 0 | K95: 0 | L95: 0.0057 | M95: 0 | N95: 0
F96: 2020-09-01 | G96: 2020 | H96: Q3 | I96: 2020 Q3 | J96: 0 | K96: 0 | L96: 0.0057 | M96: 0 | N96: 0
F97: 2020-10-01 | G97: 2020 | H97: Q4 | I97: 2020 Q4 | J97: 0 | K97: 0 | L97: 0.0057 | M97: 0 | N97: 0
F98: 2020-11-01 | G98: 2020 | H98: Q4 | I98: 2020 Q4 | J98: 0 | K98: 0 | L98: 0.0057 | M98: 0 | N98: 0
F99: 2020-12-01 | G99: 2020 | H99: Q4 | I99: 2020 Q4 | J99: 0 | K99: 0 | L99: 0.0057 | M99: 0 | N99: 0
F100: 2021-01-01 | G100: =YEAR(F100) -> 2021 | H100: =IF(MONTH(F100)=0,"",IF(MONTH(F100)<4,"Q1",IF(MONTH(F100)<7,"Q2",IF(MONTH(F100)<10,"Q3","Q4")))) -> Q1 | I100: =CONCATENATE(G100," ",H100) -> 2021 Q1 | J100: =J99+K99 -> 0 | K100: 0 | L100: =VLOOKUP(I100,$B$14:$D$67,2) -> 0.0057 | M100: =ROUND(J100*L100/12,2) -> 0 | N100: =N99+K100+M100 -> 0
F101: 2021-02-01 | G101: 2021 | H101: Q1 | I101: 2021 Q1 | J101: 0 | K101: 0 | L101: 0.0057 | M101: 0 | N101: 0
F102: 2021-03-01 | G102: 2021 | H102: Q1 | I102: 2021 Q1 | J102: 0 | K102: 0 | L102: 0.0057 | M102: 0 | N102: 0
F103: 2021-04-01 | G103: 2021 | H103: Q2 | I103: 2021 Q2 | J103: 0 | K103: 0 | L103: 0.0057 | M103: 0 | N103: 0
F104: 2021-05-01 | G104: 2021 | H104: Q2 | I104: 2021 Q2 | J104: 0 | K104: 0 | L104: 0.0057 | M104: 0 | N104: 0
F105: 2021-06-01 | G105: 2021 | H105: Q2 | I105: 2021 Q2 | J105: 0 | K105: 0 | L105: 0.0057 | M105: 0 | N105: 0
F106: 2021-07-01 | G106: 2021 | H106: Q3 | I106: 2021 Q3 | J106: 0 | K106: 0 | L106: 0.0057 | M106: 0 | N106: 0
F107: 2021-08-01 | G107: 2021 | H107: Q3 | I107: 2021 Q3 | J107: 0 | K107: 0 | L107: 0.0057 | M107: 0 | N107: 0
F108: 2021-09-01 | G108: 2021 | H108: Q3 | I108: 2021 Q3 | J108: 0 | K108: 0 | L108: 0.0057 | M108: 0 | N108: 0
F109: 2021-10-01 | G109: 2021 | H109: Q4 | I109: 2021 Q4 | J109: 0 | K109: 0 | L109: 0.0057 | M109: 0 | N109: 0
F110: 2021-11-01 | G110: 2021 | H110: Q4 | I110: 2021 Q4 | J110: 0 | K110: 0 | L110: 0.0057 | M110: 0 | N110: 0
F111: 2021-12-01 | G111: 2021 | H111: Q4 | I111: 2021 Q4 | J111: 0 | K111: 0 | L111: 0.0057 | M111: 0 | N111: 0
F112: 2022-01-01 | G112: 2022 | H112: Q1 | I112: 2022 Q1 | J112: 0 | K112: 0 | L112: 0.0057 | M112: 0 | N112: 0
F113: 2022-02-01 | G113: 2022 | H113: Q1 | I113: 2022 Q1 | J113: 0 | K113: 0 | L113: 0.0057 | M113: 0 | N113: 0
F114: 2022-03-01 | G114: 2022 | H114: Q1 | I114: 2022 Q1 | J114: 0 | K114: 0 | L114: 0.0057 | M114: 0 | N114: 0
F115: 2022-04-01 | G115: 2022 | H115: Q2 | I115: 2022 Q2 | J115: 0 | K115: 0 | L115: 0.0102 | M115: 0 | N115: 0
F116: 2022-05-01 | G116: 2022 | H116: Q2 | I116: 2022 Q2 | J116: 0 | K116: 0 | L116: 0.0102 | M116: 0 | N116: 0
F117: 2022-06-01 | G117: 2022 | H117: Q2 | I117: 2022 Q2 | J117: 0 | K117: 0 | L117: 0.0102 | M117: 0 | N117: 0
F118: 2022-07-01 | G118: 2022 | H118: Q3 | I118: 2022 Q3 | J118: 0 | K118: 0 | L118: 0.022 | M118: 0 | N118: 0
F119: 2022-08-01 | G119: 2022 | H119: Q3 | I119: 2022 Q3 | J119: 0 | K119: 0 | L119: 0.022 | M119: 0 | N119: 0
F120: 2022-09-01 | G120: 2022 | H120: Q3 | I120: 2022 Q3 | J120: 0 | K120: 0 | L120: 0.022 | M120: 0 | N120: 0
F121: 2022-10-01 | G121: 2022 | H121: Q4 | I121: 2022 Q4 | J121: 0 | K121: 0 | L121: 0.0387 | M121: 0 | N121: 0
F122: 2022-11-01 | G122: 2022 | H122: Q4 | I122: 2022 Q4 | J122: 0 | K122: 0 | L122: 0.0387 | M122: 0 | N122: 0
F123: 2022-12-01 | G123: 2022 | H123: Q4 | I123: 2022 Q4 | J123: 0 | K123: 0 | L123: 0.0387 | M123: 0 | N123: 0
F124: 2023-01-01 | G124: 2023 | H124: Q1 | I124: 2023 Q1 | J124: 0 | K124: 0 | L124: 0.0473 | M124: 0 | N124: 0
F125: 2023-02-01 | G125: 2023 | H125: Q1 | I125: 2023 Q1 | J125: 0 | K125: 0 | L125: 0.0473 | M125: 0 | N125: 0
F126: 2023-03-01 | G126: 2023 | H126: Q1 | I126: 2023 Q1 | J126: 0 | K126: 0 | L126: 0.0473 | M126: 0 | N126: 0
F127: 2023-04-01 | G127: 2023 | H127: Q2 | I127: 2023 Q2 | J127: 0 | K127: 0 | L127: 0.0498 | M127: 0 | N127: 0
F128: 2023-05-01 | G128: 2023 | H128: Q2 | I128: 2023 Q2 | J128: 0 | K128: 0 | L128: 0.0498 | M128: 0 | N128: 0
F129: 2023-06-01 | G129: 2023 | H129: Q2 | I129: 2023 Q2 | J129: 0 | K129: 0 | L129: 0.0498 | M129: 0 | N129: 0
F130: 2023-07-01 | G130: 2023 | H130: Q3 | I130: 2023 Q3 | J130: 0 | K130: 0 | L130: 0.0498 | M130: 0 | N130: 0
F131: 2023-08-01 | G131: 2023 | H131: Q3 | I131: 2023 Q3 | J131: 0 | K131: 0 | L131: 0.0498 | M131: 0 | N131: 0
F132: 2023-09-01 | G132: 2023 | H132: Q3 | I132: 2023 Q3 | J132: 0 | K132: 0 | L132: 0.0498 | M132: 0 | N132: 0
F133: 2023-10-01 | G133: 2023 | H133: Q4 | I133: 2023 Q4 | J133: 0 | K133: 0 | L133: 0.0549 | M133: 0 | N133: 0
F134: 2023-11-01 | G134: 2023 | H134: Q4 | I134: 2023 Q4 | J134: 0 | K134: 0 | L134: 0.0549 | M134: 0 | N134: 0
F135: 2023-12-01 | G135: =YEAR(F135) -> 2023 | H135: =IF(MONTH(F135)=0,"",IF(MONTH(F135)<4,"Q1",IF(MONTH(F135)<7,"Q2",IF(MONTH(F135)<10,"Q3","Q4")))) -> Q4 | I135: =CONCATENATE(G135," ",H135) -> 2023 Q4 | J135: =J134+K134 -> 0 | K135: 0 | L135: =VLOOKUP(I135,$B$14:$D$67,2) -> 0.0549 | M135: =ROUND(J135*L135/12,2) -> 0 | N135: =N134+K135+M135 -> 0
F136: 2024-01-01 | G136: 2024 | H136: Q1 | I136: 2024 Q1 | J136: 0 | K136: 0 | L136: 0.0549 | M136: 0 | N136: 0
F137: 2024-02-01 | G137: 2024 | H137: Q1 | I137: 2024 Q1 | J137: 0 | K137: 0 | L137: 0.0549 | M137: 0 | N137: 0
F138: 2024-03-01 | G138: 2024 | H138: Q1 | I138: 2024 Q1 | J138: 0 | K138: 0 | L138: 0.0549 | M138: 0 | N138: 0
F139: 2024-04-01 | G139: 2024 | H139: Q2 | I139: 2024 Q2 | J139: 0 | K139: 0 | L139: 0.0549 | M139: 0 | N139: 0
F140: 2024-05-01 | G140: 2024 | H140: Q2 | I140: 2024 Q2 | J140: 0 | K140: 0 | L140: 0.0549 | M140: 0 | N140: 0
F141: 2024-06-01 | G141: 2024 | H141: Q2 | I141: 2024 Q2 | J141: 0 | K141: 0 | L141: 0.0549 | M141: 0 | N141: 0
F142: 2024-07-01 | G142: 2024 | H142: Q3 | I142: 2024 Q3 | J142: 0 | K142: 0 | L142: 0.052 | M142: 0 | N142: 0
F143: 2024-08-01 | G143: 2024 | H143: Q3 | I143: 2024 Q3 | J143: 0 | K143: 0 | L143: 0.052 | M143: 0 | N143: 0
F144: 2024-09-01 | G144: 2024 | H144: Q3 | I144: 2024 Q3 | J144: 0 | K144: 0 | L144: 0.052 | M144: 0 | N144: 0
F145: 2024-10-01 | G145: 2024 | H145: Q4 | I145: 2024 Q4 | J145: 0 | K145: 0 | L145: 0.044 | M145: 0 | N145: 0
F146: 2024-11-01 | G146: 2024 | H146: Q4 | I146: 2024 Q4 | J146: 0 | K146: 0 | L146: 0.044 | M146: 0 | N146: 0
F147: 2024-12-01 | G147: 2024 | H147: Q4 | I147: 2024 Q4 | J147: 0 | K147: 0 | L147: 0.044 | M147: 0 | N147: 0
F148: 2025-01-01 | G148: 2025 | H148: Q1 | I148: 2025 Q1 | J148: 0 | K148: 0 | L148: 0.0364 | M148: 0 | N148: 0
F149: 2025-02-01 | G149: 2025 | H149: Q1 | I149: 2025 Q1 | J149: 0 | K149: 0 | L149: 0.0364 | M149: 0 | N149: 0
F150: 2025-03-01 | G150: 2025 | H150: Q1 | I150: 2025 Q1 | J150: 0 | K150: 0 | L150: 0.0364 | M150: 0 | N150: 0
F151: 2025-04-01 | G151: 2025 | H151: Q2 | I151: 2025 Q2 | J151: 0 | K151: 0 | L151: 0.0316 | M151: 0 | N151: 0
F152: 2025-05-01 | G152: 2025 | H152: Q2 | I152: 2025 Q2 | J152: 0 | K152: 0 | L152: 0.0316 | M152: 0 | N152: 0
F153: 2025-06-01 | G153: 2025 | H153: Q2 | I153: 2025 Q2 | J153: 0 | K153: 0 | L153: 0.0316 | M153: 0 | N153: 0
F154: 2025-07-01 | G154: 2025 | H154: Q3 | I154: 2025 Q3 | J154: 0 | K154: 0 | L154: 0.0316 | M154: 0 | N154: 0
F155: 2025-08-01 | G155: 2025 | H155: Q3 | I155: 2025 Q3 | J155: 0 | K155: 0 | L155: 0.0316 | M155: 0 | N155: 0
F156: 2025-09-01 | G156: 2025 | H156: Q3 | I156: 2025 Q3 | J156: 0 | K156: 0 | L156: 0.0316 | M156: 0 | N156: 0
F157: 2025-10-01 | G157: 2025 | H157: Q4 | I157: 2025 Q4 | J157: 0 | K157: 0 | L157: 0.0316 | M157: 0 | N157: 0
F158: 2025-11-01 | G158: 2025 | H158: Q4 | I158: 2025 Q4 | J158: 0 | K158: 0 | L158: 0.0316 | M158: 0 | N158: 0
F159: 2025-12-01 | G159: 2025 | H159: Q4 | I159: 2025 Q4 | J159: 0 | K159: 0 | L159: 0.0316 | M159: 0 | N159: 0
F160: 2026-01-01 | G160: 2026 | H160: Q1 | I160: 2026 Q1 | J160: 0 | K160: 0 | L160: 0.0316 | M160: 0 | N160: 0
F161: 2026-02-01 | G161: 2026 | H161: Q1 | I161: 2026 Q1 | J161: 0 | K161: 0 | L161: 0.0316 | M161: 0 | N161: 0
F162: 2026-03-01 | G162: 2026 | H162: Q1 | I162: 2026 Q1 | J162: 0 | K162: 0 | L162: 0.0316 | M162: 0 | N162: 0
F163: 2026-04-01 | G163: 2026 | H163: Q2 | I163: 2026 Q2 | J163: 0 | K163: 0 | L163: 0.0316 | M163: 0 | N163: 0
F164: 2026-05-01 | G164: 2026 | H164: Q2 | I164: 2026 Q2 | J164: 0 | K164: 0 | L164: 0.0316 | M164: 0 | N164: 0
F165: 2026-06-01 | G165: 2026 | H165: Q2 | I165: 2026 Q2 | J165: 0 | K165: 0 | L165: 0.0316 | M165: 0 | N165: 0
F166: 2026-07-01 | G166: 2026 | H166: Q3 | I166: 2026 Q3 | J166: 0 | K166: 0 | L166: 0.0316 | M166: 0 | N166: 0
F167: 2026-08-01 | G167: =YEAR(F167) -> 2026 | H167: =IF(MONTH(F167)=0,"",IF(MONTH(F167)<4,"Q1",IF(MONTH(F167)<7,"Q2",IF(MONTH(F167)<10,"Q3","Q4")))) -> Q3 | I167: =CONCATENATE(G167," ",H167) -> 2026 Q3 | J167: =J166+K166 -> 0 | K167: 0 | L167: =VLOOKUP(I167,$B$14:$D$67,2) -> 0.0316 | M167: =ROUND(J167*L167/12,2) -> 0 | N167: =N166+K167+M167 -> 0
F168: 2026-09-01 | G168: 2026 | H168: Q3 | I168: 2026 Q3 | J168: 0 | K168: 0 | L168: 0.0316 | M168: 0 | N168: 0
F169: 2026-10-01 | G169: 2026 | H169: Q4 | I169: 2026 Q4 | J169: 0 | K169: 0 | L169: 0.0316 | M169: 0 | N169: 0
F170: 2026-11-01 | G170: 2026 | H170: Q4 | I170: 2026 Q4 | J170: 0 | K170: 0 | L170: 0.0316 | M170: 0 | N170: 0
F171: 2026-12-01 | G171: 2026 | H171: Q4 | I171: 2026 Q4 | J171: 0 | K171: 0 | L171: 0.0316 | M171: 0 | N171: 0
F173: Total Funding Adder Revenues Collected | K173: =SUM(K16:K39) -> 0 | M173: =SUM(M16:M39) -> 0 | N173: =K173+M173 -> 0
B175: NOTE: Funding adder revenues are up to December 2014 actuals

Sheet 5. MIST Meters_IRR
B4: MIST Meters True-up Model
B9: Sheet 5: Revenue Requirement Calculations
B14: Return on Rate Base | E14: 2014 | H14: 2015 | K14: 2016 | N14: 2017 | Q14: 2018 | T14: 2019 | W14: 2020 | Z14: 2021 | AC14: 2022 | AF14: 2023 | AI14: 2024 | AL14: 2025 | AO14: 2026
B15: Average Fixed Assets | E15: ='2. MIST Meters Assets_Rate Base'!E268-'2. MIST Meters Assets_Rate Base'!E269 -> 213806.31 | H15: ='2. MIST Meters Assets_Rate Base'!G268-'2. MIST Meters Assets_Rate Base'!G269 -> 843456.22 | K15: ='2. MIST Meters Assets_Rate Base'!I268-'2. MIST Meters Assets_Rate Base'!I269 -> 1612602.775 | N15: ='2. MIST Meters Assets_Rate Base'!K268-'2. MIST Meters Assets_Rate Base'!K269 -> 2380435.575 | Q15: ='2. MIST Meters Assets_Rate Base'!M268-'2. MIST Meters Assets_Rate Base'!M269 -> 2707696.895 | T15: ='2. MIST Meters Assets_Rate Base'!O268-'2. MIST Meters Assets_Rate Base'!O269 -> 2531050.49 | W15: ='2. MIST Meters Assets_Rate Base'!Q268-'2. MIST Meters Assets_Rate Base'!Q269 -> 2314824.33 | Z15: ='2. MIST Meters Assets_Rate Base'!S268-'2. MIST Meters Assets_Rate Base'!S269 -> 2098598.17 | AC15: ='2. MIST Meters Assets_Rate Base'!U268-'2. MIST Meters Assets_Rate Base'!U269 -> 1882372.01 | AF15: ='2. MIST Meters Assets_Rate Base'!W268-'2. MIST Meters Assets_Rate Base'!W269 -> 1666145.85 | AI15: ='2. MIST Meters Assets_Rate Base'!Y268-'2. MIST Meters Assets_Rate Base'!Y269 -> 1449919.69 | AL15: ='2. MIST Meters Assets_Rate Base'!AA268-'2. MIST Meters Assets_Rate Base'!AA269 -> 1233693.53 | AO15: ='2. MIST Meters Assets_Rate Base'!AC268-'2. MIST Meters Assets_Rate Base'!AC269 -> 1017467.37 | AP15: B
B16: Depreciation Expense | E16: =-'2. MIST Meters Assets_Rate Base'!E269 -> 13793.96 | H16: =-'2. MIST Meters Assets_Rate Base'!G269 -> 55306.46 | K16: =-'2. MIST Meters Assets_Rate Base'!I269 -> 108496.98 | N16: =-'2. MIST Meters Assets_Rate Base'!K269 -> 165034.39 | Q16: =-'2. MIST Meters Assets_Rate Base'!M269 -> 196795.39 | T16: =-'2. MIST Meters Assets_Rate Base'!O269 -> 216226.16 | W16: =-'2. MIST Meters Assets_Rate Base'!Q269 -> 216226.16 | Z16: =-'2. MIST Meters Assets_Rate Base'!S269 -> 216226.16 | AC16: =-'2. MIST Meters Assets_Rate Base'!U269 -> 216226.16 | AF16: =-'2. MIST Meters Assets_Rate Base'!W269 -> 216226.16 | AI16: =-'2. MIST Meters Assets_Rate Base'!Y269 -> 216226.16 | AL16: =-'2. MIST Meters Assets_Rate Base'!AA269 -> 216226.16 | AO16: =-'2. MIST Meters Assets_Rate Base'!AC269 -> 216226.16 | AP16: C
B17: Net Fixed Assets to be included in Rate Base | E17: =E15-E16 -> 200012.35 | H17: =H15-H16 -> 788149.76 | K17: =K15-K16 -> 1504105.795 | N17: =N15-N16 -> 2215401.185 | Q17: =Q15-Q16 -> 2510901.505 | T17: =T15-T16 -> 2314824.33 | W17: =W15-W16 -> 2098598.17 | Z17: =Z15-Z16 -> 1882372.01 | AC17: =AC15-AC16 -> 1666145.85 | AF17: =AF15-AF16 -> 1449919.69 | AI17: =AI15-AI16 -> 1233693.53 | AL17: =AL15-AL16 -> 1017467.37 | AO17: =AO15-AO16 -> 801241.21 | AP17: D = B - C
B19: Deemed ShortTerm Debt % | C19: 0.04 | D19: E | E19: =E17*C19 -> 8000.494 | F19: ='1. Cost of Service_parameters'!I14 -> 0.04 | H19: =H17*F19 -> 31525.9904 | I19: ='1. Cost of Service_parameters'!K14 -> 0.04 | K19: =K17*I19 -> 60164.2318 | L19: ='1. Cost of Service_parameters'!M14 -> 0.04 | N19: =N17*L19 -> 88616.0474 | O19: =L19 -> 0.04 | Q19: =Q17*O19 -> 100436.0602 | R19: =O19 -> 0.04 | T19: =T17*R19 -> 92592.9732 | U19: =R19 -> 0.04 | W19: =W17*U19 -> 83943.9268 | X19: =U19 -> 0.04 | Z19: =Z17*X19 -> 75294.8804 | AA19: =X19 -> 0.04 | AC19: =AC17*AA19 -> 66645.834 | AD19: =AA19 -> 0.04 | AF19: =AF17*AD19 -> 57996.7876 | AG19: =AD19 -> 0.04 | AI19: =AI17*AG19 -> 49347.7412 | AJ19: =AG19 -> 0.04 | AL19: =AL17*AJ19 -> 40698.6948 | AM19: =AJ19 -> 0.04 | AO19: =AO17*AM19 -> 32049.6484 | AP19: G = D * E
B20: Deemed Long Term Debt % | C20: 0.56 | D20: F | E20: =E17*C20 -> 112006.916 | F20: ='1. Cost of Service_parameters'!I15 -> 0.56 | H20: =H17*F20 -> 441363.8656 | I20: ='1. Cost of Service_parameters'!K15 -> 0.56 | K20: =K17*I20 -> 842299.2452 | L20: ='1. Cost of Service_parameters'!M15 -> 0.56 | N20: =N17*L20 -> 1240624.664 | O20: =L20 -> 0.56 | Q20: =Q17*O20 -> 1406104.843 | R20: =O20 -> 0.56 | T20: =T17*R20 -> 1296301.625 | U20: =R20 -> 0.56 | W20: =W17*U20 -> 1175214.975 | X20: =U20 -> 0.56 | Z20: =Z17*X20 -> 1054128.326 | AA20: =X20 -> 0.56 | AC20: =AC17*AA20 -> 933041.676 | AD20: =AA20 -> 0.56 | AF20: =AF17*AD20 -> 811955.0264 | AG20: =AD20 -> 0.56 | AI20: =AI17*AG20 -> 690868.3768 | AJ20: =AG20 -> 0.56 | AL20: =AL17*AJ20 -> 569781.7272 | AM20: =AJ20 -> 0.56 | AO20: =AO17*AM20 -> 448695.0776 | AP20: H = D * F
B22: Short Term Interest | C22: ='1. Cost of Service_parameters'!G21 -> 0.0208 | D22: I | E22: =E19*C22 -> 166.4102752 | F22: ='1. Cost of Service_parameters'!I21 -> 0.0208 | H22: =H19*F22 -> 655.7406003 | I22: ='1. Cost of Service_parameters'!K21 -> 0.0208 | K22: =K19*I22 -> 1251.416021 | L22: ='1. Cost of Service_parameters'!M21 -> 0.0208 | N22: =N19*L22 -> 1843.213786 | O22: 0.0208 | Q22: =Q19*O22 -> 2089.070052 | R22: 0.0208 | T22: =T19*R22 -> 1925.933843 | U22: 0.0208 | W22: =W19*U22 -> 1746.033677 | X22: 0.0208 | Z22: =Z19*X22 -> 1566.133512 | AA22: 0.0208 | AC22: =AC19*AA22 -> 1386.233347 | AD22: 0.0208 | AF22: =AF19*AD22 -> 1206.333182 | AG22: 0.0208 | AI22: =AI19*AG22 -> 1026.433017 | AJ22: 0.0208 | AL22: =AL19*AJ22 -> 846.5328518 | AM22: 0.0208 | AO22: =AO19*AM22 -> 666.6326867 | AP22: K = G * I
B23: Long Term Interest | C23: ='1. Cost of Service_parameters'!G22 -> 0.050914 | D23: J | E23: =E20*C23 -> 5702.720121 | F23: ='1. Cost of Service_parameters'!I22 -> 0.050914 | H23: =H20*F23 -> 22471.59985 | I23: ='1. Cost of Service_parameters'!K22 -> 0.050914 | K23: =K20*I23 -> 42884.82377 | L23: ='1. Cost of Service_parameters'!M22 -> 0.050914 | N23: =N20*L23 -> 63165.16412 | O23: 0.050914 | Q23: =Q20*O23 -> 71590.42197 | R23: 0.050914 | T23: =T20*R23 -> 65999.90093 | U23: 0.050914 | W23: =W20*U23 -> 59834.89525 | X23: 0.050914 | Z23: =Z20*X23 -> 53669.88957 | AA23: 0.050914 | AC23: =AC20*AA23 -> 47504.88389 | AD23: 0.050914 | AF23: =AF20*AD23 -> 41339.87821 | AG23: 0.050914 | AI23: =AI20*AG23 -> 35174.87254 | AJ23: 0.050914 | AL23: =AL20*AJ23 -> 29009.86686 | AM23: 0.050914 | AO23: =AO20*AM23 -> 22844.86118 | AP23: L = H * J
B25: Return on Rate Base - Interest | E25: =SUM(E22:E23) -> 5869.130396 | H25: =SUM(H22:H23) -> 23127.34045 | K25: =SUM(K22:K23) -> 44136.23979 | N25: =SUM(N22:N23) -> 65008.37791 | Q25: =SUM(Q22:Q23) -> 73679.49202 | T25: =SUM(T22:T23) -> 67925.83477 | W25: =SUM(W22:W23) -> 61580.92892 | Z25: =SUM(Z22:Z23) -> 55236.02308 | AC25: =SUM(AC22:AC23) -> 48891.11724 | AF25: =SUM(AF22:AF23) -> 42546.2114 | AI25: =SUM(AI22:AI23) -> 36201.30555 | AL25: =SUM(AL22:AL23) -> 29856.39971 | AO25: =SUM(AO22:AO23) -> 23511.49387 | AP25: M = K + L
AV27: aaa
B28: Deemed Equity % | C28: ='1. Cost of Service_parameters'!G16 -> 0.4 | D28: N | E28: =E17*C28 -> 80004.94 | F28: ='1. Cost of Service_parameters'!I16 -> 0.4 | H28: =H17*F28 -> 315259.904 | I28: ='1. Cost of Service_parameters'!K16 -> 0.4 | K28: =K17*I28 -> 601642.318 | L28: ='1. Cost of Service_parameters'!M16 -> 0.4 | N28: =N17*L28 -> 886160.474 | O28: 0.4 | Q28: =Q17*O28 -> 1004360.602 | R28: 0.4 | T28: =T17*R28 -> 925929.732 | U28: 0.4 | W28: =W17*U28 -> 839439.268 | X28: 0.4 | Z28: =Z17*X28 -> 752948.804 | AA28: 0.4 | AC28: =AC17*AA28 -> 666458.34 | AD28: 0.4 | AF28: =AF17*AD28 -> 579967.876 | AG28: 0.4 | AI28: =AI17*AG28 -> 493477.412 | AJ28: 0.4 | AL28: =AL17*AJ28 -> 406986.948 | AM28: 0.4 | AO28: =AO17*AM28 -> 320496.484 | AP28: P = D * N
B30: Return on Rate Base -Equity | C30: ='1. Cost of Service_parameters'!G23 -> 0.0893 | D30: O | E30: =E28*C30 -> 7144.441142 | F30: ='1. Cost of Service_parameters'!I23 -> 0.0893 | H30: =H28*F30 -> 28152.70943 | I30: ='1. Cost of Service_parameters'!K23 -> 0.0893 | K30: =K28*I30 -> 53726.659 | L30: ='1. Cost of Service_parameters'!M23 -> 0.0893 | N30: =N28*L30 -> 79134.13033 | Q30: =Q28*O30 -> 0 | R30: ='1. Cost of Service_parameters'!R23 -> 0 | T30: =T28*R30 -> 0 | U30: ='1. Cost of Service_parameters'!U23 -> 0.0893 | W30: =W28*U30 -> 74961.92663 | X30: ='1. Cost of Service_parameters'!X23 -> 0 | Z30: =Z28*X30 -> 0 | AA30: ='1. Cost of Service_parameters'!AA23 -> 0.0893 | AC30: =AC28*AA30 -> 59514.72976 | AD30: ='1. Cost of Service_parameters'!AD23 -> 0 | AF30: =AF28*AD30 -> 0 | AG30: ='1. Cost of Service_parameters'!AG23 -> 0 | AI30: =AI28*AG30 -> 0 | AJ30: ='1. Cost of Service_parameters'!AJ23 -> 0 | AL30: =AL28*AJ30 -> 0 | AM30: ='1. Cost of Service_parameters'!AM23 -> 0 | AO30: =AO28*AM30 -> 0 | AP30: Q = P * O
B32: Return on Rate Base - Total | E32: =E25+E30 -> 13013.57154 | H32: =H25+H30 -> 51280.04988 | K32: =K25+K30 -> 97862.89879 | N32: =N25+N30 -> 144142.5082 | Q32: =Q25+Q30 -> 73679.49202 | T32: =T25+T30 -> 67925.83477 | W32: =W25+W30 -> 136542.8556 | Z32: =Z25+Z30 -> 55236.02308 | AC32: =AC25+AC30 -> 108405.847 | AF32: =AF25+AF30 -> 42546.2114 | AI32: =AI25+AI30 -> 36201.30555 | AL32: =AL25+AL30 -> 29856.39971 | AO32: =AO25+AO30 -> 23511.49387 | AP32: R = M + Q
B36: Amortization Expense
B38: Amortization Expense - Incremental | D38: C | E38: =E16 -> 13793.96 | H38: =H16 -> 55306.46 | K38: =K16 -> 108496.98 | N38: =N16 -> 165034.39 | Q38: =Q16 -> 196795.39 | T38: =T16 -> 216226.16 | W38: =W16 -> 216226.16 | Z38: =Z16 -> 216226.16 | AC38: =AC16 -> 216226.16 | AF38: =AF16 -> 216226.16 | AI38: =AI16 -> 216226.16 | AL38: =AL16 -> 216226.16 | AO38: =AO16 -> 216226.16 | AP38: S
B41: OM&A Expense
B43: OM&A Expense - Incremental | D43: D | Z43: 25769.78
B48: Grossed up PIL's
B50: Regulatory Taxable Income | D50: O | E50: =E30 -> 7144.441142 | H50: =H30 -> 28152.70943 | K50: =K30 -> 53726.659 | N50: =N30 -> 79134.13033 | Q50: =Q30 -> 0 | T50: =T30 -> 0 | W50: =W30 -> 74961.92663 | Z50: =Z30 -> 0 | AC50: =AC30 -> 59514.72976 | AF50: =AF30 -> 0 | AI50: =AI30 -> 0 | AL50: =AL30 -> 0 | AO50: =AO30 -> 0 | AP50: T
B52: Add Back Amortization Expense | D52: S | E52: =E38 -> 13793.96 | H52: =H38 -> 55306.46 | K52: =K38 -> 108496.98 | N52: =N38 -> 165034.39 | Q52: =Q38 -> 196795.39 | T52: =T38 -> 216226.16 | W52: =W38 -> 216226.16 | Z52: =Z38 -> 216226.16 | AC52: =AC38 -> 216226.16 | AF52: =AF38 -> 216226.16 | AI52: =AI38 -> 216226.16 | AL52: =AL38 -> 216226.16 | AO52: =AO38 -> 216226.16 | AP52: U
B54: Deduct CCA | E54: ='3. UCC_Calculations'!D88 -> 16552.7464 | H54: ='3. UCC_Calculations'!F88 -> 65043.53629 | K54: ='3. UCC_Calculations'!I88 -> 0 | N54: ='3. UCC_Calculations'!L88 -> 205203.6774 | Q54: ='3. UCC_Calculations'!L88 -> 205203.6774 | T54: ='3. UCC_Calculations'!O88 -> 0 | W54: ='3. UCC_Calculations'!R88 -> 160496.1211 | Z54: ='3. UCC_Calculations'!U88 -> 0 | AC54: ='3. UCC_Calculations'!X88 -> 124976.4035 | AF54: ='3. UCC_Calculations'!AA88 -> 0 | AI54: ='3. UCC_Calculations'!AD88 -> 0 | AL54: ='3. UCC_Calculations'!AG88 -> 0 | AO54: ='3. UCC_Calculations'!AJ88 -> 0 | AP54: V
B56: Incremental Taxable Income | E56: =E50+E52-E54 -> 4385.654742 | H56: =H50+H52-H54 -> 18415.63314 | K56: =K50+K52-K54 -> 162223.639 | N56: =N50+N52-N54 -> 38964.84292 | Q56: =Q50+Q52-Q54 -> -8408.287412 | T56: =T50+T52-T54 -> 216226.16 | W56: =W50+W52-W54 -> 130691.9656 | Z56: =Z50+Z52-Z54 -> 216226.16 | AC56: =AC50+AC52-AC54 -> 150764.4862 | AF56: =AF50+AF52-AF54 -> 216226.16 | AI56: =AI50+AI52-AI54 -> 216226.16 | AL56: =AL50+AL52-AL54 -> 216226.16 | AO56: =AO50+AO52-AO54 -> 216226.16 | AP56: W = T + U - V
B58: Current Tax Rate (F1.1 Z-Factor Tax Changes) | C58: 0.265 | D58: X | F58: 0.265 | I58: 0.265 | L58: 0.265 | O58: 0.265 | R58: 0.265 | U58: 0.265 | X58: 0.265 | AA58: 0.265 | AD58: 0.265 | AG58: 0.265 | AJ58: 0.265 | AM58: 0.265
B60: PIL's Before Gross Up | E60: =E56*C58 -> 1162.198507 | H60: =H56*F58 -> 4880.142782 | K60: =K56*I58 -> 42989.26433 | N60: =N56*L58 -> 10325.68337 | Q60: =Q56*O58 -> -2228.196164 | T60: =T56*R58 -> 57299.9324 | W60: =W56*U58 -> 34633.37087 | Z60: =Z56*X58 -> 57299.9324 | AC60: =AC56*AA58 -> 39952.58885 | AF60: =AF56*AD58 -> 57299.9324 | AI60: =AI56*AG58 -> 57299.9324 | AL60: =AL56*AJ58 -> 57299.9324 | AO60: =AO56*AM58 -> 57299.9324 | AP60: Y = W * X
B62: Incremental Grossed Up PIL's | E62: =E60/(1-C58) -> 1581.222458 | H62: =H60/(1-F58) -> 6639.650043 | K62: =K60/(1-I58) -> 58488.79501 | N62: =N60/(1-L58) -> 14048.54881 | Q62: =Q60/(1-O58) -> -3031.559407 | T62: =T60/(1-R58) -> 77959.0917 | W62: =W60/(1-U58) -> 47120.23248 | Z62: =Z60/(1-X58) -> 77959.0917 | AC62: =AC60/(1-AA58) -> 54357.26374 | AF62: =AF60/(1-AD58) -> 77959.0917 | AI62: =AI60/(1-AG58) -> 77959.0917 | AL62: =AL60/(1-AJ58) -> 77959.0917 | AO62: =AO60/(1-AM58) -> 77959.0917 | AP62: Z = Y / ( 1 - X )
B65: Incremental Revenue Requirement
B66: Return on Rate Base - Total | D66: Q | E66: =E32 -> 13013.57154 | H66: =H32 -> 51280.04988 | K66: =K32 -> 97862.89879 | N66: =N32 -> 144142.5082 | Q66: =Q32 -> 73679.49202 | T66: =T32 -> 67925.83477 | W66: =W32 -> 136542.8556 | Z66: =Z32 -> 55236.02308 | AC66: =AC32 -> 108405.847 | AF66: =AF32 -> 42546.2114 | AI66: =AI32 -> 36201.30555 | AL66: =AL32 -> 29856.39971 | AO66: =AO32 -> 23511.49387 | AP66: AF
B67: Amortization Expense - Total | D67: S | E67: =E38 -> 13793.96 | H67: =H38 -> 55306.46 | K67: =K38 -> 108496.98 | N67: =N38 -> 165034.39 | Q67: =Q38 -> 196795.39 | T67: =T38 -> 216226.16 | W67: =W38 -> 216226.16 | Z67: =Z38 -> 216226.16 | AC67: =AC38 -> 216226.16 | AF67: =AF38 -> 216226.16 | AI67: =AI38 -> 216226.16 | AL67: =AL38 -> 216226.16 | AO67: =AO38 -> 216226.16 | AP67: AG
B68: Incremental Grossed Up PIL's | D68: Z | E68: =E62 -> 1581.222458 | H68: =H62 -> 6639.650043 | K68: =K62 -> 58488.79501 | N68: =N62 -> 14048.54881 | Q68: =Q62 -> -3031.559407 | T68: =T62 -> 77959.0917 | W68: =W62 -> 47120.23248 | Z68: =Z62 -> 77959.0917 | AC68: =AC62 -> 54357.26374 | AF68: =AF62 -> 77959.0917 | AI68: =AI62 -> 77959.0917 | AL68: =AL62 -> 77959.0917 | AO68: =AO62 -> 77959.0917 | AP68: AH
B69: OM&A | Z69: =Z43 -> 25769.78
B70: Incremental Revenue Requirement | E70: =SUM(E66:E68) -> 28388.754 | H70: =SUM(H66:H68) -> 113226.1599 | K70: =SUM(K66:K68) -> 264848.6738 | N70: =SUM(N66:N68) -> 323225.447 | Q70: =SUM(Q66:Q68) -> 267443.3226 | T70: =SUM(T66:T68) -> 362111.0865 | W70: =SUM(W66:W68) -> 399889.248 | Z70: =SUM(Z66:Z69) -> 375191.0548 | AC70: =SUM(AC66:AC68) -> 378989.2707 | AF70: =SUM(AF66:AF68) -> 336731.4631 | AI70: =SUM(AI66:AI68) -> 330386.5573 | AL70: =SUM(AL66:AL68) -> 324041.6514 | AO70: =SUM(AO66:AO68) -> 317696.7456 | AP70: AJ = AF + AG + AH + AI

Sheet 6. True-up Summary
D4: MIST Meters True-up Model
B9: Sheet 6: MIST Meters Incremental Revenue Requirement
E12: 2014 | G12: 2015 | I12: 2016 | K12: 2017 | M12: 2018 | O12: 2019 | Q12: 2020 | S12: 2021 | U12: 2022 | W12: 2023 | Y12: 2024 | AA12: 2025 | AC12: 2026 | AE12: Total
C14: Deferred and forecasted MIST Meters Revenue Requirement (from Sheet 5) | E14: ='5. MIST Meters_IRR'!E70 -> 28388.754 | G14: ='5. MIST Meters_IRR'!H70 -> 113226.1599 | I14: ='5. MIST Meters_IRR'!K70 -> 264848.6738 | K14: ='5. MIST Meters_IRR'!N70 -> 323225.447 | M14: ='5. MIST Meters_IRR'!Q70 -> 267443.3226 | O14: ='5. MIST Meters_IRR'!T70 -> 362111.0865 | Q14: ='5. MIST Meters_IRR'!W70 -> 399889.248 | S14: ='5. MIST Meters_IRR'!Z70 -> 375191.0548 | U14: ='5. MIST Meters_IRR'!AC70 -> 378989.2707 | W14: ='5. MIST Meters_IRR'!AF70 -> 336731.4631 | Y14: ='5. MIST Meters_IRR'!AI70 -> 330386.5573 | AA14: ='5. MIST Meters_IRR'!AL70 -> 324041.6514 | AC14: ='5. MIST Meters_IRR'!AO70 -> 317696.7456 | AE14: =SUM(E14:AC14) -> 3822169.435
C17: MIST Meters Funding Adder Revenues (from Sheet 4) | E17: 0 | G17: 0 | I17: 0 | K17: 0 | M17: 0 | O17: 0 | Q17: 0 | S17: 0 | U17: 0 | W17: 0 | Y17: 0 | AA17: 0 | AC17: 0 | AE17: =SUM(E17:G17) -> 0
C19: MIST Meters Funding Adder Interest (from Sheet 4) | E19: =SUM('4. Fund Adder Revenues'!M19:M27) -> 0 | G19: =SUM('4. Fund Adder Revenues'!M28:M39) -> 0 | I19: =SUM('4. Fund Adder Revenues'!O28:O39) -> 0 | K19: =SUM('4. Fund Adder Revenues'!Q28:Q39) -> 0 | M19: =SUM('4. Fund Adder Revenues'!S28:S39) -> 0 | O19: =SUM('4. Fund Adder Revenues'!U28:U39) -> 0 | Q19: =SUM('4. Fund Adder Revenues'!W28:W39) -> 0 | S19: =SUM('4. Fund Adder Revenues'!Y28:Y39) -> 0 | U19: =SUM('4. Fund Adder Revenues'!AA28:AA39) -> 0 | W19: =SUM('4. Fund Adder Revenues'!AC28:AC39) -> 0 | Y19: =SUM('4. Fund Adder Revenues'!AE28:AE39) -> 0 | AA19: =SUM('4. Fund Adder Revenues'!AG28:AG39) -> 0 | AC19: =SUM('4. Fund Adder Revenues'!AI28:AI39) -> 0 | AE19: =SUM(E19:G19) -> 0
C21: Net Deferred Revenue Requirement | E21: =E14-E17-E19 -> 28388.754 | G21: =G14-G17-G19 -> 113226.1599 | I21: =I14-I17-I19 -> 264848.6738 | K21: =K14-K17-K19 -> 323225.447 | M21: =M14-M17-M19 -> 267443.3226 | O21: =O14-O17-O19 -> 362111.0865 | Q21: =Q14-Q17-Q19 -> 399889.248 | S21: =S14-S17-S19 -> 375191.0548 | U21: =U14-U17-U19 -> 378989.2707 | W21: =W14-W17-W19 -> 336731.4631 | Y21: =Y14-Y17-Y19 -> 330386.5573 | AA21: =AA14-AA17-AA19 -> 324041.6514 | AC21: =AC14-AC17-AC19 -> 317696.7456 | AE21: =SUM(E21:AC21) -> 3822169.435
